Workbook

Sheet ежемесячный
A2: Автовождение | B2: заказное | D2: дата | E2: организация | F2: вид услуги | G2: количество | H2: сумма
A3: Авком Трейд | B3: простое | D3: 2014-03-01 | E3: IT-эксперт | F3: эксперсс | G3: 2 | H3: 35000
A4: Аванбек | B4: эксперсс | D4: 2014-03-01 | E4: Аванбек | F4: заказное | G4: 8 | H4: 25300
A5: IT-эксперт | B5: емс | D5: 2014-03-01 | E5: Авком Трейд | F5: заказное | G5: 123 | H5: 125000
B6: маркиров | D6: 2014-03-01 | E6: Авком Трейд | F6: простое | G6: 1 | H6: 30000
D7: 2014-03-02 | E7: Авком Трейд | F7: маркиров | H7: 3500000
D8: 2014-03-02 | E8: Авком Трейд | F8: заказное | G8: 80 | H8: 326000
D9: 2014-03-03 | E9: IT-эксперт | F9: простое | G9: 236 | H9: 12500
D10: 2014-03-03 | E10: Аванбек | F10: заказное | G10: 36 | H10: 283000
D11: 2014-03-12 | E11: Авком Трейд | F11: заказное | G11: 12 | H11: 5444444
D19: Для создания листа из дубликата Авком Трейд, необходимо на ярлычке листа ПКМ--Переместить/копировать--создать коапию перед любым листом.
D20: ПКМ--на ярлычке этого листа--переименовать. Присвоить одно из имен из столбца А этого листа.
D21: На листе Авком Трейд и на других из него сделанных, при смене значения в ячейках Е3:Е17, текущая дата в столбец В проставляется макросом. При необходимости её можно поменять.
D22: На листе Авком Трейд желтым обозначены ячейки в которые вставляются данные из таблицы на этом листе.
D23: По такому принципу нужно сделать до конца таблицы.
D24: После того как в строке 1, На листе Авком Трейд , все необходимые названия будут прописаны , черную заливку можно убрать, белый шрифт вспомогательных ячеек не будет виден.

Sheet отчет БП-5 ФЕВРАЛЬ 2014Г
C1: Приложение 1 | G1: БИЗНЕС ПОЧТА 5 | M1: Бизнес-почта 5
L2: Отчет с 1 по 28 ФЕВРАЛЯ 2014г.
A3: № п/п | B3: Признак | C3: № договора | D3: Дата заключения | E3: Лицевой счет | G3: Наименование организации | H3: заказные отправления (116, 161) | J3: простые отправления (117, 165) | L3: посылки (151, 156) | N3: мелкие пакеты, ценные письма (121) | P3: EMS внутренние (181 ,182) | R3: EMS международные (321, 322) | T3: доп.услуги (241, 311) | U3: товары почты (641) | V3: маркиров. прод. (111) | W3: переводы (138,139,144,145,146,149) | Y3: Доходы по каждой организации
H4: кол-во | I4: доходы | J4: кол-во | K4: доходы | L4: кол-во | M4: доходы | N4: кол-во | O4: доходы | P4: кол-во | Q4: доходы | R4: кол-во | S4: доходы | T4: доходы | U4: доходы | V4: доходы | W4: кол-во | X4: доходы
A5: 1 | B5: Договор | C5: 22-02-11/237 | D5: 2012-09-04 | E5: 907 | F5: 12 | G5: Автопромснаб ООО | H5: =[1]Автопромснаб!B35 -> 0 | I5: =[1]Автопромснаб!C35 -> 0 | J5: =[1]Автопромснаб!D35 -> 0 | K5: =[1]Автопромснаб!E35 -> 0 | L5: =[1]Автопромснаб!F35 -> 0 | M5: =[1]Автопромснаб!G35 -> 0 | N5: =[1]Автопромснаб!H35 -> 0 | O5: =[1]Автопромснаб!I35 -> 0 | P5: =[1]Автопромснаб!J35 -> 0 | Q5: =[1]Автопромснаб!K35 -> 0 | R5: =[1]Автопромснаб!L35 -> 0 | S5: =[1]Автопромснаб!M35 -> 0 | T5: =[1]Автопромснаб!N35 -> 0 | U5: =[1]Автопромснаб!O35 -> 0 | V5: =[1]Автопромснаб!P35 -> 0 | W5: =[1]Автопромснаб!Q35 -> 0 | X5: =[1]Автопромснаб!R35 -> 0 | Y5: =[1]Автопромснаб!S35 -> 0
A6: 2 | B6: Договор | C6: 22-02-11/238 | D6: 2012-09-04 | E6: 897 | F6: 12 | G6: Автопромснаб-Спедишн СП ООО | H6: ='[1]Автопромснаб-спедишн'!B35 -> 0 | I6: ='[1]Автопромснаб-спедишн'!C35 -> 0 | J6: ='[1]Автопромснаб-спедишн'!D35 -> 0 | K6: ='[1]Автопромснаб-спедишн'!E35 -> 0 | L6: ='[1]Автопромснаб-спедишн'!F35 -> 0 | M6: ='[1]Автопромснаб-спедишн'!G35 -> 0 | N6: ='[1]Автопромснаб-спедишн'!H35 -> 0 | O6: ='[1]Автопромснаб-спедишн'!I35 -> 0 | P6: ='[1]Автопромснаб-спедишн'!J35 -> 0 | Q6: ='[1]Автопромснаб-спедишн'!K35 -> 0 | R6: ='[1]Автопромснаб-спедишн'!L35 -> 0 | S6: ='[1]Автопромснаб-спедишн'!M35 -> 0 | T6: ='[1]Автопромснаб-спедишн'!N35 -> 0 | U6: ='[1]Автопромснаб-спедишн'!O35 -> 0 | V6: ='[1]Автопромснаб-спедишн'!P35 -> 0 | W6: ='[1]Автопромснаб-спедишн'!Q35 -> 0 | X6: ='[1]Автопромснаб-спедишн'!R35 -> 0 | Y6: ='[1]Автопромснаб-спедишн'!S35 -> 0
A7: 3 | G7: Аг-во по гос.регистрации и зем. Кадастру ППО РУП | H7: ='[1]Аг-во по гос.регистр.и зем.кад.'!B35 -> 0 | I7: ='[1]Аг-во по гос.регистр.и зем.кад.'!C35 -> 0 | J7: ='[1]Аг-во по гос.регистр.и зем.кад.'!D35 -> 0 | K7: ='[1]Аг-во по гос.регистр.и зем.кад.'!E35 -> 0 | L7: ='[1]Аг-во по гос.регистр.и зем.кад.'!F35 -> 0 | M7: ='[1]Аг-во по гос.регистр.и зем.кад.'!G35 -> 0 | N7: ='[1]Аг-во по гос.регистр.и зем.кад.'!H35 -> 0 | O7: ='[1]Аг-во по гос.регистр.и зем.кад.'!I35 -> 0 | P7: ='[1]Аг-во по гос.регистр.и зем.кад.'!J35 -> 0 | Q7: ='[1]Аг-во по гос.регистр.и зем.кад.'!K35 -> 0 | R7: ='[1]Аг-во по гос.регистр.и зем.кад.'!L35 -> 0 | S7: ='[1]Аг-во по гос.регистр.и зем.кад.'!M35 -> 0 | T7: ='[1]Аг-во по гос.регистр.и зем.кад.'!N35 -> 0 | U7: ='[1]Аг-во по гос.регистр.и зем.кад.'!O35 -> 0 | V7: ='[1]Аг-во по гос.регистр.и зем.кад.'!P35 -> 0 | W7: ='[1]Аг-во по гос.регистр.и зем.кад.'!Q35 -> 0 | X7: ='[1]Аг-во по гос.регистр.и зем.кад.'!R35 -> 0 | Y7: ='[1]Аг-во по гос.регистр.и зем.кад.'!S35 -> 0
A8: 4 | B8: Договор | C8: 259 | D8: 2014-02-25 | E8: 2152 | G8: Агролизинг ОАО | H8: =[1]Агролизинг!B35 -> 0 | I8: =[1]Агролизинг!C35 -> 0 | J8: =[1]Агролизинг!D35 -> 0 | K8: =[1]Агролизинг!E35 -> 0 | L8: =[1]Агролизинг!F35 -> 0 | M8: =[1]Агролизинг!G35 -> 0 | N8: =[1]Агролизинг!H35 -> 0 | O8: =[1]Агролизинг!I35 -> 0 | P8: =[1]Агролизинг!J35 -> 0 | Q8: =[1]Агролизинг!K35 -> 0 | R8: =[1]Агролизинг!L35 -> 0 | S8: =[1]Агролизинг!M35 -> 0 | T8: =[1]Агролизинг!N35 -> 0 | U8: =[1]Агролизинг!O35 -> 0 | V8: =[1]Агролизинг!P35 -> 0 | W8: =[1]Агролизинг!Q35 -> 0 | X8: =[1]Агролизинг!R35 -> 0 | Y8: =[1]Агролизинг!S35 -> 0
A9: 5 | B9: Договор | C9: 330 | D9: 2013-03-20 | E9: 1276 | G9: Амеди ЧПУП | H9: =[1]Амеди!B35 -> 0 | I9: =[1]Амеди!C35 -> 0 | J9: =[1]Амеди!D35 -> 0 | K9: =[1]Амеди!E35 -> 0 | L9: =[1]Амеди!F35 -> 0 | M9: =[1]Амеди!G35 -> 0 | N9: =[1]Амеди!H35 -> 0 | O9: =[1]Амеди!I35 -> 0 | P9: =[1]Амеди!J35 -> 0 | Q9: =[1]Амеди!K35 -> 0 | R9: =[1]Амеди!L35 -> 0 | S9: =[1]Амеди!M35 -> 0 | T9: =[1]Амеди!N35 -> 0 | U9: =[1]Амеди!O35 -> 0 | V9: =[1]Амеди!P35 -> 0 | W9: =[1]Амеди!Q35 -> 0 | X9: =[1]Амеди!R35 -> 0 | Y9: =[1]Амеди!S35 -> 0
A10: 6 | G10: Амкодор-Белвар ОАО | H10: ='[1]Амкодор-Белвар'!B35 -> 0 | I10: ='[1]Амкодор-Белвар'!C35 -> 0 | J10: ='[1]Амкодор-Белвар'!D35 -> 0 | K10: ='[1]Амкодор-Белвар'!E35 -> 0 | L10: ='[1]Амкодор-Белвар'!F35 -> 0 | M10: ='[1]Амкодор-Белвар'!G35 -> 0 | N10: ='[1]Амкодор-Белвар'!H35 -> 0 | O10: ='[1]Амкодор-Белвар'!I35 -> 0 | P10: ='[1]Амкодор-Белвар'!J35 -> 0 | Q10: ='[1]Амкодор-Белвар'!K35 -> 0 | R10: ='[1]Амкодор-Белвар'!L35 -> 0 | S10: ='[1]Амкодор-Белвар'!M35 -> 0 | T10: ='[1]Амкодор-Белвар'!N35 -> 0 | U10: ='[1]Амкодор-Белвар'!O35 -> 0 | V10: ='[1]Амкодор-Белвар'!P35 -> 0 | W10: ='[1]Амкодор-Белвар'!Q35 -> 0 | X10: ='[1]Амкодор-Белвар'!R35 -> 0 | Y10: ='[1]Амкодор-Белвар'!S35 -> 0
A11: 7 | G11: Артизан | H11: =[1]Артизан!B35 -> 0 | I11: =[1]Артизан!C35 -> 0 | J11: =[1]Артизан!D35 -> 0 | K11: =[1]Артизан!E35 -> 0 | L11: =[1]Артизан!F35 -> 0 | M11: =[1]Артизан!G35 -> 0 | N11: =[1]Артизан!H35 -> 0 | O11: =[1]Артизан!I35 -> 0 | P11: =[1]Артизан!J35 -> 0 | Q11: =[1]Артизан!K35 -> 0 | R11: =[1]Артизан!L35 -> 0 | S11: =[1]Артизан!M35 -> 0 | T11: =[1]Артизан!N35 -> 0 | U11: =[1]Артизан!O35 -> 0 | V11: =[1]Артизан!P35 -> 0 | W11: =[1]Артизан!Q35 -> 0 | X11: =[1]Артизан!R35 -> 0 | Y11: =[1]Артизан!S35 -> 0
A12: 8 | G12: Балтика | H12: =[1]Балтика!B35 -> 0 | I12: =[1]Балтика!C35 -> 0 | J12: =[1]Балтика!D35 -> 0 | K12: =[1]Балтика!E35 -> 0 | L12: =[1]Балтика!F35 -> 0 | M12: =[1]Балтика!G35 -> 0 | N12: =[1]Балтика!H35 -> 0 | O12: =[1]Балтика!I35 -> 0 | P12: =[1]Балтика!J35 -> 0 | Q12: =[1]Балтика!K35 -> 0 | R12: =[1]Балтика!L35 -> 0 | S12: =[1]Балтика!M35 -> 0 | T12: =[1]Балтика!N35 -> 0 | U12: =[1]Балтика!O35 -> 0 | V12: =[1]Балтика!P35 -> 0 | W12: =[1]Балтика!Q35 -> 0 | X12: =[1]Балтика!R35 -> 0 | Y12: =[1]Балтика!S35 -> 0
A13: 9 | G13: Высшая Аттестационная комиссия | H13: ='[1]Высшая аттестац комиссия'!B35 -> 0 | I13: ='[1]Высшая аттестац комиссия'!C35 -> 0 | J13: ='[1]Высшая аттестац комиссия'!D35 -> 0 | K13: ='[1]Высшая аттестац комиссия'!E35 -> 0 | L13: ='[1]Высшая аттестац комиссия'!F35 -> 0 | M13: ='[1]Высшая аттестац комиссия'!G35 -> 0 | N13: ='[1]Высшая аттестац комиссия'!H35 -> 0 | O13: ='[1]Высшая аттестац комиссия'!I35 -> 0 | P13: ='[1]Высшая аттестац комиссия'!J35 -> 0 | Q13: ='[1]Высшая аттестац комиссия'!K35 -> 0 | R13: ='[1]Высшая аттестац комиссия'!L35 -> 0 | S13: ='[1]Высшая аттестац комиссия'!M35 -> 0 | T13: ='[1]Высшая аттестац комиссия'!N35 -> 0 | U13: ='[1]Высшая аттестац комиссия'!O35 -> 0 | V13: ='[1]Высшая аттестац комиссия'!P35 -> 0 | W13: ='[1]Высшая аттестац комиссия'!Q35 -> 0 | X13: ='[1]Высшая аттестац комиссия'!R35 -> 0 | Y13: ='[1]Высшая аттестац комиссия'!S35 -> 0
A14: 10 | G14: Белаэрокосмогеодезия РУП | H14: =[1]БелАэроКосмоГеодезия!B35 -> 0 | I14: =[1]БелАэроКосмоГеодезия!C35 -> 0 | J14: =[1]БелАэроКосмоГеодезия!D35 -> 0 | K14: =[1]БелАэроКосмоГеодезия!E35 -> 0 | L14: =[1]БелАэроКосмоГеодезия!F35 -> 0 | M14: =[1]БелАэроКосмоГеодезия!G35 -> 0 | N14: =[1]БелАэроКосмоГеодезия!H35 -> 0 | O14: =[1]БелАэроКосмоГеодезия!I35 -> 0 | P14: =[1]БелАэроКосмоГеодезия!J35 -> 0 | Q14: =[1]БелАэроКосмоГеодезия!K35 -> 0 | R14: =[1]БелАэроКосмоГеодезия!L35 -> 0 | S14: =[1]БелАэроКосмоГеодезия!M35 -> 0 | T14: =[1]БелАэроКосмоГеодезия!N35 -> 0 | U14: =[1]БелАэроКосмоГеодезия!O35 -> 0 | V14: =[1]БелАэроКосмоГеодезия!P35 -> 0 | W14: =[1]БелАэроКосмоГеодезия!Q35 -> 0 | X14: =[1]БелАэроКосмоГеодезия!R35 -> 0 | Y14: =[1]БелАэроКосмоГеодезия!S35 -> 0
A15: 11 | G15: Белгосфилармония | H15: =[1]БелгосФилармония!B35 -> 0 | I15: =[1]БелгосФилармония!C35 -> 0 | J15: =[1]БелгосФилармония!D35 -> 0 | K15: =[1]БелгосФилармония!E35 -> 0 | L15: =[1]БелгосФилармония!F35 -> 0 | M15: =[1]БелгосФилармония!G35 -> 0 | N15: =[1]БелгосФилармония!H35 -> 0 | O15: =[1]БелгосФилармония!I35 -> 0 | P15: =[1]БелгосФилармония!J35 -> 0 | Q15: =[1]БелгосФилармония!K35 -> 0 | R15: =[1]БелгосФилармония!L35 -> 0 | S15: =[1]БелгосФилармония!M35 -> 0 | T15: =[1]БелгосФилармония!N35 -> 0 | U15: =[1]БелгосФилармония!O35 -> 0 | V15: =[1]БелгосФилармония!P35 -> 0 | W15: =[1]БелгосФилармония!Q35 -> 0 | X15: =[1]БелгосФилармония!R35 -> 0 | Y15: =[1]БелгосФилармония!S35 -> 0
A16: 12 | G16: Белниитоппроект РУП | H16: =[1]Белниитоппроект!B35 -> 0 | I16: =[1]Белниитоппроект!C35 -> 0 | J16: =[1]Белниитоппроект!D35 -> 0 | K16: =[1]Белниитоппроект!E35 -> 0 | L16: =[1]Белниитоппроект!F35 -> 0 | M16: =[1]Белниитоппроект!G35 -> 0 | N16: =[1]Белниитоппроект!H35 -> 0 | O16: =[1]Белниитоппроект!I35 -> 0 | P16: =[1]Белниитоппроект!J35 -> 0 | Q16: =[1]Белниитоппроект!K35 -> 0 | R16: =[1]Белниитоппроект!L35 -> 0 | S16: =[1]Белниитоппроект!M35 -> 0 | T16: =[1]Белниитоппроект!N35 -> 0 | U16: =[1]Белниитоппроект!O35 -> 0 | V16: =[1]Белниитоппроект!P35 -> 0 | W16: =[1]Белниитоппроект!Q35 -> 0 | X16: =[1]Белниитоппроект!R35 -> 0 | Y16: =[1]Белниитоппроект!S35 -> 0
A17: 13 | G17: Белпромтара ОАО | H17: =[1]Белпромтара!B35 -> 0 | I17: =[1]Белпромтара!C35 -> 0 | J17: =[1]Белпромтара!D35 -> 0 | K17: =[1]Белпромтара!E35 -> 0 | L17: =[1]Белпромтара!F35 -> 0 | M17: =[1]Белпромтара!G35 -> 0 | N17: =[1]Белпромтара!H35 -> 0 | O17: =[1]Белпромтара!I35 -> 0 | P17: =[1]Белпромтара!J35 -> 0 | Q17: =[1]Белпромтара!K35 -> 0 | R17: =[1]Белпромтара!L35 -> 0 | S17: =[1]Белпромтара!M35 -> 0 | T17: =[1]Белпромтара!N35 -> 0 | U17: =[1]Белпромтара!O35 -> 0 | V17: =[1]Белпромтара!P35 -> 0 | W17: =[1]Белпромтара!Q35 -> 0 | X17: =[1]Белпромтара!R35 -> 0 | Y17: =[1]Белпромтара!S35 -> 0
A18: 14 | B18: Договор | C18: 501 | D18: 2013-06-19 | E18: 358 | G18: БелСел СП ООО | H18: =[1]БелСел!B35 -> 0 | I18: =[1]БелСел!C35 -> 0 | J18: =[1]БелСел!D35 -> 0 | K18: =[1]БелСел!E35 -> 0 | L18: =[1]БелСел!F35 -> 0 | M18: =[1]БелСел!G35 -> 0 | N18: =[1]БелСел!H35 -> 0 | O18: =[1]БелСел!I35 -> 0 | P18: =[1]БелСел!J35 -> 0 | Q18: =[1]БелСел!K35 -> 0 | R18: =[1]БелСел!L35 -> 0 | S18: =[1]БелСел!M35 -> 0 | T18: =[1]БелСел!N35 -> 0 | U18: =[1]БелСел!O35 -> 0 | V18: =[1]БелСел!P35 -> 0 | W18: =[1]БелСел!Q35 -> 0 | X18: =[1]БелСел!R35 -> 0 | Y18: =[1]БелСел!S35 -> 0
A19: 15 | B19: Маркир | G19: Белтопгаз ГПО | H19: =[1]БелТопГаз!B35 -> 0 | I19: =[1]БелТопГаз!C35 -> 0 | J19: =[1]БелТопГаз!D35 -> 0 | K19: =[1]БелТопГаз!E35 -> 0 | L19: =[1]БелТопГаз!F35 -> 0 | M19: =[1]БелТопГаз!G35 -> 0 | N19: =[1]БелТопГаз!H35 -> 0 | O19: =[1]БелТопГаз!I35 -> 0 | P19: =[1]БелТопГаз!J35 -> 0 | Q19: =[1]БелТопГаз!K35 -> 0 | R19: =[1]БелТопГаз!L35 -> 0 | S19: =[1]БелТопГаз!M35 -> 0 | T19: =[1]БелТопГаз!N35 -> 0 | U19: =[1]БелТопГаз!O35 -> 0 | V19: =[1]БелТопГаз!P35 -> 0 | W19: =[1]БелТопГаз!Q35 -> 0 | X19: =[1]БелТопГаз!R35 -> 0 | Y19: =[1]БелТопГаз!S35 -> 0
A20: 16 | G20: Бизнес и Карнавал ЧПТУП | H20: ='[1]Бизнес и Карнавал'!B35 -> 0 | I20: ='[1]Бизнес и Карнавал'!C35 -> 0 | J20: ='[1]Бизнес и Карнавал'!D35 -> 0 | K20: ='[1]Бизнес и Карнавал'!E35 -> 0 | L20: ='[1]Бизнес и Карнавал'!F35 -> 0 | M20: ='[1]Бизнес и Карнавал'!G35 -> 0 | N20: ='[1]Бизнес и Карнавал'!H35 -> 0 | O20: ='[1]Бизнес и Карнавал'!I35 -> 0 | P20: ='[1]Бизнес и Карнавал'!J35 -> 0 | Q20: ='[1]Бизнес и Карнавал'!K35 -> 0 | R20: ='[1]Бизнес и Карнавал'!L35 -> 0 | S20: ='[1]Бизнес и Карнавал'!M35 -> 0 | T20: ='[1]Бизнес и Карнавал'!N35 -> 0 | U20: ='[1]Бизнес и Карнавал'!O35 -> 0 | V20: ='[1]Бизнес и Карнавал'!P35 -> 0 | W20: ='[1]Бизнес и Карнавал'!Q35 -> 0 | X20: ='[1]Бизнес и Карнавал'!R35 -> 0 | Y20: ='[1]Бизнес и Карнавал'!S35 -> 0
A21: 17 | G21: БПС-Сбербанк | H21: ='[1]БПС-Сбербанк'!B35 -> 0 | I21: ='[1]БПС-Сбербанк'!C35 -> 0 | J21: ='[1]БПС-Сбербанк'!D35 -> 0 | K21: ='[1]БПС-Сбербанк'!E35 -> 0 | L21: ='[1]БПС-Сбербанк'!F35 -> 0 | M21: ='[1]БПС-Сбербанк'!G35 -> 0 | N21: ='[1]БПС-Сбербанк'!H35 -> 0 | O21: ='[1]БПС-Сбербанк'!I35 -> 0 | P21: ='[1]БПС-Сбербанк'!J35 -> 0 | Q21: ='[1]БПС-Сбербанк'!K35 -> 0 | R21: ='[1]БПС-Сбербанк'!L35 -> 0 | S21: ='[1]БПС-Сбербанк'!M35 -> 0 | T21: ='[1]БПС-Сбербанк'!N35 -> 0 | U21: ='[1]БПС-Сбербанк'!O35 -> 0 | V21: ='[1]БПС-Сбербанк'!P35 -> 0 | W21: ='[1]БПС-Сбербанк'!Q35 -> 0 | X21: ='[1]БПС-Сбербанк'!R35 -> 0 | Y21: ='[1]БПС-Сбербанк'!S35 -> 0
A22: 18 | G22: ВипМаг ЧП | H22: =[1]ВипМаг!B35 -> 0 | I22: =[1]ВипМаг!C35 -> 0 | J22: =[1]ВипМаг!D35 -> 0 | K22: =[1]ВипМаг!E35 -> 0 | L22: =[1]ВипМаг!F35 -> 0 | M22: =[1]ВипМаг!G35 -> 0 | N22: =[1]ВипМаг!H35 -> 0 | O22: =[1]ВипМаг!I35 -> 0 | P22: =[1]ВипМаг!J35 -> 0 | Q22: =[1]ВипМаг!K35 -> 0 | R22: =[1]ВипМаг!L35 -> 0 | S22: =[1]ВипМаг!M35 -> 0 | T22: =[1]ВипМаг!N35 -> 0 | U22: =[1]ВипМаг!O35 -> 0 | V22: =[1]ВипМаг!P35 -> 0 | W22: =[1]ВипМаг!Q35 -> 0 | X22: =[1]ВипМаг!R35 -> 0 | Y22: =[1]ВипМаг!S35 -> 0
A23: 19 | G23: Гревцов Медиа ООО | H23: ='[1]Гревцов Медиа'!B35 -> 0 | I23: ='[1]Гревцов Медиа'!C35 -> 0 | J23: ='[1]Гревцов Медиа'!D35 -> 0 | K23: ='[1]Гревцов Медиа'!E35 -> 0 | L23: ='[1]Гревцов Медиа'!F35 -> 0 | M23: ='[1]Гревцов Медиа'!G35 -> 0 | N23: ='[1]Гревцов Медиа'!H35 -> 0 | O23: ='[1]Гревцов Медиа'!I35 -> 0 | P23: ='[1]Гревцов Медиа'!J35 -> 0 | Q23: ='[1]Гревцов Медиа'!K35 -> 0 | R23: ='[1]Гревцов Медиа'!L35 -> 0 | S23: ='[1]Гревцов Медиа'!M35 -> 0 | T23: ='[1]Гревцов Медиа'!N35 -> 0 | U23: ='[1]Гревцов Медиа'!O35 -> 0 | V23: ='[1]Гревцов Медиа'!P35 -> 0 | W23: ='[1]Гревцов Медиа'!Q35 -> 0 | X23: ='[1]Гревцов Медиа'!R35 -> 0 | Y23: ='[1]Гревцов Медиа'!S35 -> 0
A24: 20 | G24: Дарик ПЧУП | H24: ='[1]Дарик ПЧУП'!B35 -> 0 | I24: ='[1]Дарик ПЧУП'!C35 -> 0 | J24: ='[1]Дарик ПЧУП'!D35 -> 0 | K24: ='[1]Дарик ПЧУП'!E35 -> 0 | L24: ='[1]Дарик ПЧУП'!F35 -> 0 | M24: ='[1]Дарик ПЧУП'!G35 -> 0 | N24: ='[1]Дарик ПЧУП'!H35 -> 0 | O24: ='[1]Дарик ПЧУП'!I35 -> 0 | P24: ='[1]Дарик ПЧУП'!J35 -> 0 | Q24: ='[1]Дарик ПЧУП'!K35 -> 0 | R24: ='[1]Дарик ПЧУП'!L35 -> 0 | S24: ='[1]Дарик ПЧУП'!M35 -> 0 | T24: ='[1]Дарик ПЧУП'!N35 -> 0 | U24: ='[1]Дарик ПЧУП'!O35 -> 0 | V24: ='[1]Дарик ПЧУП'!P35 -> 0 | W24: ='[1]Дарик ПЧУП'!Q35 -> 0 | X24: ='[1]Дарик ПЧУП'!R35 -> 0 | Y24: ='[1]Дарик ПЧУП'!S35 -> 0
A25: 21 | G25: Демис ПЧУП | H25: =[1]Демис!B35 -> 0 | I25: =[1]Демис!C35 -> 0 | J25: =[1]Демис!D35 -> 0 | K25: =[1]Демис!E35 -> 0 | L25: =[1]Демис!F35 -> 0 | M25: =[1]Демис!G35 -> 0 | N25: =[1]Демис!H35 -> 0 | O25: =[1]Демис!I35 -> 0 | P25: =[1]Демис!J35 -> 0 | Q25: =[1]Демис!K35 -> 0 | R25: =[1]Демис!L35 -> 0 | S25: =[1]Демис!M35 -> 0 | T25: =[1]Демис!N35 -> 0 | U25: =[1]Демис!O35 -> 0 | V25: =[1]Демис!P35 -> 0 | W25: =[1]Демис!Q35 -> 0 | X25: =[1]Демис!R35 -> 0 | Y25: =[1]Демис!S35 -> 0
A26: 22 | G26: Дивимакс | H26: =[1]Дивимакс!B35 -> 0 | I26: =[1]Дивимакс!C35 -> 0 | J26: =[1]Дивимакс!D35 -> 0 | K26: =[1]Дивимакс!E35 -> 0 | L26: =[1]Дивимакс!F35 -> 0 | M26: =[1]Дивимакс!G35 -> 0 | N26: =[1]Дивимакс!H35 -> 0 | O26: =[1]Дивимакс!I35 -> 0 | P26: =[1]Дивимакс!J35 -> 0 | Q26: =[1]Дивимакс!K35 -> 0 | R26: =[1]Дивимакс!L35 -> 0 | S26: =[1]Дивимакс!M35 -> 0 | T26: =[1]Дивимакс!N35 -> 0 | U26: =[1]Дивимакс!O35 -> 0 | V26: =[1]Дивимакс!P35 -> 0 | W26: =[1]Дивимакс!Q35 -> 0 | X26: =[1]Дивимакс!R35 -> 0 | Y26: =[1]Дивимакс!S35 -> 0
A27: 23 | G27: Завод СВТ | H27: ='[1]Завод СВТ'!B35 -> 0 | I27: ='[1]Завод СВТ'!C35 -> 0 | J27: ='[1]Завод СВТ'!D35 -> 0 | K27: ='[1]Завод СВТ'!E35 -> 0 | L27: ='[1]Завод СВТ'!F35 -> 0 | M27: ='[1]Завод СВТ'!G35 -> 0 | N27: ='[1]Завод СВТ'!H35 -> 0 | O27: ='[1]Завод СВТ'!I35 -> 0 | P27: ='[1]Завод СВТ'!J35 -> 0 | Q27: ='[1]Завод СВТ'!K35 -> 0 | R27: ='[1]Завод СВТ'!L35 -> 0 | S27: ='[1]Завод СВТ'!M35 -> 0 | T27: ='[1]Завод СВТ'!N35 -> 0 | U27: ='[1]Завод СВТ'!O35 -> 0 | V27: ='[1]Завод СВТ'!P35 -> 0 | W27: ='[1]Завод СВТ'!Q35 -> 0 | X27: ='[1]Завод СВТ'!R35 -> 0 | Y27: ='[1]Завод СВТ'!S35 -> 0
A28: 24 | G28: Законы Бизнеса | H28: ='[1]Законы Бизнеса'!B35 -> 0 | I28: ='[1]Законы Бизнеса'!C35 -> 0 | J28: ='[1]Законы Бизнеса'!D35 -> 0 | K28: ='[1]Законы Бизнеса'!E35 -> 0 | L28: ='[1]Законы Бизнеса'!F35 -> 0 | M28: ='[1]Законы Бизнеса'!G35 -> 0 | N28: ='[1]Законы Бизнеса'!H35 -> 0 | O28: ='[1]Законы Бизнеса'!I35 -> 0 | P28: ='[1]Законы Бизнеса'!J35 -> 0 | Q28: ='[1]Законы Бизнеса'!K35 -> 0 | R28: ='[1]Законы Бизнеса'!L35 -> 0 | S28: ='[1]Законы Бизнеса'!M35 -> 0 | T28: ='[1]Законы Бизнеса'!N35 -> 0 | U28: ='[1]Законы Бизнеса'!O35 -> 0 | V28: ='[1]Законы Бизнеса'!P35 -> 0 | W28: ='[1]Законы Бизнеса'!Q35 -> 0 | X28: ='[1]Законы Бизнеса'!R35 -> 0 | Y28: ='[1]Законы Бизнеса'!S35 -> 0
A29: 25 | B29: Договор | C29: 945 | D29: 2013-12-05 | E29: 1990 | G29: Западный двор ООО | H29: ='[1]Западный двор'!B35 -> 0 | I29: ='[1]Западный двор'!C35 -> 0 | J29: ='[1]Западный двор'!D35 -> 0 | K29: ='[1]Западный двор'!E35 -> 0 | L29: ='[1]Западный двор'!F35 -> 0 | M29: ='[1]Западный двор'!G35 -> 0 | N29: ='[1]Западный двор'!H35 -> 0 | O29: ='[1]Западный двор'!I35 -> 0 | P29: ='[1]Западный двор'!J35 -> 0 | Q29: ='[1]Западный двор'!K35 -> 0 | R29: ='[1]Западный двор'!L35 -> 0 | S29: ='[1]Западный двор'!M35 -> 0 | T29: ='[1]Западный двор'!N35 -> 0 | U29: ='[1]Западный двор'!O35 -> 0 | V29: ='[1]Западный двор'!P35 -> 0 | W29: ='[1]Западный двор'!Q35 -> 0 | X29: ='[1]Западный двор'!R35 -> 0 | Y29: ='[1]Западный двор'!S35 -> 0
A30: 26 | G30: Здесь и сейчас | H30: ='[1]Здесь и сейчас'!B35 -> 0 | I30: ='[1]Здесь и сейчас'!C35 -> 0 | J30: ='[1]Здесь и сейчас'!D35 -> 0 | K30: ='[1]Здесь и сейчас'!E35 -> 0 | L30: ='[1]Здесь и сейчас'!F35 -> 0 | M30: ='[1]Здесь и сейчас'!G35 -> 0 | N30: ='[1]Здесь и сейчас'!H35 -> 0 | O30: ='[1]Здесь и сейчас'!I35 -> 0 | P30: ='[1]Здесь и сейчас'!J35 -> 0 | Q30: ='[1]Здесь и сейчас'!K35 -> 0 | R30: ='[1]Здесь и сейчас'!L35 -> 0 | S30: ='[1]Здесь и сейчас'!M35 -> 0 | T30: ='[1]Здесь и сейчас'!N35 -> 0 | U30: ='[1]Здесь и сейчас'!O35 -> 0 | V30: ='[1]Здесь и сейчас'!P35 -> 0 | W30: ='[1]Здесь и сейчас'!Q35 -> 0 | X30: ='[1]Здесь и сейчас'!R35 -> 0 | Y30: ='[1]Здесь и сейчас'!S35 -> 0
A31: 27 | G31: Златка СООО | H31: =[1]Златка!B35 -> 0 | I31: =[1]Златка!C35 -> 0 | J31: =[1]Златка!D35 -> 0 | K31: =[1]Златка!E35 -> 0 | L31: =[1]Златка!F35 -> 0 | M31: =[1]Златка!G35 -> 0 | N31: =[1]Златка!H35 -> 0 | O31: =[1]Златка!I35 -> 0 | P31: =[1]Златка!J35 -> 0 | Q31: =[1]Златка!K35 -> 0 | R31: =[1]Златка!L35 -> 0 | S31: =[1]Златка!M35 -> 0 | T31: =[1]Златка!N35 -> 0 | U31: =[1]Златка!O35 -> 0 | V31: =[1]Златка!P35 -> 0 | W31: =[1]Златка!Q35 -> 0 | X31: =[1]Златка!R35 -> 0 | Y31: =[1]Златка!S35 -> 0
A32: 28 | B32: Договор | C32: 34 | D32: 2013-01-10 | E32: 1134 | G32: Издательский дом "Маркет" ООО | H32: ='[1]ИД Маркет'!B35 -> 0 | I32: ='[1]ИД Маркет'!C35 -> 0 | J32: ='[1]ИД Маркет'!D35 -> 0 | K32: ='[1]ИД Маркет'!E35 -> 0 | L32: ='[1]ИД Маркет'!F35 -> 0 | M32: ='[1]ИД Маркет'!G35 -> 0 | N32: ='[1]ИД Маркет'!H35 -> 0 | O32: ='[1]ИД Маркет'!I35 -> 0 | P32: ='[1]ИД Маркет'!J35 -> 0 | Q32: ='[1]ИД Маркет'!K35 -> 0 | R32: ='[1]ИД Маркет'!L35 -> 0 | S32: ='[1]ИД Маркет'!M35 -> 0 | T32: ='[1]ИД Маркет'!N35 -> 0 | U32: ='[1]ИД Маркет'!O35 -> 0 | V32: ='[1]ИД Маркет'!P35 -> 0 | W32: ='[1]ИД Маркет'!Q35 -> 0 | X32: ='[1]ИД Маркет'!R35 -> 0 | Y32: ='[1]ИД Маркет'!S35 -> 0
A33: 29 | G33: ИМНС | H33: =[1]ИМНС!B35 -> 0 | I33: =[1]ИМНС!C35 -> 0 | J33: =[1]ИМНС!D35 -> 0 | K33: =[1]ИМНС!E35 -> 0 | L33: =[1]ИМНС!F35 -> 0 | M33: =[1]ИМНС!G35 -> 0 | N33: =[1]ИМНС!H35 -> 0 | O33: =[1]ИМНС!I35 -> 0 | P33: =[1]ИМНС!J35 -> 0 | Q33: =[1]ИМНС!K35 -> 0 | R33: =[1]ИМНС!L35 -> 0 | S33: =[1]ИМНС!M35 -> 0 | T33: =[1]ИМНС!N35 -> 0 | U33: =[1]ИМНС!O35 -> 0 | V33: =[1]ИМНС!P35 -> 0 | W33: =[1]ИМНС!Q35 -> 0 | X33: =[1]ИМНС!R35 -> 0 | Y33: =[1]ИМНС!S35 -> 0
A34: 30 | G34: Интелстандарт | H34: =[1]Интелстандарт!B35 -> 0 | I34: =[1]Интелстандарт!C35 -> 0 | J34: =[1]Интелстандарт!D35 -> 0 | K34: =[1]Интелстандарт!E35 -> 0 | L34: =[1]Интелстандарт!F35 -> 0 | M34: =[1]Интелстандарт!G35 -> 0 | N34: =[1]Интелстандарт!H35 -> 0 | O34: =[1]Интелстандарт!I35 -> 0 | P34: =[1]Интелстандарт!J35 -> 0 | Q34: =[1]Интелстандарт!K35 -> 0 | R34: =[1]Интелстандарт!L35 -> 0 | S34: =[1]Интелстандарт!M35 -> 0 | T34: =[1]Интелстандарт!N35 -> 0 | U34: =[1]Интелстандарт!O35 -> 0 | V34: =[1]Интелстандарт!P35 -> 0 | W34: =[1]Интелстандарт!Q35 -> 0 | X34: =[1]Интелстандарт!R35 -> 0 | Y34: =[1]Интелстандарт!S35 -> 0
A35: 31 | G35: Интеркосметика | H35: =[1]Интеркосметика!B35 -> 0 | I35: =[1]Интеркосметика!C35 -> 0 | J35: =[1]Интеркосметика!D35 -> 0 | K35: =[1]Интеркосметика!E35 -> 0 | L35: =[1]Интеркосметика!F35 -> 0 | M35: =[1]Интеркосметика!G35 -> 0 | N35: =[1]Интеркосметика!H35 -> 0 | O35: =[1]Интеркосметика!I35 -> 0 | P35: =[1]Интеркосметика!J35 -> 0 | Q35: =[1]Интеркосметика!K35 -> 0 | R35: =[1]Интеркосметика!L35 -> 0 | S35: =[1]Интеркосметика!M35 -> 0 | T35: =[1]Интеркосметика!N35 -> 0 | U35: =[1]Интеркосметика!O35 -> 0 | V35: =[1]Интеркосметика!P35 -> 0 | W35: =[1]Интеркосметика!Q35 -> 0 | X35: =[1]Интеркосметика!R35 -> 0 | Y35: =[1]Интеркосметика!S35 -> 0
A36: 32 | G36: Инф.издат центр по налогам и сборам | H36: ='[1]ИИЦ по налогам и сборам'!B35 -> 0 | I36: ='[1]ИИЦ по налогам и сборам'!C35 -> 0 | J36: ='[1]ИИЦ по налогам и сборам'!D35 -> 0 | K36: ='[1]ИИЦ по налогам и сборам'!E35 -> 0 | L36: ='[1]ИИЦ по налогам и сборам'!F35 -> 0 | M36: ='[1]ИИЦ по налогам и сборам'!G35 -> 0 | N36: ='[1]ИИЦ по налогам и сборам'!H35 -> 0 | O36: ='[1]ИИЦ по налогам и сборам'!I35 -> 0 | P36: ='[1]ИИЦ по налогам и сборам'!J35 -> 0 | Q36: ='[1]ИИЦ по налогам и сборам'!K35 -> 0 | R36: ='[1]ИИЦ по налогам и сборам'!L35 -> 0 | S36: ='[1]ИИЦ по налогам и сборам'!M35 -> 0 | T36: ='[1]ИИЦ по налогам и сборам'!N35 -> 0 | U36: ='[1]ИИЦ по налогам и сборам'!O35 -> 0 | V36: ='[1]ИИЦ по налогам и сборам'!P35 -> 0 | W36: ='[1]ИИЦ по налогам и сборам'!Q35 -> 0 | X36: ='[1]ИИЦ по налогам и сборам'!R35 -> 0 | Y36: ='[1]ИИЦ по налогам и сборам'!S35 -> 0
A37: 33 | G37: КМ-про | H37: ='[1]КМ-про'!B35 -> 0 | I37: ='[1]КМ-про'!C35 -> 0 | J37: ='[1]КМ-про'!D35 -> 0 | K37: ='[1]КМ-про'!E35 -> 0 | L37: ='[1]КМ-про'!F35 -> 0 | M37: ='[1]КМ-про'!G35 -> 0 | N37: ='[1]КМ-про'!H35 -> 0 | O37: ='[1]КМ-про'!I35 -> 0 | P37: ='[1]КМ-про'!J35 -> 0 | Q37: ='[1]КМ-про'!K35 -> 0 | R37: ='[1]КМ-про'!L35 -> 0 | S37: ='[1]КМ-про'!M35 -> 0 | T37: ='[1]КМ-про'!N35 -> 0 | U37: ='[1]КМ-про'!O35 -> 0 | V37: ='[1]КМ-про'!P35 -> 0 | W37: ='[1]КМ-про'!Q35 -> 0 | X37: ='[1]КМ-про'!R35 -> 0 | Y37: ='[1]КМ-про'!S35 -> 0
A38: 34 | B38: Франкир | G38: Косметика+трейдинг | H38: ='[1]Косметика+трейдинг'!B35 -> 0 | I38: ='[1]Косметика+трейдинг'!C35 -> 0 | J38: ='[1]Косметика+трейдинг'!D35 -> 0 | K38: ='[1]Косметика+трейдинг'!E35 -> 0 | L38: ='[1]Косметика+трейдинг'!F35 -> 0 | M38: ='[1]Косметика+трейдинг'!G35 -> 0 | N38: ='[1]Косметика+трейдинг'!H35 -> 0 | O38: ='[1]Косметика+трейдинг'!I35 -> 0 | P38: ='[1]Косметика+трейдинг'!J35 -> 0 | Q38: ='[1]Косметика+трейдинг'!K35 -> 0 | R38: ='[1]Косметика+трейдинг'!L35 -> 0 | S38: ='[1]Косметика+трейдинг'!M35 -> 0 | T38: ='[1]Косметика+трейдинг'!N35 -> 0 | U38: ='[1]Косметика+трейдинг'!O35 -> 0 | V38: ='[1]Косметика+трейдинг'!P35 -> 0 | W38: ='[1]Косметика+трейдинг'!Q35 -> 0 | X38: ='[1]Косметика+трейдинг'!R35 -> 0 | Y38: ='[1]Косметика+трейдинг'!S35 -> 0
A39: 35 | G39: Леангрупп | H39: =[1]ЛЕАНгрупп!B35 -> 0 | I39: =[1]ЛЕАНгрупп!C35 -> 0 | J39: =[1]ЛЕАНгрупп!D35 -> 0 | K39: =[1]ЛЕАНгрупп!E35 -> 0 | L39: =[1]ЛЕАНгрупп!F35 -> 0 | M39: =[1]ЛЕАНгрупп!G35 -> 0 | N39: =[1]ЛЕАНгрупп!H35 -> 0 | O39: =[1]ЛЕАНгрупп!I35 -> 0 | P39: =[1]ЛЕАНгрупп!J35 -> 0 | Q39: =[1]ЛЕАНгрупп!K35 -> 0 | R39: =[1]ЛЕАНгрупп!L35 -> 0 | S39: =[1]ЛЕАНгрупп!M35 -> 0 | T39: =[1]ЛЕАНгрупп!N35 -> 0 | U39: =[1]ЛЕАНгрупп!O35 -> 0 | V39: =[1]ЛЕАНгрупп!P35 -> 0 | W39: =[1]ЛЕАНгрупп!Q35 -> 0 | X39: =[1]ЛЕАНгрупп!R35 -> 0 | Y39: =[1]ЛЕАНгрупп!S35 -> 0
A40: 36 | G40: ЛИДО РУП | H40: =[1]ЛИДО!B35 -> 0 | I40: =[1]ЛИДО!C35 -> 0 | J40: =[1]ЛИДО!D35 -> 0 | K40: =[1]ЛИДО!E35 -> 0 | L40: =[1]ЛИДО!F35 -> 0 | M40: =[1]ЛИДО!G35 -> 0 | N40: =[1]ЛИДО!H35 -> 0 | O40: =[1]ЛИДО!I35 -> 0 | P40: =[1]ЛИДО!J35 -> 0 | Q40: =[1]ЛИДО!K35 -> 0 | R40: =[1]ЛИДО!L35 -> 0 | S40: =[1]ЛИДО!M35 -> 0 | T40: =[1]ЛИДО!N35 -> 0 | U40: =[1]ЛИДО!O35 -> 0 | V40: =[1]ЛИДО!P35 -> 0 | W40: =[1]ЛИДО!Q35 -> 0 | X40: =[1]ЛИДО!R35 -> 0 | Y40: =[1]ЛИДО!S35 -> 0
A41: 37 | G41: Надежные программы НПЧУП | H41: ='[1]Надежные программы'!B35 -> 0 | I41: ='[1]Надежные программы'!C35 -> 0 | J41: ='[1]Надежные программы'!D35 -> 0 | K41: ='[1]Надежные программы'!E35 -> 0 | L41: ='[1]Надежные программы'!F35 -> 0 | M41: ='[1]Надежные программы'!G35 -> 0 | N41: ='[1]Надежные программы'!H35 -> 0 | O41: ='[1]Надежные программы'!I35 -> 0 | P41: ='[1]Надежные программы'!J35 -> 0 | Q41: ='[1]Надежные программы'!K35 -> 0 | R41: ='[1]Надежные программы'!L35 -> 0 | S41: ='[1]Надежные программы'!M35 -> 0 | T41: ='[1]Надежные программы'!N35 -> 0 | U41: ='[1]Надежные программы'!O35 -> 0 | V41: ='[1]Надежные программы'!P35 -> 0 | W41: ='[1]Надежные программы'!Q35 -> 0 | X41: ='[1]Надежные программы'!R35 -> 0 | Y41: ='[1]Надежные программы'!S35 -> 0
A42: 38 | G42: Нац.центр интеллектуальной собственности | H42: =[1]НЦИС!B35 -> 0 | I42: =[1]НЦИС!C35 -> 0 | J42: =[1]НЦИС!D35 -> 0 | K42: =[1]НЦИС!E35 -> 0 | L42: =[1]НЦИС!F35 -> 0 | M42: =[1]НЦИС!G35 -> 0 | N42: =[1]НЦИС!H35 -> 0 | O42: =[1]НЦИС!I35 -> 0 | P42: =[1]НЦИС!J35 -> 0 | Q42: =[1]НЦИС!K35 -> 0 | R42: =[1]НЦИС!L35 -> 0 | S42: =[1]НЦИС!M35 -> 0 | T42: =[1]НЦИС!N35 -> 0 | U42: =[1]НЦИС!O35 -> 0 | V42: =[1]НЦИС!P35 -> 0 | W42: =[1]НЦИС!Q35 -> 0 | X42: =[1]НЦИС!R35 -> 0 | Y42: =[1]НЦИС!S35 -> 0
A43: 39 | G43: Нотариальная контора Советского р-на | H43: =[1]Нотар.контора!B35 -> 0 | I43: =[1]Нотар.контора!C35 -> 0 | J43: =[1]Нотар.контора!D35 -> 0 | K43: =[1]Нотар.контора!E35 -> 0 | L43: =[1]Нотар.контора!F35 -> 0 | M43: =[1]Нотар.контора!G35 -> 0 | N43: =[1]Нотар.контора!H35 -> 0 | O43: =[1]Нотар.контора!I35 -> 0 | P43: =[1]Нотар.контора!J35 -> 0 | Q43: =[1]Нотар.контора!K35 -> 0 | R43: =[1]Нотар.контора!L35 -> 0 | S43: =[1]Нотар.контора!M35 -> 0 | T43: =[1]Нотар.контора!N35 -> 0 | U43: =[1]Нотар.контора!O35 -> 0 | V43: =[1]Нотар.контора!P35 -> 0 | W43: =[1]Нотар.контора!Q35 -> 0 | X43: =[1]Нотар.контора!R35 -> 0 | Y43: =[1]Нотар.контора!S35 -> 0
A44: 40 | G44: Отличные окна МНС ООО | H44: ='[1]Отличные окна '!B35 -> 0 | I44: ='[1]Отличные окна '!C35 -> 0 | J44: ='[1]Отличные окна '!D35 -> 0 | K44: ='[1]Отличные окна '!E35 -> 0 | L44: ='[1]Отличные окна '!F35 -> 0 | M44: ='[1]Отличные окна '!G35 -> 0 | N44: ='[1]Отличные окна '!H35 -> 0 | O44: ='[1]Отличные окна '!I35 -> 0 | P44: ='[1]Отличные окна '!J35 -> 0 | Q44: ='[1]Отличные окна '!K35 -> 0 | R44: ='[1]Отличные окна '!L35 -> 0 | S44: ='[1]Отличные окна '!M35 -> 0 | T44: ='[1]Отличные окна '!N35 -> 0 | U44: ='[1]Отличные окна '!O35 -> 0 | V44: ='[1]Отличные окна '!P35 -> 0 | W44: ='[1]Отличные окна '!Q35 -> 0 | X44: ='[1]Отличные окна '!R35 -> 0 | Y44: ='[1]Отличные окна '!S35 -> 0
A45: 41 | B45: Договор | C45: 944 | D45: 2013-12-05 | E45: 1989 | G45: Парфюмбытхим СООО | H45: =[1]Парфюмбытхим!B35 -> 0 | I45: =[1]Парфюмбытхим!C35 -> 0 | J45: =[1]Парфюмбытхим!D35 -> 0 | K45: =[1]Парфюмбытхим!E35 -> 0 | L45: =[1]Парфюмбытхим!F35 -> 0 | M45: =[1]Парфюмбытхим!G35 -> 0 | N45: =[1]Парфюмбытхим!H35 -> 0 | O45: =[1]Парфюмбытхим!I35 -> 0 | P45: =[1]Парфюмбытхим!J35 -> 0 | Q45: =[1]Парфюмбытхим!K35 -> 0 | R45: =[1]Парфюмбытхим!L35 -> 0 | S45: =[1]Парфюмбытхим!M35 -> 0 | T45: =[1]Парфюмбытхим!N35 -> 0 | U45: =[1]Парфюмбытхим!O35 -> 0 | V45: =[1]Парфюмбытхим!P35 -> 0 | W45: =[1]Парфюмбытхим!Q35 -> 0 | X45: =[1]Парфюмбытхим!R35 -> 0 | Y45: =[1]Парфюмбытхим!S35 -> 0
A46: 42 | G46: Парфюмтрейд | H46: =[1]ПарфюмТрейд!B35 -> 0 | I46: =[1]ПарфюмТрейд!C35 -> 0 | J46: =[1]ПарфюмТрейд!D35 -> 0 | K46: =[1]ПарфюмТрейд!E35 -> 0 | L46: =[1]ПарфюмТрейд!F35 -> 0 | M46: =[1]ПарфюмТрейд!G35 -> 0 | N46: =[1]ПарфюмТрейд!H35 -> 0 | O46: =[1]ПарфюмТрейд!I35 -> 0 | P46: =[1]ПарфюмТрейд!J35 -> 0 | Q46: =[1]ПарфюмТрейд!K35 -> 0 | R46: =[1]ПарфюмТрейд!L35 -> 0 | S46: =[1]ПарфюмТрейд!M35 -> 0 | T46: =[1]ПарфюмТрейд!N35 -> 0 | U46: =[1]ПарфюмТрейд!O35 -> 0 | V46: =[1]ПарфюмТрейд!P35 -> 0 | W46: =[1]ПарфюмТрейд!Q35 -> 0 | X46: =[1]ПарфюмТрейд!R35 -> 0 | Y46: =[1]ПарфюмТрейд!S35 -> 0
A47: 43 | B47: Договор | C47: 1090 | D47: 2012-12-29 | E47: 1181 | G47: Полипромсервис ООО | H47: =[1]Полипромсервис!B35 -> 0 | I47: =[1]Полипромсервис!C35 -> 0 | J47: =[1]Полипромсервис!D35 -> 0 | K47: =[1]Полипромсервис!E35 -> 0 | L47: =[1]Полипромсервис!F35 -> 0 | M47: =[1]Полипромсервис!G35 -> 0 | N47: =[1]Полипромсервис!H35 -> 0 | O47: =[1]Полипромсервис!I35 -> 0 | P47: =[1]Полипромсервис!J35 -> 0 | Q47: =[1]Полипромсервис!K35 -> 0 | R47: =[1]Полипромсервис!L35 -> 0 | S47: =[1]Полипромсервис!M35 -> 0 | T47: =[1]Полипромсервис!N35 -> 0 | U47: =[1]Полипромсервис!O35 -> 0 | V47: =[1]Полипромсервис!P35 -> 0 | W47: =[1]Полипромсервис!Q35 -> 0 | X47: =[1]Полипромсервис!R35 -> 0 | Y47: =[1]Полипромсервис!S35 -> 0
A48: 44 | G48: Правитэксперт | H48: =[1]ПравитЭксперт!B35 -> 0 | I48: =[1]ПравитЭксперт!C35 -> 0 | J48: =[1]ПравитЭксперт!D35 -> 0 | K48: =[1]ПравитЭксперт!E35 -> 0 | L48: =[1]ПравитЭксперт!F35 -> 0 | M48: =[1]ПравитЭксперт!G35 -> 0 | N48: =[1]ПравитЭксперт!H35 -> 0 | O48: =[1]ПравитЭксперт!I35 -> 0 | P48: =[1]ПравитЭксперт!J35 -> 0 | Q48: =[1]ПравитЭксперт!K35 -> 0 | R48: =[1]ПравитЭксперт!L35 -> 0 | S48: =[1]ПравитЭксперт!M35 -> 0 | T48: =[1]ПравитЭксперт!N35 -> 0 | U48: =[1]ПравитЭксперт!O35 -> 0 | V48: =[1]ПравитЭксперт!P35 -> 0 | W48: =[1]ПравитЭксперт!Q35 -> 0 | X48: =[1]ПравитЭксперт!R35 -> 0 | Y48: =[1]ПравитЭксперт!S35 -> 0
A49: 45 | G49: Правозащита | H49: =[1]Правозащита!B35 -> 0 | I49: =[1]Правозащита!C35 -> 0 | J49: =[1]Правозащита!D35 -> 0 | K49: =[1]Правозащита!E35 -> 0 | L49: =[1]Правозащита!F35 -> 0 | M49: =[1]Правозащита!G35 -> 0 | N49: =[1]Правозащита!H35 -> 0 | O49: =[1]Правозащита!I35 -> 0 | P49: =[1]Правозащита!J35 -> 0 | Q49: =[1]Правозащита!K35 -> 0 | R49: =[1]Правозащита!L35 -> 0 | S49: =[1]Правозащита!M35 -> 0 | T49: =[1]Правозащита!N35 -> 0 | U49: =[1]Правозащита!O35 -> 0 | V49: =[1]Правозащита!P35 -> 0 | W49: =[1]Правозащита!Q35 -> 0 | X49: =[1]Правозащита!R35 -> 0 | Y49: =[1]Правозащита!S35 -> 0
A50: 46 | G50: РРБ-Банк ЗАО | H50: ='[1]РРБ-Банк'!B35 -> 0 | I50: ='[1]РРБ-Банк'!C35 -> 0 | J50: ='[1]РРБ-Банк'!D35 -> 0 | K50: ='[1]РРБ-Банк'!E35 -> 0 | L50: ='[1]РРБ-Банк'!F35 -> 0 | M50: ='[1]РРБ-Банк'!G35 -> 0 | N50: ='[1]РРБ-Банк'!H35 -> 0 | O50: ='[1]РРБ-Банк'!I35 -> 0 | P50: ='[1]РРБ-Банк'!J35 -> 0 | Q50: ='[1]РРБ-Банк'!K35 -> 0 | R50: ='[1]РРБ-Банк'!L35 -> 0 | S50: ='[1]РРБ-Банк'!M35 -> 0 | T50: ='[1]РРБ-Банк'!N35 -> 0 | U50: ='[1]РРБ-Банк'!O35 -> 0 | V50: ='[1]РРБ-Банк'!P35 -> 0 | W50: ='[1]РРБ-Банк'!Q35 -> 0 | X50: ='[1]РРБ-Банк'!R35 -> 0 | Y50: ='[1]РРБ-Банк'!S35 -> 0
A51: 47 | G51: Синкевич ЧТСУП | H51: ='[1]Синкевич ЧТСУП'!B35 -> 0 | I51: ='[1]Синкевич ЧТСУП'!C35 -> 0 | J51: ='[1]Синкевич ЧТСУП'!D35 -> 0 | K51: ='[1]Синкевич ЧТСУП'!E35 -> 0 | L51: ='[1]Синкевич ЧТСУП'!F35 -> 0 | M51: ='[1]Синкевич ЧТСУП'!G35 -> 0 | N51: ='[1]Синкевич ЧТСУП'!H35 -> 0 | O51: ='[1]Синкевич ЧТСУП'!I35 -> 0 | P51: ='[1]Синкевич ЧТСУП'!J35 -> 0 | Q51: ='[1]Синкевич ЧТСУП'!K35 -> 0 | R51: ='[1]Синкевич ЧТСУП'!L35 -> 0 | S51: ='[1]Синкевич ЧТСУП'!M35 -> 0 | T51: ='[1]Синкевич ЧТСУП'!N35 -> 0 | U51: ='[1]Синкевич ЧТСУП'!O35 -> 0 | V51: ='[1]Синкевич ЧТСУП'!P35 -> 0 | W51: ='[1]Синкевич ЧТСУП'!Q35 -> 0 | X51: ='[1]Синкевич ЧТСУП'!R35 -> 0 | Y51: ='[1]Синкевич ЧТСУП'!S35 -> 0
A52: 48 | G52: Строительный континент ООО | H52: ='[1]Строительный континент'!B35 -> 0 | I52: ='[1]Строительный континент'!C35 -> 0 | J52: ='[1]Строительный континент'!D35 -> 0 | K52: ='[1]Строительный континент'!E35 -> 0 | L52: ='[1]Строительный континент'!F35 -> 0 | M52: ='[1]Строительный континент'!G35 -> 0 | N52: ='[1]Строительный континент'!H35 -> 0 | O52: ='[1]Строительный континент'!I35 -> 0 | P52: ='[1]Строительный континент'!J35 -> 0 | Q52: ='[1]Строительный континент'!K35 -> 0 | R52: ='[1]Строительный континент'!L35 -> 0 | S52: ='[1]Строительный континент'!M35 -> 0 | T52: ='[1]Строительный континент'!N35 -> 0 | U52: ='[1]Строительный континент'!O35 -> 0 | V52: ='[1]Строительный континент'!P35 -> 0 | W52: ='[1]Строительный континент'!Q35 -> 0 | X52: ='[1]Строительный континент'!R35 -> 0 | Y52: ='[1]Строительный континент'!S35 -> 0
A53: 49 | G53: Стройтрест №7 ОАО | H53: ='[1]Стройтрест 7'!B35 -> 0 | I53: ='[1]Стройтрест 7'!C35 -> 0 | J53: ='[1]Стройтрест 7'!D35 -> 0 | K53: ='[1]Стройтрест 7'!E35 -> 0 | L53: ='[1]Стройтрест 7'!F35 -> 0 | M53: ='[1]Стройтрест 7'!G35 -> 0 | N53: ='[1]Стройтрест 7'!H35 -> 0 | O53: ='[1]Стройтрест 7'!I35 -> 0 | P53: ='[1]Стройтрест 7'!J35 -> 0 | Q53: ='[1]Стройтрест 7'!K35 -> 0 | R53: ='[1]Стройтрест 7'!L35 -> 0 | S53: ='[1]Стройтрест 7'!M35 -> 0 | T53: ='[1]Стройтрест 7'!N35 -> 0 | U53: ='[1]Стройтрест 7'!O35 -> 0 | V53: ='[1]Стройтрест 7'!P35 -> 0 | W53: ='[1]Стройтрест 7'!Q35 -> 0 | X53: ='[1]Стройтрест 7'!R35 -> 0 | Y53: ='[1]Стройтрест 7'!S35 -> 0
A54: 50 | G54: СУ-2 ОАО Стройтрест №1 | H54: ='[1]СУ-2'!B35 -> 0 | I54: ='[1]СУ-2'!C35 -> 0 | J54: ='[1]СУ-2'!D35 -> 0 | K54: ='[1]СУ-2'!E35 -> 0 | L54: ='[1]СУ-2'!F35 -> 0 | M54: ='[1]СУ-2'!G35 -> 0 | N54: ='[1]СУ-2'!H35 -> 0 | O54: ='[1]СУ-2'!I35 -> 0 | P54: ='[1]СУ-2'!J35 -> 0 | Q54: ='[1]СУ-2'!K35 -> 0 | R54: ='[1]СУ-2'!L35 -> 0 | S54: ='[1]СУ-2'!M35 -> 0 | T54: ='[1]СУ-2'!N35 -> 0 | U54: ='[1]СУ-2'!O35 -> 0 | V54: ='[1]СУ-2'!P35 -> 0 | W54: ='[1]СУ-2'!Q35 -> 0 | X54: ='[1]СУ-2'!R35 -> 0 | Y54: ='[1]СУ-2'!S35 -> 0
A55: 51 | G55: СУ-3 ОАО Стройтрест №1 | H55: ='[1]СУ-3'!B35 -> 0 | I55: ='[1]СУ-3'!C35 -> 0 | J55: ='[1]СУ-3'!D35 -> 0 | K55: ='[1]СУ-3'!E35 -> 0 | L55: ='[1]СУ-3'!F35 -> 0 | M55: ='[1]СУ-3'!G35 -> 0 | N55: ='[1]СУ-3'!H35 -> 0 | O55: ='[1]СУ-3'!I35 -> 0 | P55: ='[1]СУ-3'!J35 -> 0 | Q55: ='[1]СУ-3'!K35 -> 0 | R55: ='[1]СУ-3'!L35 -> 0 | S55: ='[1]СУ-3'!M35 -> 0 | T55: ='[1]СУ-3'!N35 -> 0 | U55: ='[1]СУ-3'!O35 -> 0 | V55: ='[1]СУ-3'!P35 -> 0 | W55: ='[1]СУ-3'!Q35 -> 0 | X55: ='[1]СУ-3'!R35 -> 0 | Y55: ='[1]СУ-3'!S35 -> 0
A56: 52 | B56: Договор | C56: 3 | D56: 2014-01-03 | E56: 2003 | G56: ТАСК ЗАСО | H56: =[1]ТАСК!B35 -> 0 | I56: =[1]ТАСК!C35 -> 0 | J56: =[1]ТАСК!D35 -> 0 | K56: =[1]ТАСК!E35 -> 0 | L56: =[1]ТАСК!F35 -> 0 | M56: =[1]ТАСК!G35 -> 0 | N56: =[1]ТАСК!H35 -> 0 | O56: =[1]ТАСК!I35 -> 0 | P56: =[1]ТАСК!J35 -> 0 | Q56: =[1]ТАСК!K35 -> 0 | R56: =[1]ТАСК!L35 -> 0 | S56: =[1]ТАСК!M35 -> 0 | T56: =[1]ТАСК!N35 -> 0 | U56: =[1]ТАСК!O35 -> 0 | V56: =[1]ТАСК!P35 -> 0 | W56: =[1]ТАСК!Q35 -> 0 | X56: =[1]ТАСК!R35 -> 0 | Y56: =[1]ТАСК!S35 -> 0
A57: 53 | G57: Тендерный центр Мингорисполкома | H57: ='[1]Тенд.центр Мингорисполкома'!B35 -> 0 | I57: ='[1]Тенд.центр Мингорисполкома'!C35 -> 0 | J57: ='[1]Тенд.центр Мингорисполкома'!D35 -> 0 | K57: ='[1]Тенд.центр Мингорисполкома'!E35 -> 0 | L57: ='[1]Тенд.центр Мингорисполкома'!F35 -> 0 | M57: ='[1]Тенд.центр Мингорисполкома'!G35 -> 0 | N57: ='[1]Тенд.центр Мингорисполкома'!H35 -> 0 | O57: ='[1]Тенд.центр Мингорисполкома'!I35 -> 0 | P57: ='[1]Тенд.центр Мингорисполкома'!J35 -> 0 | Q57: ='[1]Тенд.центр Мингорисполкома'!K35 -> 0 | R57: ='[1]Тенд.центр Мингорисполкома'!L35 -> 0 | S57: ='[1]Тенд.центр Мингорисполкома'!M35 -> 0 | T57: ='[1]Тенд.центр Мингорисполкома'!N35 -> 0 | U57: ='[1]Тенд.центр Мингорисполкома'!O35 -> 0 | V57: ='[1]Тенд.центр Мингорисполкома'!P35 -> 0 | W57: ='[1]Тенд.центр Мингорисполкома'!Q35 -> 0 | X57: ='[1]Тенд.центр Мингорисполкома'!R35 -> 0 | Y57: ='[1]Тенд.центр Мингорисполкома'!S35 -> 0
A58: 54 | G58: TUT.BY МЕДИА ООО | H58: =[1]TUT.BY!B35 -> 0 | I58: =[1]TUT.BY!C35 -> 0 | J58: =[1]TUT.BY!D35 -> 0 | K58: =[1]TUT.BY!E35 -> 0 | L58: =[1]TUT.BY!F35 -> 0 | M58: =[1]TUT.BY!G35 -> 0 | N58: =[1]TUT.BY!H35 -> 0 | O58: =[1]TUT.BY!I35 -> 0 | P58: =[1]TUT.BY!J35 -> 0 | Q58: =[1]TUT.BY!K35 -> 0 | R58: =[1]TUT.BY!L35 -> 0 | S58: =[1]TUT.BY!M35 -> 0 | T58: =[1]TUT.BY!N35 -> 0 | U58: =[1]TUT.BY!O35 -> 0 | V58: =[1]TUT.BY!P35 -> 0 | W58: =[1]TUT.BY!Q35 -> 0 | X58: =[1]TUT.BY!R35 -> 0 | Y58: =[1]TUT.BY!S35 -> 0
A59: 55 | B59: Договор | C59: 322 | D59: 2008-11-12 | E59: 5246 | G59: ФедКон ОДО | H59: =[1]ФедКон!B35 -> 0 | I59: =[1]ФедКон!C35 -> 0 | J59: =[1]ФедКон!D35 -> 0 | K59: =[1]ФедКон!E35 -> 0 | L59: =[1]ФедКон!F35 -> 0 | M59: =[1]ФедКон!G35 -> 0 | N59: =[1]ФедКон!H35 -> 0 | O59: =[1]ФедКон!I35 -> 0 | P59: =[1]ФедКон!J35 -> 0 | Q59: =[1]ФедКон!K35 -> 0 | R59: =[1]ФедКон!L35 -> 0 | S59: =[1]ФедКон!M35 -> 0 | T59: =[1]ФедКон!N35 -> 0 | U59: =[1]ФедКон!O35 -> 0 | V59: =[1]ФедКон!P35 -> 0 | W59: =[1]ФедКон!Q35 -> 0 | X59: =[1]ФедКон!R35 -> 0 | Y59: =[1]ФедКон!S35 -> 0
A60: 56 | G60: Химремонт ОАО | H60: =[1]Химремонт!B35 -> 0 | I60: =[1]Химремонт!C35 -> 0 | J60: =[1]Химремонт!D35 -> 0 | K60: =[1]Химремонт!E35 -> 0 | L60: =[1]Химремонт!F35 -> 0 | M60: =[1]Химремонт!G35 -> 0 | N60: =[1]Химремонт!H35 -> 0 | O60: =[1]Химремонт!I35 -> 0 | P60: =[1]Химремонт!J35 -> 0 | Q60: =[1]Химремонт!K35 -> 0 | R60: =[1]Химремонт!L35 -> 0 | S60: =[1]Химремонт!M35 -> 0 | T60: =[1]Химремонт!N35 -> 0 | U60: =[1]Химремонт!O35 -> 0 | V60: =[1]Химремонт!P35 -> 0 | W60: =[1]Химремонт!Q35 -> 0 | X60: =[1]Химремонт!R35 -> 0 | Y60: =[1]Химремонт!S35 -> 0
A61: 57 | G61: Центр охраны труда и пром.безопасности ЗАО | H61: ='[1]Центр ОТ и ПБ'!B35 -> 0 | I61: ='[1]Центр ОТ и ПБ'!C35 -> 0 | J61: ='[1]Центр ОТ и ПБ'!D35 -> 0 | K61: ='[1]Центр ОТ и ПБ'!E35 -> 0 | L61: ='[1]Центр ОТ и ПБ'!F35 -> 0 | M61: ='[1]Центр ОТ и ПБ'!G35 -> 0 | N61: ='[1]Центр ОТ и ПБ'!H35 -> 0 | O61: ='[1]Центр ОТ и ПБ'!I35 -> 0 | P61: ='[1]Центр ОТ и ПБ'!J35 -> 0 | Q61: ='[1]Центр ОТ и ПБ'!K35 -> 0 | R61: ='[1]Центр ОТ и ПБ'!L35 -> 0 | S61: ='[1]Центр ОТ и ПБ'!M35 -> 0 | T61: ='[1]Центр ОТ и ПБ'!N35 -> 0 | U61: ='[1]Центр ОТ и ПБ'!O35 -> 0 | V61: ='[1]Центр ОТ и ПБ'!P35 -> 0 | W61: ='[1]Центр ОТ и ПБ'!Q35 -> 0 | X61: ='[1]Центр ОТ и ПБ'!R35 -> 0 | Y61: ='[1]Центр ОТ и ПБ'!S35 -> 0
A62: 58 | G62: Центр повыш.квалификации | H62: ='[1]Центр повыш.квалиф.'!B35 -> 0 | I62: ='[1]Центр повыш.квалиф.'!C35 -> 0 | J62: ='[1]Центр повыш.квалиф.'!D35 -> 0 | K62: ='[1]Центр повыш.квалиф.'!E35 -> 0 | L62: ='[1]Центр повыш.квалиф.'!F35 -> 0 | M62: ='[1]Центр повыш.квалиф.'!G35 -> 0 | N62: ='[1]Центр повыш.квалиф.'!H35 -> 0 | O62: ='[1]Центр повыш.квалиф.'!I35 -> 0 | P62: ='[1]Центр повыш.квалиф.'!J35 -> 0 | Q62: ='[1]Центр повыш.квалиф.'!K35 -> 0 | R62: ='[1]Центр повыш.квалиф.'!L35 -> 0 | S62: ='[1]Центр повыш.квалиф.'!M35 -> 0 | T62: ='[1]Центр повыш.квалиф.'!N35 -> 0 | U62: ='[1]Центр повыш.квалиф.'!O35 -> 0 | V62: ='[1]Центр повыш.квалиф.'!P35 -> 0 | W62: ='[1]Центр повыш.квалиф.'!Q35 -> 0 | X62: ='[1]Центр повыш.квалиф.'!R35 -> 0 | Y62: ='[1]Центр повыш.квалиф.'!S35 -> 0
A63: 59 | B63: Маркир | G63: ЦУМ Минск ОАО | H63: ='[1]ЦУМ Минск'!B35 -> 0 | I63: ='[1]ЦУМ Минск'!C35 -> 0 | J63: ='[1]ЦУМ Минск'!D35 -> 0 | K63: ='[1]ЦУМ Минск'!E35 -> 0 | L63: ='[1]ЦУМ Минск'!F35 -> 0 | M63: ='[1]ЦУМ Минск'!G35 -> 0 | N63: ='[1]ЦУМ Минск'!H35 -> 0 | O63: ='[1]ЦУМ Минск'!I35 -> 0 | P63: ='[1]ЦУМ Минск'!J35 -> 0 | Q63: ='[1]ЦУМ Минск'!K35 -> 0 | R63: ='[1]ЦУМ Минск'!L35 -> 0 | S63: ='[1]ЦУМ Минск'!M35 -> 0 | T63: ='[1]ЦУМ Минск'!N35 -> 0 | U63: ='[1]ЦУМ Минск'!O35 -> 0 | V63: ='[1]ЦУМ Минск'!P35 -> 0 | W63: ='[1]ЦУМ Минск'!Q35 -> 0 | X63: ='[1]ЦУМ Минск'!R35 -> 0 | Y63: ='[1]ЦУМ Минск'!S35 -> 0
A64: 60 | G64: Чистые родники | H64: ='[1]Чистые родники'!B35 -> 0 | I64: ='[1]Чистые родники'!C35 -> 0 | J64: ='[1]Чистые родники'!D35 -> 0 | K64: ='[1]Чистые родники'!E35 -> 0 | L64: ='[1]Чистые родники'!F35 -> 0 | M64: ='[1]Чистые родники'!G35 -> 0 | N64: ='[1]Чистые родники'!H35 -> 0 | O64: ='[1]Чистые родники'!I35 -> 0 | P64: ='[1]Чистые родники'!J35 -> 0 | Q64: ='[1]Чистые родники'!K35 -> 0 | R64: ='[1]Чистые родники'!L35 -> 0 | S64: ='[1]Чистые родники'!M35 -> 0 | T64: ='[1]Чистые родники'!N35 -> 0 | U64: ='[1]Чистые родники'!O35 -> 0 | V64: ='[1]Чистые родники'!P35 -> 0 | W64: ='[1]Чистые родники'!Q35 -> 0 | X64: ='[1]Чистые родники'!R35 -> 0 | Y64: ='[1]Чистые родники'!S35 -> 0
A65: 61 | G65: Электросила | H65: =[1]Электросила!B35 -> 0 | I65: =[1]Электросила!C35 -> 0 | J65: =[1]Электросила!D35 -> 0 | K65: =[1]Электросила!E35 -> 0 | L65: =[1]Электросила!F35 -> 0 | M65: =[1]Электросила!G35 -> 0 | N65: =[1]Электросила!H35 -> 0 | O65: =[1]Электросила!I35 -> 0 | P65: =[1]Электросила!J35 -> 0 | Q65: =[1]Электросила!K35 -> 0 | R65: =[1]Электросила!L35 -> 0 | S65: =[1]Электросила!M35 -> 0 | T65: =[1]Электросила!N35 -> 0 | U65: =[1]Электросила!O35 -> 0 | V65: =[1]Электросила!P35 -> 0 | W65: =[1]Электросила!Q35 -> 0 | X65: =[1]Электросила!R35 -> 0 | Y65: =[1]Электросила!S35 -> 0
A66: 62 | B66: Договор | C66: 22-02-11/301 | D66: 2012-09-17 | E66: 918 | G66: Этонир ЧТЭУП | H66: =[1]Этонир!B35 -> 0 | I66: =[1]Этонир!C35 -> 0 | J66: =[1]Этонир!D35 -> 0 | K66: =[1]Этонир!E35 -> 0 | L66: =[1]Этонир!F35 -> 0 | M66: =[1]Этонир!G35 -> 0 | N66: =[1]Этонир!H35 -> 0 | O66: =[1]Этонир!I35 -> 0 | P66: =[1]Этонир!J35 -> 0 | Q66: =[1]Этонир!K35 -> 0 | R66: =[1]Этонир!L35 -> 0 | S66: =[1]Этонир!M35 -> 0 | T66: =[1]Этонир!N35 -> 0 | U66: =[1]Этонир!O35 -> 0 | V66: =[1]Этонир!P35 -> 0 | W66: =[1]Этонир!Q35 -> 0 | X66: =[1]Этонир!R35 -> 0 | Y66: =[1]Этонир!S35 -> 0
A67: 63 | G67: Пролайт групп | H67: ='[1]Пролайт групп'!B35 -> 0 | I67: ='[1]Пролайт групп'!C35 -> 0 | J67: ='[1]Пролайт групп'!D35 -> 0 | K67: ='[1]Пролайт групп'!E35 -> 0 | L67: ='[1]Пролайт групп'!F35 -> 0 | M67: ='[1]Пролайт групп'!G35 -> 0 | N67: ='[1]Пролайт групп'!H35 -> 0 | O67: ='[1]Пролайт групп'!I35 -> 0 | P67: ='[1]Пролайт групп'!J35 -> 0 | Q67: ='[1]Пролайт групп'!K35 -> 0 | R67: ='[1]Пролайт групп'!L35 -> 0 | S67: ='[1]Пролайт групп'!M35 -> 0 | T67: ='[1]Пролайт групп'!N35 -> 0 | U67: ='[1]Пролайт групп'!O35 -> 0 | V67: ='[1]Пролайт групп'!P35 -> 0 | W67: ='[1]Пролайт групп'!Q35 -> 0 | X67: ='[1]Пролайт групп'!R35 -> 0 | Y67: ='[1]Пролайт групп'!S35 -> 0
A68: 64 | B68: Договор | C68: 527 | D68: 2010-05-12 | E68: 449 | F68: 71 | G68: Артронас ОДО | H68: =[1]Артронас!B35 -> 0 | I68: =[1]Артронас!C35 -> 0 | J68: =[1]Артронас!D35 -> 0 | K68: =[1]Артронас!E35 -> 0 | L68: =[1]Артронас!F35 -> 0 | M68: =[1]Артронас!G35 -> 0 | N68: =[1]Артронас!H35 -> 0 | O68: =[1]Артронас!I35 -> 0 | P68: =[1]Артронас!J35 -> 0 | Q68: =[1]Артронас!K35 -> 0 | R68: =[1]Артронас!L35 -> 0 | S68: =[1]Артронас!M35 -> 0 | T68: =[1]Артронас!N35 -> 0 | U68: =[1]Артронас!O35 -> 0 | V68: =[1]Артронас!P35 -> 0 | W68: =[1]Артронас!Q35 -> 0 | X68: =[1]Артронас!R35 -> 0 | Y68: =[1]Артронас!S35 -> 0
A69: 65 | G69: Хозторг | H69: =[1]Хозторг!B35 -> 0 | I69: =[1]Хозторг!C35 -> 0 | J69: =[1]Хозторг!D35 -> 0 | K69: =[1]Хозторг!E35 -> 0 | L69: =[1]Хозторг!F35 -> 0 | M69: =[1]Хозторг!G35 -> 0 | N69: =[1]Хозторг!H35 -> 0 | O69: =[1]Хозторг!I35 -> 0 | P69: =[1]Хозторг!J35 -> 0 | Q69: =[1]Хозторг!K35 -> 0 | R69: =[1]Хозторг!L35 -> 0 | S69: =[1]Хозторг!M35 -> 0 | T69: =[1]Хозторг!N35 -> 0 | U69: =[1]Хозторг!O35 -> 0 | V69: =[1]Хозторг!P35 -> 0 | W69: =[1]Хозторг!Q35 -> 0 | X69: =[1]Хозторг!R35 -> 0 | Y69: =[1]Хозторг!S35 -> 0
A70: 66 | G70: Инспекция труда | H70: ='[1]Инспекция труда'!B35 -> 0 | I70: ='[1]Инспекция труда'!C35 -> 0 | J70: ='[1]Инспекция труда'!D35 -> 0 | K70: ='[1]Инспекция труда'!E35 -> 0 | L70: ='[1]Инспекция труда'!F35 -> 0 | M70: ='[1]Инспекция труда'!G35 -> 0 | N70: ='[1]Инспекция труда'!H35 -> 0 | O70: ='[1]Инспекция труда'!I35 -> 0 | P70: ='[1]Инспекция труда'!J35 -> 0 | Q70: ='[1]Инспекция труда'!K35 -> 0 | R70: ='[1]Инспекция труда'!L35 -> 0 | S70: ='[1]Инспекция труда'!M35 -> 0 | T70: ='[1]Инспекция труда'!N35 -> 0 | U70: ='[1]Инспекция труда'!O35 -> 0 | V70: ='[1]Инспекция труда'!P35 -> 0 | W70: ='[1]Инспекция труда'!Q35 -> 0 | X70: ='[1]Инспекция труда'!R35 -> 0 | Y70: ='[1]Инспекция труда'!S35 -> 0
A71: 67 | G71: Агентство "Минск-Новости" | H71: ='[1]Минск-новости'!B35 -> 0 | I71: ='[1]Минск-новости'!C35 -> 0 | J71: ='[1]Минск-новости'!D35 -> 0 | K71: ='[1]Минск-новости'!E35 -> 0 | L71: ='[1]Минск-новости'!F35 -> 0 | M71: ='[1]Минск-новости'!G35 -> 0 | N71: ='[1]Минск-новости'!H35 -> 0 | O71: ='[1]Минск-новости'!I35 -> 0 | P71: ='[1]Минск-новости'!J35 -> 0 | Q71: ='[1]Минск-новости'!K35 -> 0 | R71: ='[1]Минск-новости'!L35 -> 0 | S71: ='[1]Минск-новости'!M35 -> 0 | T71: ='[1]Минск-новости'!N35 -> 0 | U71: ='[1]Минск-новости'!O35 -> 0 | V71: ='[1]Минск-новости'!P35 -> 0 | W71: ='[1]Минск-новости'!Q35 -> 0 | X71: ='[1]Минск-новости'!R35 -> 0 | Y71: ='[1]Минск-новости'!S35 -> 0
A72: 68 | G72: МГПТК полиграфии УО | H72: ='[1]МГПТК полиграфии'!B35 -> 0 | I72: ='[1]МГПТК полиграфии'!C35 -> 0 | J72: ='[1]МГПТК полиграфии'!D35 -> 0 | K72: ='[1]МГПТК полиграфии'!E35 -> 0 | L72: ='[1]МГПТК полиграфии'!F35 -> 0 | M72: ='[1]МГПТК полиграфии'!G35 -> 0 | N72: ='[1]МГПТК полиграфии'!H35 -> 0 | O72: ='[1]МГПТК полиграфии'!I35 -> 0 | P72: ='[1]МГПТК полиграфии'!J35 -> 0 | Q72: ='[1]МГПТК полиграфии'!K35 -> 0 | R72: ='[1]МГПТК полиграфии'!L35 -> 0 | S72: ='[1]МГПТК полиграфии'!M35 -> 0 | T72: ='[1]МГПТК полиграфии'!N35 -> 0 | U72: ='[1]МГПТК полиграфии'!O35 -> 0 | V72: ='[1]МГПТК полиграфии'!P35 -> 0 | W72: ='[1]МГПТК полиграфии'!Q35 -> 0 | X72: ='[1]МГПТК полиграфии'!R35 -> 0 | Y72: ='[1]МГПТК полиграфии'!S35 -> 0
A73: 69 | G73: Рекомбис | H73: =[1]Рекомбис!B35 -> 0 | I73: =[1]Рекомбис!C35 -> 0 | J73: =[1]Рекомбис!D35 -> 0 | K73: =[1]Рекомбис!E35 -> 0 | L73: =[1]Рекомбис!F35 -> 0 | M73: =[1]Рекомбис!G35 -> 0 | N73: =[1]Рекомбис!H35 -> 0 | O73: =[1]Рекомбис!I35 -> 0 | P73: =[1]Рекомбис!J35 -> 0 | Q73: =[1]Рекомбис!K35 -> 0 | R73: =[1]Рекомбис!L35 -> 0 | S73: =[1]Рекомбис!M35 -> 0 | T73: =[1]Рекомбис!N35 -> 0 | U73: =[1]Рекомбис!O35 -> 0 | V73: =[1]Рекомбис!P35 -> 0 | W73: =[1]Рекомбис!Q35 -> 0 | X73: =[1]Рекомбис!R35 -> 0 | Y73: =[1]Рекомбис!S35 -> 0
A74: 70 | G74: Оргстрой ОАО | H74: =[1]ОргСтрой!B35 -> 0 | I74: =[1]ОргСтрой!C35 -> 0 | J74: =[1]ОргСтрой!D35 -> 0 | K74: =[1]ОргСтрой!E35 -> 0 | L74: =[1]ОргСтрой!F35 -> 0 | M74: =[1]ОргСтрой!G35 -> 0 | N74: =[1]ОргСтрой!H35 -> 0 | O74: =[1]ОргСтрой!I35 -> 0 | P74: =[1]ОргСтрой!J35 -> 0 | Q74: =[1]ОргСтрой!K35 -> 0 | R74: =[1]ОргСтрой!L35 -> 0 | S74: =[1]ОргСтрой!M35 -> 0 | T74: =[1]ОргСтрой!N35 -> 0 | U74: =[1]ОргСтрой!O35 -> 0 | V74: =[1]ОргСтрой!P35 -> 0 | W74: =[1]ОргСтрой!Q35 -> 0 | X74: =[1]ОргСтрой!R35 -> 0 | Y74: =[1]ОргСтрой!S35 -> 0
A75: 71 | G75: Лекс-Патент | H75: ='[1]Лекс-патент'!B35 -> 0 | I75: ='[1]Лекс-патент'!C35 -> 0 | J75: ='[1]Лекс-патент'!D35 -> 0 | K75: ='[1]Лекс-патент'!E35 -> 0 | L75: ='[1]Лекс-патент'!F35 -> 0 | M75: ='[1]Лекс-патент'!G35 -> 0 | N75: ='[1]Лекс-патент'!H35 -> 0 | O75: ='[1]Лекс-патент'!I35 -> 0 | P75: ='[1]Лекс-патент'!J35 -> 0 | Q75: ='[1]Лекс-патент'!K35 -> 0 | R75: ='[1]Лекс-патент'!L35 -> 0 | S75: ='[1]Лекс-патент'!M35 -> 0 | T75: ='[1]Лекс-патент'!N35 -> 0 | U75: ='[1]Лекс-патент'!O35 -> 0 | V75: ='[1]Лекс-патент'!P35 -> 0 | W75: ='[1]Лекс-патент'!Q35 -> 0 | X75: ='[1]Лекс-патент'!R35 -> 0 | Y75: ='[1]Лекс-патент'!S35 -> 0
A76: 72 | G76: БелЕвросеть | H76: =[1]БелЕвросеть!B35 -> 0 | I76: =[1]БелЕвросеть!C35 -> 0 | J76: =[1]БелЕвросеть!D35 -> 0 | K76: =[1]БелЕвросеть!E35 -> 0 | L76: =[1]БелЕвросеть!F35 -> 0 | M76: =[1]БелЕвросеть!G35 -> 0 | N76: =[1]БелЕвросеть!H35 -> 0 | O76: =[1]БелЕвросеть!I35 -> 0 | P76: =[1]БелЕвросеть!J35 -> 0 | Q76: =[1]БелЕвросеть!K35 -> 0 | R76: =[1]БелЕвросеть!L35 -> 0 | S76: =[1]БелЕвросеть!M35 -> 0 | T76: =[1]БелЕвросеть!N35 -> 0 | U76: =[1]БелЕвросеть!O35 -> 0 | V76: =[1]БелЕвросеть!P35 -> 0 | W76: =[1]БелЕвросеть!Q35 -> 0 | X76: =[1]БелЕвросеть!R35 -> 0 | Y76: =[1]БелЕвросеть!S35 -> 0
A77: 73 | G77: Белнифоком | H77: =[1]Белнифоком!B35 -> 0 | I77: =[1]Белнифоком!C35 -> 0 | J77: =[1]Белнифоком!D35 -> 0 | K77: =[1]Белнифоком!E35 -> 0 | L77: =[1]Белнифоком!F35 -> 0 | M77: =[1]Белнифоком!G35 -> 0 | N77: =[1]Белнифоком!H35 -> 0 | O77: =[1]Белнифоком!I35 -> 0 | P77: =[1]Белнифоком!J35 -> 0 | Q77: =[1]Белнифоком!K35 -> 0 | R77: =[1]Белнифоком!L35 -> 0 | S77: =[1]Белнифоком!M35 -> 0 | T77: =[1]Белнифоком!N35 -> 0 | U77: =[1]Белнифоком!O35 -> 0 | V77: =[1]Белнифоком!P35 -> 0 | W77: =[1]Белнифоком!Q35 -> 0 | X77: =[1]Белнифоком!R35 -> 0 | Y77: =[1]Белнифоком!S35 -> 0
A78: 74 | G78: IT-Эксперт | H78: ='[1]IT-Эксперт'!B35 -> 0 | I78: ='[1]IT-Эксперт'!C35 -> 0 | J78: ='[1]IT-Эксперт'!D35 -> 0 | K78: ='[1]IT-Эксперт'!E35 -> 0 | L78: ='[1]IT-Эксперт'!F35 -> 0 | M78: ='[1]IT-Эксперт'!G35 -> 0 | N78: ='[1]IT-Эксперт'!H35 -> 0 | O78: ='[1]IT-Эксперт'!I35 -> 0 | P78: ='[1]IT-Эксперт'!J35 -> 0 | Q78: ='[1]IT-Эксперт'!K35 -> 0 | R78: ='[1]IT-Эксперт'!L35 -> 0 | S78: ='[1]IT-Эксперт'!M35 -> 0 | T78: ='[1]IT-Эксперт'!N35 -> 0 | U78: ='[1]IT-Эксперт'!O35 -> 0 | V78: ='[1]IT-Эксперт'!P35 -> 0 | W78: ='[1]IT-Эксперт'!Q35 -> 0 | X78: ='[1]IT-Эксперт'!R35 -> 0 | Y78: ='[1]IT-Эксперт'!S35 -> 0
A79: 75 | G79: Облачный хостинг | H79: ='[1]Облачный хостинг'!B35 -> 0 | I79: ='[1]Облачный хостинг'!C35 -> 0 | J79: ='[1]Облачный хостинг'!D35 -> 0 | K79: ='[1]Облачный хостинг'!E35 -> 0 | L79: ='[1]Облачный хостинг'!F35 -> 0 | M79: ='[1]Облачный хостинг'!G35 -> 0 | N79: ='[1]Облачный хостинг'!H35 -> 0 | O79: ='[1]Облачный хостинг'!I35 -> 0 | P79: ='[1]Облачный хостинг'!J35 -> 0 | Q79: ='[1]Облачный хостинг'!K35 -> 0 | R79: ='[1]Облачный хостинг'!L35 -> 0 | S79: ='[1]Облачный хостинг'!M35 -> 0 | T79: ='[1]Облачный хостинг'!N35 -> 0 | U79: ='[1]Облачный хостинг'!O35 -> 0 | V79: ='[1]Облачный хостинг'!P35 -> 0 | W79: ='[1]Облачный хостинг'!Q35 -> 0 | X79: ='[1]Облачный хостинг'!R35 -> 0 | Y79: ='[1]Облачный хостинг'!S35 -> 0
A80: 76 | G80: Банковское дело ООО | H80: ='[1]Банковское дело'!B35 -> 0 | I80: ='[1]Банковское дело'!C35 -> 0 | J80: ='[1]Банковское дело'!D35 -> 0 | K80: ='[1]Банковское дело'!E35 -> 0 | L80: ='[1]Банковское дело'!F35 -> 0 | M80: ='[1]Банковское дело'!G35 -> 0 | N80: ='[1]Банковское дело'!H35 -> 0 | O80: ='[1]Банковское дело'!I35 -> 0 | P80: ='[1]Банковское дело'!J35 -> 0 | Q80: ='[1]Банковское дело'!K35 -> 0 | R80: ='[1]Банковское дело'!L35 -> 0 | S80: ='[1]Банковское дело'!M35 -> 0 | T80: ='[1]Банковское дело'!N35 -> 0 | U80: ='[1]Банковское дело'!O35 -> 0 | V80: ='[1]Банковское дело'!P35 -> 0 | W80: ='[1]Банковское дело'!Q35 -> 0 | X80: ='[1]Банковское дело'!R35 -> 0 | Y80: ='[1]Банковское дело'!S35 -> 0
A81: 77 | G81: Люфтганза | H81: =[1]Люфтганза!B35 -> 0 | I81: =[1]Люфтганза!C35 -> 0 | J81: =[1]Люфтганза!D35 -> 0 | K81: =[1]Люфтганза!E35 -> 0 | L81: =[1]Люфтганза!F35 -> 0 | M81: =[1]Люфтганза!G35 -> 0 | N81: =[1]Люфтганза!H35 -> 0 | O81: =[1]Люфтганза!I35 -> 0 | P81: =[1]Люфтганза!J35 -> 0 | Q81: =[1]Люфтганза!K35 -> 0 | R81: =[1]Люфтганза!L35 -> 0 | S81: =[1]Люфтганза!M35 -> 0 | T81: =[1]Люфтганза!N35 -> 0 | U81: =[1]Люфтганза!O35 -> 0 | V81: =[1]Люфтганза!P35 -> 0 | W81: =[1]Люфтганза!Q35 -> 0 | X81: =[1]Люфтганза!R35 -> 0 | Y81: =[1]Люфтганза!S35 -> 0
A82: 78 | G82: Управление по гражд. и миграции Мингорисполкома | H82: ='[1]Упр.гражд.и миграции'!B35 -> 0 | I82: ='[1]Упр.гражд.и миграции'!C35 -> 0 | J82: ='[1]Упр.гражд.и миграции'!D35 -> 0 | K82: ='[1]Упр.гражд.и миграции'!E35 -> 0 | L82: ='[1]Упр.гражд.и миграции'!F35 -> 0 | M82: ='[1]Упр.гражд.и миграции'!G35 -> 0 | N82: ='[1]Упр.гражд.и миграции'!H35 -> 0 | O82: ='[1]Упр.гражд.и миграции'!I35 -> 0 | P82: ='[1]Упр.гражд.и миграции'!J35 -> 0 | Q82: ='[1]Упр.гражд.и миграции'!K35 -> 0 | R82: ='[1]Упр.гражд.и миграции'!L35 -> 0 | S82: ='[1]Упр.гражд.и миграции'!M35 -> 0 | T82: ='[1]Упр.гражд.и миграции'!N35 -> 0 | U82: ='[1]Упр.гражд.и миграции'!O35 -> 0 | V82: ='[1]Упр.гражд.и миграции'!P35 -> 0 | W82: ='[1]Упр.гражд.и миграции'!Q35 -> 0 | X82: ='[1]Упр.гражд.и миграции'!R35 -> 0 | Y82: ='[1]Упр.гражд.и миграции'!S35 -> 0
A83: 79 | G83: Грандмоторс ИП | H83: =[1]Грандмоторс!B35 -> 0 | I83: =[1]Грандмоторс!C35 -> 0 | J83: =[1]Грандмоторс!D35 -> 0 | K83: =[1]Грандмоторс!E35 -> 0 | L83: =[1]Грандмоторс!F35 -> 0 | M83: =[1]Грандмоторс!G35 -> 0 | N83: =[1]Грандмоторс!H35 -> 0 | O83: =[1]Грандмоторс!I35 -> 0 | P83: =[1]Грандмоторс!J35 -> 0 | Q83: =[1]Грандмоторс!K35 -> 0 | R83: =[1]Грандмоторс!L35 -> 0 | S83: =[1]Грандмоторс!M35 -> 0 | T83: =[1]Грандмоторс!N35 -> 0 | U83: =[1]Грандмоторс!O35 -> 0 | V83: =[1]Грандмоторс!P35 -> 0 | W83: =[1]Грандмоторс!Q35 -> 0 | X83: =[1]Грандмоторс!R35 -> 0 | Y83: =[1]Грандмоторс!S35 -> 0
A84: 80 | G84: Бизнес-системы ЧП | H84: ='[1]Бизнес-системы'!B35 -> 0 | I84: ='[1]Бизнес-системы'!C35 -> 0 | J84: ='[1]Бизнес-системы'!D35 -> 0 | K84: ='[1]Бизнес-системы'!E35 -> 0 | L84: ='[1]Бизнес-системы'!F35 -> 0 | M84: ='[1]Бизнес-системы'!G35 -> 0 | N84: ='[1]Бизнес-системы'!H35 -> 0 | O84: ='[1]Бизнес-системы'!I35 -> 0 | P84: ='[1]Бизнес-системы'!J35 -> 0 | Q84: ='[1]Бизнес-системы'!K35 -> 0 | R84: ='[1]Бизнес-системы'!L35 -> 0 | S84: ='[1]Бизнес-системы'!M35 -> 0 | T84: ='[1]Бизнес-системы'!N35 -> 0 | U84: ='[1]Бизнес-системы'!O35 -> 0 | V84: ='[1]Бизнес-системы'!P35 -> 0 | W84: ='[1]Бизнес-системы'!Q35 -> 0 | X84: ='[1]Бизнес-системы'!R35 -> 0 | Y84: ='[1]Бизнес-системы'!S35 -> 0
A85: 81 | G85: Профит-ВК | H85: ='[1]Профит-ВК'!B35 -> 0 | I85: ='[1]Профит-ВК'!C35 -> 0 | J85: ='[1]Профит-ВК'!D35 -> 0 | K85: ='[1]Профит-ВК'!E35 -> 0 | L85: ='[1]Профит-ВК'!F35 -> 0 | M85: ='[1]Профит-ВК'!G35 -> 0 | N85: ='[1]Профит-ВК'!H35 -> 0 | O85: ='[1]Профит-ВК'!I35 -> 0 | P85: ='[1]Профит-ВК'!J35 -> 0 | Q85: ='[1]Профит-ВК'!K35 -> 0 | R85: ='[1]Профит-ВК'!L35 -> 0 | S85: ='[1]Профит-ВК'!M35 -> 0 | T85: ='[1]Профит-ВК'!N35 -> 0 | U85: ='[1]Профит-ВК'!O35 -> 0 | V85: ='[1]Профит-ВК'!P35 -> 0 | W85: ='[1]Профит-ВК'!Q35 -> 0 | X85: ='[1]Профит-ВК'!R35 -> 0 | Y85: ='[1]Профит-ВК'!S35 -> 0
A86: 82 | G86: Академия МВД | H86: ='[1]Академия МВД'!B35 -> 0 | I86: ='[1]Академия МВД'!C35 -> 0 | J86: ='[1]Академия МВД'!D35 -> 0 | K86: ='[1]Академия МВД'!E35 -> 0 | L86: ='[1]Академия МВД'!F35 -> 0 | M86: ='[1]Академия МВД'!G35 -> 0 | N86: ='[1]Академия МВД'!H35 -> 0 | O86: ='[1]Академия МВД'!I35 -> 0 | P86: ='[1]Академия МВД'!J35 -> 0 | Q86: ='[1]Академия МВД'!K35 -> 0 | R86: ='[1]Академия МВД'!L35 -> 0 | S86: ='[1]Академия МВД'!M35 -> 0 | T86: ='[1]Академия МВД'!N35 -> 0 | U86: ='[1]Академия МВД'!O35 -> 0 | V86: ='[1]Академия МВД'!P35 -> 0 | W86: ='[1]Академия МВД'!Q35 -> 0 | X86: ='[1]Академия МВД'!R35 -> 0 | Y86: ='[1]Академия МВД'!S35 -> 0
A87: 83 | G87: Белтопгаз-Комплект | H87: ='[1]Белтопгаз-Комплект'!B35 -> 0 | I87: ='[1]Белтопгаз-Комплект'!C35 -> 0 | J87: ='[1]Белтопгаз-Комплект'!D35 -> 0 | K87: ='[1]Белтопгаз-Комплект'!E35 -> 0 | L87: ='[1]Белтопгаз-Комплект'!F35 -> 0 | M87: ='[1]Белтопгаз-Комплект'!G35 -> 0 | N87: ='[1]Белтопгаз-Комплект'!H35 -> 0 | O87: ='[1]Белтопгаз-Комплект'!I35 -> 0 | P87: ='[1]Белтопгаз-Комплект'!J35 -> 0 | Q87: ='[1]Белтопгаз-Комплект'!K35 -> 0 | R87: ='[1]Белтопгаз-Комплект'!L35 -> 0 | S87: ='[1]Белтопгаз-Комплект'!M35 -> 0 | T87: ='[1]Белтопгаз-Комплект'!N35 -> 0 | U87: ='[1]Белтопгаз-Комплект'!O35 -> 0 | V87: ='[1]Белтопгаз-Комплект'!P35 -> 0 | W87: ='[1]Белтопгаз-Комплект'!Q35 -> 0 | X87: ='[1]Белтопгаз-Комплект'!R35 -> 0 | Y87: ='[1]Белтопгаз-Комплект'!S35 -> 0
A88: 84 | G88: Дансис | H88: =[1]Дансис!B35 -> 0 | I88: =[1]Дансис!C35 -> 0 | J88: =[1]Дансис!D35 -> 0 | K88: =[1]Дансис!E35 -> 0 | L88: =[1]Дансис!F35 -> 0 | M88: =[1]Дансис!G35 -> 0 | N88: =[1]Дансис!H35 -> 0 | O88: =[1]Дансис!I35 -> 0 | P88: =[1]Дансис!J35 -> 0 | Q88: =[1]Дансис!K35 -> 0 | R88: =[1]Дансис!L35 -> 0 | S88: =[1]Дансис!M35 -> 0 | T88: =[1]Дансис!N35 -> 0 | U88: =[1]Дансис!O35 -> 0 | V88: =[1]Дансис!P35 -> 0 | W88: =[1]Дансис!Q35 -> 0 | X88: =[1]Дансис!R35 -> 0 | Y88: =[1]Дансис!S35 -> 0
A89: 85 | B89: Франкир | G89: Издательский дом "Звязда" РИУ | H89: ='[1]ИД Звязда'!B35 -> 0 | I89: ='[1]ИД Звязда'!C35 -> 0 | J89: ='[1]ИД Звязда'!D35 -> 0 | K89: ='[1]ИД Звязда'!E35 -> 0 | L89: ='[1]ИД Звязда'!F35 -> 0 | M89: ='[1]ИД Звязда'!G35 -> 0 | N89: ='[1]ИД Звязда'!H35 -> 0 | O89: ='[1]ИД Звязда'!I35 -> 0 | P89: ='[1]ИД Звязда'!J35 -> 0 | Q89: ='[1]ИД Звязда'!K35 -> 0 | R89: ='[1]ИД Звязда'!L35 -> 0 | S89: ='[1]ИД Звязда'!M35 -> 0 | T89: ='[1]ИД Звязда'!N35 -> 0 | U89: ='[1]ИД Звязда'!O35 -> 0 | V89: ='[1]ИД Звязда'!P35 -> 0 | W89: ='[1]ИД Звязда'!Q35 -> 0 | X89: ='[1]ИД Звязда'!R35 -> 0 | Y89: ='[1]ИД Звязда'!S35 -> 0
A90: 86 | G90: Институт порошковой металлургии ГНУ | H90: ='[1]Институт порошк.металлург.'!B35 -> 0 | I90: ='[1]Институт порошк.металлург.'!C35 -> 0 | J90: ='[1]Институт порошк.металлург.'!D35 -> 0 | K90: ='[1]Институт порошк.металлург.'!E35 -> 0 | L90: ='[1]Институт порошк.металлург.'!F35 -> 0 | M90: ='[1]Институт порошк.металлург.'!G35 -> 0 | N90: ='[1]Институт порошк.металлург.'!H35 -> 0 | O90: ='[1]Институт порошк.металлург.'!I35 -> 0 | P90: ='[1]Институт порошк.металлург.'!J35 -> 0 | Q90: ='[1]Институт порошк.металлург.'!K35 -> 0 | R90: ='[1]Институт порошк.металлург.'!L35 -> 0 | S90: ='[1]Институт порошк.металлург.'!M35 -> 0 | T90: ='[1]Институт порошк.металлург.'!N35 -> 0 | U90: ='[1]Институт порошк.металлург.'!O35 -> 0 | V90: ='[1]Институт порошк.металлург.'!P35 -> 0 | W90: ='[1]Институт порошк.металлург.'!Q35 -> 0 | X90: ='[1]Институт порошк.металлург.'!R35 -> 0 | Y90: ='[1]Институт порошк.металлург.'!S35 -> 0
A91: 87 | G91: Минская городская телефонная сеть | H91: =[1]МГТС!B35 -> 0 | I91: =[1]МГТС!C35 -> 0 | J91: =[1]МГТС!D35 -> 0 | K91: =[1]МГТС!E35 -> 0 | L91: =[1]МГТС!F35 -> 0 | M91: =[1]МГТС!G35 -> 0 | N91: =[1]МГТС!H35 -> 0 | O91: =[1]МГТС!I35 -> 0 | P91: =[1]МГТС!J35 -> 0 | Q91: =[1]МГТС!K35 -> 0 | R91: =[1]МГТС!L35 -> 0 | S91: =[1]МГТС!M35 -> 0 | T91: =[1]МГТС!N35 -> 0 | U91: =[1]МГТС!O35 -> 0 | V91: =[1]МГТС!P35 -> 0 | W91: =[1]МГТС!Q35 -> 0 | X91: =[1]МГТС!R35 -> 0 | Y91: =[1]МГТС!S35 -> 0
A92: 88 | G92: Минскоблсельстрой УП | H92: =[1]МинскОблсельстрой!B35 -> 0 | I92: =[1]МинскОблсельстрой!C35 -> 0 | J92: =[1]МинскОблсельстрой!D35 -> 0 | K92: =[1]МинскОблсельстрой!E35 -> 0 | L92: =[1]МинскОблсельстрой!F35 -> 0 | M92: =[1]МинскОблсельстрой!G35 -> 0 | N92: =[1]МинскОблсельстрой!H35 -> 0 | O92: =[1]МинскОблсельстрой!I35 -> 0 | P92: =[1]МинскОблсельстрой!J35 -> 0 | Q92: =[1]МинскОблсельстрой!K35 -> 0 | R92: =[1]МинскОблсельстрой!L35 -> 0 | S92: =[1]МинскОблсельстрой!M35 -> 0 | T92: =[1]МинскОблсельстрой!N35 -> 0 | U92: =[1]МинскОблсельстрой!O35 -> 0 | V92: =[1]МинскОблсельстрой!P35 -> 0 | W92: =[1]МинскОблсельстрой!Q35 -> 0 | X92: =[1]МинскОблсельстрой!R35 -> 0 | Y92: =[1]МинскОблсельстрой!S35 -> 0
A93: 89 | B93: Франкир | G93: СмартВэй | H93: =[1]СмартВэй!B35 -> 0 | I93: =[1]СмартВэй!C35 -> 0 | J93: =[1]СмартВэй!D35 -> 0 | K93: =[1]СмартВэй!E35 -> 0 | L93: =[1]СмартВэй!F35 -> 0 | M93: =[1]СмартВэй!G35 -> 0 | N93: =[1]СмартВэй!H35 -> 0 | O93: =[1]СмартВэй!I35 -> 0 | P93: =[1]СмартВэй!J35 -> 0 | Q93: =[1]СмартВэй!K35 -> 0 | R93: =[1]СмартВэй!L35 -> 0 | S93: =[1]СмартВэй!M35 -> 0 | T93: =[1]СмартВэй!N35 -> 0 | U93: =[1]СмартВэй!O35 -> 0 | V93: =[1]СмартВэй!P35 -> 0 | W93: =[1]СмартВэй!Q35 -> 0 | X93: =[1]СмартВэй!R35 -> 0 | Y93: =[1]СмартВэй!S35 -> 0
A94: 90 | G94: Столичное телевидение телеканал | H94: ='[1]Столичное телевидение'!B35 -> 0 | I94: ='[1]Столичное телевидение'!C35 -> 0 | J94: ='[1]Столичное телевидение'!D35 -> 0 | K94: ='[1]Столичное телевидение'!E35 -> 0 | L94: ='[1]Столичное телевидение'!F35 -> 0 | M94: ='[1]Столичное телевидение'!G35 -> 0 | N94: ='[1]Столичное телевидение'!H35 -> 0 | O94: ='[1]Столичное телевидение'!I35 -> 0 | P94: ='[1]Столичное телевидение'!J35 -> 0 | Q94: ='[1]Столичное телевидение'!K35 -> 0 | R94: ='[1]Столичное телевидение'!L35 -> 0 | S94: ='[1]Столичное телевидение'!M35 -> 0 | T94: ='[1]Столичное телевидение'!N35 -> 0 | U94: ='[1]Столичное телевидение'!O35 -> 0 | V94: ='[1]Столичное телевидение'!P35 -> 0 | W94: ='[1]Столичное телевидение'!Q35 -> 0 | X94: ='[1]Столичное телевидение'!R35 -> 0 | Y94: ='[1]Столичное телевидение'!S35 -> 0
A95: 91 | G95: Сырьевые ресурсы | H95: ='[1]Сырьевые ресурсы'!B35 -> 0 | I95: ='[1]Сырьевые ресурсы'!C35 -> 0 | J95: ='[1]Сырьевые ресурсы'!D35 -> 0 | K95: ='[1]Сырьевые ресурсы'!E35 -> 0 | L95: ='[1]Сырьевые ресурсы'!F35 -> 0 | M95: ='[1]Сырьевые ресурсы'!G35 -> 0 | N95: ='[1]Сырьевые ресурсы'!H35 -> 0 | O95: ='[1]Сырьевые ресурсы'!I35 -> 0 | P95: ='[1]Сырьевые ресурсы'!J35 -> 0 | Q95: ='[1]Сырьевые ресурсы'!K35 -> 0 | R95: ='[1]Сырьевые ресурсы'!L35 -> 0 | S95: ='[1]Сырьевые ресурсы'!M35 -> 0 | T95: ='[1]Сырьевые ресурсы'!N35 -> 0 | U95: ='[1]Сырьевые ресурсы'!O35 -> 0 | V95: ='[1]Сырьевые ресурсы'!P35 -> 0 | W95: ='[1]Сырьевые ресурсы'!Q35 -> 0 | X95: ='[1]Сырьевые ресурсы'!R35 -> 0 | Y95: ='[1]Сырьевые ресурсы'!S35 -> 0
A96: 92 | B96: Договор | C96: 391 | D96: 2013-04-22 | E96: 1361 | G96: Фэмистиль ЧУП | H96: =[1]Фэмистиль!B35 -> 0 | I96: =[1]Фэмистиль!C35 -> 0 | J96: =[1]Фэмистиль!D35 -> 0 | K96: =[1]Фэмистиль!E35 -> 0 | L96: =[1]Фэмистиль!F35 -> 0 | M96: =[1]Фэмистиль!G35 -> 0 | N96: =[1]Фэмистиль!H35 -> 0 | O96: =[1]Фэмистиль!I35 -> 0 | P96: =[1]Фэмистиль!J35 -> 0 | Q96: =[1]Фэмистиль!K35 -> 0 | R96: =[1]Фэмистиль!L35 -> 0 | S96: =[1]Фэмистиль!M35 -> 0 | T96: =[1]Фэмистиль!N35 -> 0 | U96: =[1]Фэмистиль!O35 -> 0 | V96: =[1]Фэмистиль!P35 -> 0 | W96: =[1]Фэмистиль!Q35 -> 0 | X96: =[1]Фэмистиль!R35 -> 0 | Y96: =[1]Фэмистиль!S35 -> 0
A97: 93 | B97: Договор | C97: 301 | D97: 2013-04-08 | E97: 1364 | G97: ГлобалФризБел | H97: =[1]ГлобалФризБел!B35 -> 0 | I97: =[1]ГлобалФризБел!C35 -> 0 | J97: =[1]ГлобалФризБел!D35 -> 0 | K97: =[1]ГлобалФризБел!E35 -> 0 | L97: =[1]ГлобалФризБел!F35 -> 0 | M97: =[1]ГлобалФризБел!G35 -> 0 | N97: =[1]ГлобалФризБел!H35 -> 0 | O97: =[1]ГлобалФризБел!I35 -> 0 | P97: =[1]ГлобалФризБел!J35 -> 0 | Q97: =[1]ГлобалФризБел!K35 -> 0 | R97: =[1]ГлобалФризБел!L35 -> 0 | S97: =[1]ГлобалФризБел!M35 -> 0 | T97: =[1]ГлобалФризБел!N35 -> 0 | U97: =[1]ГлобалФризБел!O35 -> 0 | V97: =[1]ГлобалФризБел!P35 -> 0 | W97: =[1]ГлобалФризБел!Q35 -> 0 | X97: =[1]ГлобалФризБел!R35 -> 0 | Y97: =[1]ГлобалФризБел!S35 -> 0
A98: 94 | G98: ЖРЭО Советского р-на | H98: ='[1]ЖРЭО Советского р-на'!B35 -> 0 | I98: ='[1]ЖРЭО Советского р-на'!C35 -> 0 | J98: ='[1]ЖРЭО Советского р-на'!D35 -> 0 | K98: ='[1]ЖРЭО Советского р-на'!E35 -> 0 | L98: ='[1]ЖРЭО Советского р-на'!F35 -> 0 | M98: ='[1]ЖРЭО Советского р-на'!G35 -> 0 | N98: ='[1]ЖРЭО Советского р-на'!H35 -> 0 | O98: ='[1]ЖРЭО Советского р-на'!I35 -> 0 | P98: ='[1]ЖРЭО Советского р-на'!J35 -> 0 | Q98: ='[1]ЖРЭО Советского р-на'!K35 -> 0 | R98: ='[1]ЖРЭО Советского р-на'!L35 -> 0 | S98: ='[1]ЖРЭО Советского р-на'!M35 -> 0 | T98: ='[1]ЖРЭО Советского р-на'!N35 -> 0 | U98: ='[1]ЖРЭО Советского р-на'!O35 -> 0 | V98: ='[1]ЖРЭО Советского р-на'!P35 -> 0 | W98: ='[1]ЖРЭО Советского р-на'!Q35 -> 0 | X98: ='[1]ЖРЭО Советского р-на'!R35 -> 0 | Y98: ='[1]ЖРЭО Советского р-на'!S35 -> 0
A99: 95 | G99: Минский Комаровский рынок УП | H99: ='[1]Комаровский рынок'!B35 -> 0 | I99: ='[1]Комаровский рынок'!C35 -> 0 | J99: ='[1]Комаровский рынок'!D35 -> 0 | K99: ='[1]Комаровский рынок'!E35 -> 0 | L99: ='[1]Комаровский рынок'!F35 -> 0 | M99: ='[1]Комаровский рынок'!G35 -> 0 | N99: ='[1]Комаровский рынок'!H35 -> 0 | O99: ='[1]Комаровский рынок'!I35 -> 0 | P99: ='[1]Комаровский рынок'!J35 -> 0 | Q99: ='[1]Комаровский рынок'!K35 -> 0 | R99: ='[1]Комаровский рынок'!L35 -> 0 | S99: ='[1]Комаровский рынок'!M35 -> 0 | T99: ='[1]Комаровский рынок'!N35 -> 0 | U99: ='[1]Комаровский рынок'!O35 -> 0 | V99: ='[1]Комаровский рынок'!P35 -> 0 | W99: ='[1]Комаровский рынок'!Q35 -> 0 | X99: ='[1]Комаровский рынок'!R35 -> 0 | Y99: ='[1]Комаровский рынок'!S35 -> 0
A100: 96 | G100: Промагролизинг | H100: =[1]Промагролизинг!B35 -> 0 | I100: =[1]Промагролизинг!C35 -> 0 | J100: =[1]Промагролизинг!D35 -> 0 | K100: =[1]Промагролизинг!E35 -> 0 | L100: =[1]Промагролизинг!F35 -> 0 | M100: =[1]Промагролизинг!G35 -> 0 | N100: =[1]Промагролизинг!H35 -> 0 | O100: =[1]Промагролизинг!I35 -> 0 | P100: =[1]Промагролизинг!J35 -> 0 | Q100: =[1]Промагролизинг!K35 -> 0 | R100: =[1]Промагролизинг!L35 -> 0 | S100: =[1]Промагролизинг!M35 -> 0 | T100: =[1]Промагролизинг!N35 -> 0 | U100: =[1]Промагролизинг!O35 -> 0 | V100: =[1]Промагролизинг!P35 -> 0 | W100: =[1]Промагролизинг!Q35 -> 0 | X100: =[1]Промагролизинг!R35 -> 0 | Y100: =[1]Промагролизинг!S35 -> 0
A101: 97 | G101: Дормаш | H101: =[1]Дормаш!B35 -> 0 | I101: =[1]Дормаш!C35 -> 0 | J101: =[1]Дормаш!D35 -> 0 | K101: =[1]Дормаш!E35 -> 0 | L101: =[1]Дормаш!F35 -> 0 | M101: =[1]Дормаш!G35 -> 0 | N101: =[1]Дормаш!H35 -> 0 | O101: =[1]Дормаш!I35 -> 0 | P101: =[1]Дормаш!J35 -> 0 | Q101: =[1]Дормаш!K35 -> 0 | R101: =[1]Дормаш!L35 -> 0 | S101: =[1]Дормаш!M35 -> 0 | T101: =[1]Дормаш!N35 -> 0 | U101: =[1]Дормаш!O35 -> 0 | V101: =[1]Дормаш!P35 -> 0 | W101: =[1]Дормаш!Q35 -> 0 | X101: =[1]Дормаш!R35 -> 0 | Y101: =[1]Дормаш!S35 -> 0
A102: 98 | G102: Белэлектроспецкомплект | H102: =[1]Белэлектроспецкомплект!B35 -> 0 | I102: =[1]Белэлектроспецкомплект!C35 -> 0 | J102: =[1]Белэлектроспецкомплект!D35 -> 0 | K102: =[1]Белэлектроспецкомплект!E35 -> 0 | L102: =[1]Белэлектроспецкомплект!F35 -> 0 | M102: =[1]Белэлектроспецкомплект!G35 -> 0 | N102: =[1]Белэлектроспецкомплект!H35 -> 0 | O102: =[1]Белэлектроспецкомплект!I35 -> 0 | P102: =[1]Белэлектроспецкомплект!J35 -> 0 | Q102: =[1]Белэлектроспецкомплект!K35 -> 0 | R102: =[1]Белэлектроспецкомплект!L35 -> 0 | S102: =[1]Белэлектроспецкомплект!M35 -> 0 | T102: =[1]Белэлектроспецкомплект!N35 -> 0 | U102: =[1]Белэлектроспецкомплект!O35 -> 0 | V102: =[1]Белэлектроспецкомплект!P35 -> 0 | W102: =[1]Белэлектроспецкомплект!Q35 -> 0 | X102: =[1]Белэлектроспецкомплект!R35 -> 0 | Y102: =[1]Белэлектроспецкомплект!S35 -> 0
A103: 99 | G103: Белпатентсервис | H103: =[1]Белпатентсервис!B35 -> 0 | I103: =[1]Белпатентсервис!C35 -> 0 | J103: =[1]Белпатентсервис!D35 -> 0 | K103: =[1]Белпатентсервис!E35 -> 0 | L103: =[1]Белпатентсервис!F35 -> 0 | M103: =[1]Белпатентсервис!G35 -> 0 | N103: =[1]Белпатентсервис!H35 -> 0 | O103: =[1]Белпатентсервис!I35 -> 0 | P103: =[1]Белпатентсервис!J35 -> 0 | Q103: =[1]Белпатентсервис!K35 -> 0 | R103: =[1]Белпатентсервис!L35 -> 0 | S103: =[1]Белпатентсервис!M35 -> 0 | T103: =[1]Белпатентсервис!N35 -> 0 | U103: =[1]Белпатентсервис!O35 -> 0 | V103: =[1]Белпатентсервис!P35 -> 0 | W103: =[1]Белпатентсервис!Q35 -> 0 | X103: =[1]Белпатентсервис!R35 -> 0 | Y103: =[1]Белпатентсервис!S35 -> 0
A104: 100 | G104: Инспекция по семеноводству | H104: ='[1]Инспекция по семеноводству'!B35 -> 0 | I104: ='[1]Инспекция по семеноводству'!C35 -> 0 | J104: ='[1]Инспекция по семеноводству'!D35 -> 0 | K104: ='[1]Инспекция по семеноводству'!E35 -> 0 | L104: ='[1]Инспекция по семеноводству'!F35 -> 0 | M104: ='[1]Инспекция по семеноводству'!G35 -> 0 | N104: ='[1]Инспекция по семеноводству'!H35 -> 0 | O104: ='[1]Инспекция по семеноводству'!I35 -> 0 | P104: ='[1]Инспекция по семеноводству'!J35 -> 0 | Q104: ='[1]Инспекция по семеноводству'!K35 -> 0 | R104: ='[1]Инспекция по семеноводству'!L35 -> 0 | S104: ='[1]Инспекция по семеноводству'!M35 -> 0 | T104: ='[1]Инспекция по семеноводству'!N35 -> 0 | U104: ='[1]Инспекция по семеноводству'!O35 -> 0 | V104: ='[1]Инспекция по семеноводству'!P35 -> 0 | W104: ='[1]Инспекция по семеноводству'!Q35 -> 0 | X104: ='[1]Инспекция по семеноводству'!R35 -> 0 | Y104: ='[1]Инспекция по семеноводству'!S35 -> 0
A105: 101 | G105: Административная комиссия | H105: ='[1]Административная комиссия'!B35 -> 0 | I105: ='[1]Административная комиссия'!C35 -> 0 | J105: ='[1]Административная комиссия'!D35 -> 0 | K105: ='[1]Административная комиссия'!E35 -> 0 | L105: ='[1]Административная комиссия'!F35 -> 0 | M105: ='[1]Административная комиссия'!G35 -> 0 | N105: ='[1]Административная комиссия'!H35 -> 0 | O105: ='[1]Административная комиссия'!I35 -> 0 | P105: ='[1]Административная комиссия'!J35 -> 0 | Q105: ='[1]Административная комиссия'!K35 -> 0 | R105: ='[1]Административная комиссия'!L35 -> 0 | S105: ='[1]Административная комиссия'!M35 -> 0 | T105: ='[1]Административная комиссия'!N35 -> 0 | U105: ='[1]Административная комиссия'!O35 -> 0 | V105: ='[1]Административная комиссия'!P35 -> 0 | W105: ='[1]Административная комиссия'!Q35 -> 0 | X105: ='[1]Административная комиссия'!R35 -> 0 | Y105: ='[1]Административная комиссия'!S35 -> 0
A106: 102 | G106: СПН-медиа | H106: ='[1]СПН-медиа'!B35 -> 0 | I106: ='[1]СПН-медиа'!C35 -> 0 | J106: ='[1]СПН-медиа'!D35 -> 0 | K106: ='[1]СПН-медиа'!E35 -> 0 | L106: ='[1]СПН-медиа'!F35 -> 0 | M106: ='[1]СПН-медиа'!G35 -> 0 | N106: ='[1]СПН-медиа'!H35 -> 0 | O106: ='[1]СПН-медиа'!I35 -> 0 | P106: ='[1]СПН-медиа'!J35 -> 0 | Q106: ='[1]СПН-медиа'!K35 -> 0 | R106: ='[1]СПН-медиа'!L35 -> 0 | S106: ='[1]СПН-медиа'!M35 -> 0 | T106: ='[1]СПН-медиа'!N35 -> 0 | U106: ='[1]СПН-медиа'!O35 -> 0 | V106: ='[1]СПН-медиа'!P35 -> 0 | W106: ='[1]СПН-медиа'!Q35 -> 0 | X106: ='[1]СПН-медиа'!R35 -> 0 | Y106: ='[1]СПН-медиа'!S35 -> 0
A107: 103 | G107: Эксист-Бел | H107: ='[1]Эксист-Бел'!B35 -> 0 | I107: ='[1]Эксист-Бел'!C35 -> 0 | J107: ='[1]Эксист-Бел'!D35 -> 0 | K107: ='[1]Эксист-Бел'!E35 -> 0 | L107: ='[1]Эксист-Бел'!F35 -> 0 | M107: ='[1]Эксист-Бел'!G35 -> 0 | N107: ='[1]Эксист-Бел'!H35 -> 0 | O107: ='[1]Эксист-Бел'!I35 -> 0 | P107: ='[1]Эксист-Бел'!J35 -> 0 | Q107: ='[1]Эксист-Бел'!K35 -> 0 | R107: ='[1]Эксист-Бел'!L35 -> 0 | S107: ='[1]Эксист-Бел'!M35 -> 0 | T107: ='[1]Эксист-Бел'!N35 -> 0 | U107: ='[1]Эксист-Бел'!O35 -> 0 | V107: ='[1]Эксист-Бел'!P35 -> 0 | W107: ='[1]Эксист-Бел'!Q35 -> 0 | X107: ='[1]Эксист-Бел'!R35 -> 0 | Y107: ='[1]Эксист-Бел'!S35 -> 0
A108: 427 | B108: Договор | C108: 185 | D108: 2014-02-10 | E108: 2122 | G108: СУ-2 Полесьежилстрой | H108: ='[1]СУ-2 Полесье'!B35 -> 0 | I108: ='[1]СУ-2 Полесье'!C35 -> 0 | J108: ='[1]СУ-2 Полесье'!D35 -> 0 | K108: ='[1]СУ-2 Полесье'!E35 -> 0 | L108: ='[1]СУ-2 Полесье'!F35 -> 0 | M108: ='[1]СУ-2 Полесье'!G35 -> 0 | N108: ='[1]СУ-2 Полесье'!H35 -> 0 | O108: ='[1]СУ-2 Полесье'!I35 -> 0 | P108: ='[1]СУ-2 Полесье'!J35 -> 0 | Q108: ='[1]СУ-2 Полесье'!K35 -> 0 | R108: ='[1]СУ-2 Полесье'!L35 -> 0 | S108: ='[1]СУ-2 Полесье'!M35 -> 0 | T108: ='[1]СУ-2 Полесье'!N35 -> 0 | U108: ='[1]СУ-2 Полесье'!O35 -> 0 | V108: ='[1]СУ-2 Полесье'!P35 -> 0 | W108: ='[1]СУ-2 Полесье'!Q35 -> 0 | X108: ='[1]СУ-2 Полесье'!R35 -> 0 | Y108: ='[1]СУ-2 Полесье'!S35 -> 0
A109: 428 | B109: Договор | C109: 187 | D109: 2014-02-05 | E109: 2124 | G109: Крона Белорашиа | H109: =[1]КронаБелорашиа!B35 -> 0 | I109: =[1]КронаБелорашиа!C35 -> 0 | J109: =[1]КронаБелорашиа!D35 -> 0 | K109: =[1]КронаБелорашиа!E35 -> 0 | L109: =[1]КронаБелорашиа!F35 -> 0 | M109: =[1]КронаБелорашиа!G35 -> 0 | N109: =[1]КронаБелорашиа!H35 -> 0 | O109: =[1]КронаБелорашиа!I35 -> 0 | P109: =[1]КронаБелорашиа!J35 -> 0 | Q109: =[1]КронаБелорашиа!K35 -> 0 | R109: =[1]КронаБелорашиа!L35 -> 0 | S109: =[1]КронаБелорашиа!M35 -> 0 | T109: =[1]КронаБелорашиа!N35 -> 0 | U109: =[1]КронаБелорашиа!O35 -> 0 | V109: =[1]КронаБелорашиа!P35 -> 0 | W109: =[1]КронаБелорашиа!Q35 -> 0 | X109: =[1]КронаБелорашиа!R35 -> 0 | Y109: =[1]КронаБелорашиа!S35 -> 0
A110: 429 | B110: Франкир | G110: Саммит Технолоджис | H110: ='[1]Саммит Т'!B35 -> 0 | I110: ='[1]Саммит Т'!C35 -> 0 | J110: ='[1]Саммит Т'!D35 -> 0 | K110: ='[1]Саммит Т'!E35 -> 0 | L110: ='[1]Саммит Т'!F35 -> 0 | M110: ='[1]Саммит Т'!G35 -> 0 | N110: ='[1]Саммит Т'!H35 -> 0 | O110: ='[1]Саммит Т'!I35 -> 0 | P110: ='[1]Саммит Т'!J35 -> 0 | Q110: ='[1]Саммит Т'!K35 -> 0 | R110: ='[1]Саммит Т'!L35 -> 0 | S110: ='[1]Саммит Т'!M35 -> 0 | T110: ='[1]Саммит Т'!N35 -> 0 | U110: ='[1]Саммит Т'!O35 -> 0 | V110: ='[1]Саммит Т'!P35 -> 0 | W110: ='[1]Саммит Т'!Q35 -> 0 | X110: ='[1]Саммит Т'!R35 -> 0 | Y110: ='[1]Саммит Т'!S35 -> 0
A111: 430 | G111: Матвеенко ИП | H111: ='[1]Матвеенко ИП'!B35 -> 0 | I111: ='[1]Матвеенко ИП'!C35 -> 0 | J111: ='[1]Матвеенко ИП'!D35 -> 0 | K111: ='[1]Матвеенко ИП'!E35 -> 0 | L111: ='[1]Матвеенко ИП'!F35 -> 0 | M111: ='[1]Матвеенко ИП'!G35 -> 0 | N111: ='[1]Матвеенко ИП'!H35 -> 0 | O111: ='[1]Матвеенко ИП'!I35 -> 0 | P111: ='[1]Матвеенко ИП'!J35 -> 0 | Q111: ='[1]Матвеенко ИП'!K35 -> 0 | R111: ='[1]Матвеенко ИП'!L35 -> 0 | S111: ='[1]Матвеенко ИП'!M35 -> 0 | T111: ='[1]Матвеенко ИП'!N35 -> 0 | U111: ='[1]Матвеенко ИП'!O35 -> 0 | V111: ='[1]Матвеенко ИП'!P35 -> 0 | W111: ='[1]Матвеенко ИП'!Q35 -> 0 | X111: ='[1]Матвеенко ИП'!R35 -> 0 | Y111: ='[1]Матвеенко ИП'!S35 -> 0
A112: 431 | G112: Всегда Вместе ГК | H112: ='[1]Всегда Вместе'!B35 -> 0 | I112: ='[1]Всегда Вместе'!C35 -> 0 | J112: ='[1]Всегда Вместе'!D35 -> 0 | K112: ='[1]Всегда Вместе'!E35 -> 0 | L112: ='[1]Всегда Вместе'!F35 -> 0 | M112: ='[1]Всегда Вместе'!G35 -> 0 | N112: ='[1]Всегда Вместе'!H35 -> 0 | O112: ='[1]Всегда Вместе'!I35 -> 0 | P112: ='[1]Всегда Вместе'!J35 -> 0 | Q112: ='[1]Всегда Вместе'!K35 -> 0 | R112: ='[1]Всегда Вместе'!L35 -> 0 | S112: ='[1]Всегда Вместе'!M35 -> 0 | T112: ='[1]Всегда Вместе'!N35 -> 0 | U112: ='[1]Всегда Вместе'!O35 -> 0 | V112: ='[1]Всегда Вместе'!P35 -> 0 | W112: ='[1]Всегда Вместе'!Q35 -> 0 | X112: ='[1]Всегда Вместе'!R35 -> 0 | Y112: ='[1]Всегда Вместе'!S35 -> 0
A113: 432 | B113: Договор | C113: 262 | D113: 2014-02-03 | E113: 2150 | G113: Витсвитстрой | H113: =[1]ВитВитстрой!B35 -> 0 | I113: =[1]ВитВитстрой!C35 -> 0 | J113: =[1]ВитВитстрой!D35 -> 0 | K113: =[1]ВитВитстрой!E35 -> 0 | L113: =[1]ВитВитстрой!F35 -> 0 | M113: =[1]ВитВитстрой!G35 -> 0 | N113: =[1]ВитВитстрой!H35 -> 0 | O113: =[1]ВитВитстрой!I35 -> 0 | P113: =[1]ВитВитстрой!J35 -> 0 | Q113: =[1]ВитВитстрой!K35 -> 0 | R113: =[1]ВитВитстрой!L35 -> 0 | S113: =[1]ВитВитстрой!M35 -> 0 | T113: =[1]ВитВитстрой!N35 -> 0 | U113: =[1]ВитВитстрой!O35 -> 0 | V113: =[1]ВитВитстрой!P35 -> 0 | W113: =[1]ВитВитстрой!Q35 -> 0 | X113: =[1]ВитВитстрой!R35 -> 0 | Y113: =[1]ВитВитстрой!S35 -> 0
A114: 433 | B114: Договор | C114: 1-/2 | D114: 2014-02-27 | E114: 2157 | G114: Центр института Приватизации | H114: ='[1]Центр инстПриватизации'!B35 -> 0 | I114: ='[1]Центр инстПриватизации'!C35 -> 0 | J114: ='[1]Центр инстПриватизации'!D35 -> 0 | K114: ='[1]Центр инстПриватизации'!E35 -> 0 | L114: ='[1]Центр инстПриватизации'!F35 -> 0 | M114: ='[1]Центр инстПриватизации'!G35 -> 0 | N114: ='[1]Центр инстПриватизации'!H35 -> 0 | O114: ='[1]Центр инстПриватизации'!I35 -> 0 | P114: ='[1]Центр инстПриватизации'!J35 -> 0 | Q114: ='[1]Центр инстПриватизации'!K35 -> 0 | R114: ='[1]Центр инстПриватизации'!L35 -> 0 | S114: ='[1]Центр инстПриватизации'!M35 -> 0 | T114: ='[1]Центр инстПриватизации'!N35 -> 0 | U114: ='[1]Центр инстПриватизации'!O35 -> 0 | V114: ='[1]Центр инстПриватизации'!P35 -> 0 | W114: ='[1]Центр инстПриватизации'!Q35 -> 0 | X114: ='[1]Центр инстПриватизации'!R35 -> 0 | Y114: ='[1]Центр инстПриватизации'!S35 -> 0
A115: 434 | B115: Договор | C115: 223 | D115: 2014-02-18 | E115: 2136 | G115: Мицкевич ИП | H115: =[1]Мицкевич!B35 -> 0 | I115: =[1]Мицкевич!C35 -> 0 | J115: =[1]Мицкевич!D35 -> 0 | K115: =[1]Мицкевич!E35 -> 0 | L115: =[1]Мицкевич!F35 -> 0 | M115: =[1]Мицкевич!G35 -> 0 | N115: =[1]Мицкевич!H35 -> 0 | O115: =[1]Мицкевич!I35 -> 0 | P115: =[1]Мицкевич!J35 -> 0 | Q115: =[1]Мицкевич!K35 -> 0 | R115: =[1]Мицкевич!L35 -> 0 | S115: =[1]Мицкевич!M35 -> 0 | T115: =[1]Мицкевич!N35 -> 0 | U115: =[1]Мицкевич!O35 -> 0 | V115: =[1]Мицкевич!P35 -> 0 | W115: =[1]Мицкевич!Q35 -> 0 | X115: =[1]Мицкевич!R35 -> 0 | Y115: =[1]Мицкевич!S35 -> 0
A116: 435 | B116: Договор | C116: 22-02-09/31 | D116: 2014-02-17 | E116: 2069 | G116: ЛюбоДело | H116: ='[1]Любо Дело'!B35 -> 0 | I116: ='[1]Любо Дело'!C35 -> 0 | J116: ='[1]Любо Дело'!D35 -> 0 | K116: ='[1]Любо Дело'!E35 -> 0 | L116: ='[1]Любо Дело'!F35 -> 0 | M116: ='[1]Любо Дело'!G35 -> 0 | N116: ='[1]Любо Дело'!H35 -> 0 | O116: ='[1]Любо Дело'!I35 -> 0 | P116: ='[1]Любо Дело'!J35 -> 0 | Q116: ='[1]Любо Дело'!K35 -> 0 | R116: ='[1]Любо Дело'!L35 -> 0 | S116: ='[1]Любо Дело'!M35 -> 0 | T116: ='[1]Любо Дело'!N35 -> 0 | U116: ='[1]Любо Дело'!O35 -> 0 | V116: ='[1]Любо Дело'!P35 -> 0 | W116: ='[1]Любо Дело'!Q35 -> 0 | X116: ='[1]Любо Дело'!R35 -> 0 | Y116: ='[1]Любо Дело'!S35 -> 0
A117: 432 | B117: Договор | C117: 221 | D117: 2014-02-18 | E117: 2134 | G117: Пластгрупп ЧТУП
A118: 433
A119: 434
A120: 435 | Y120: =X120+V120+U120+T120+S120+Q120+O120+M120+K120+I120 -> 0
G121: всего | H121: =SUM(H5:H120) -> 0 | I121: 0 | J121: 0 | K121: 0 | L121: 0 | M121: 0 | N121: 0 | O121: 0 | P121: 0 | Q121: 0 | R121: 0 | S121: 0 | T121: 0 | U121: 0 | V121: 0 | W121: 0 | X121: 0 | Y121: =SUM(Y5:Y120) -> 0
G122: Всего услуг | H122: кол-во прин.ПО | J122: =H121+J121+L121+N121+P121+R121+W121 -> 0
H123: сумма доходов | J123: =Y121 -> 0
C124: Новые
C125: по договору
C126: франкир.маш
C127: марк.маш.своя

Sheet Авком Трейд
A1: =MID(CELL("имяфайла",B1),SEARCH("]",CELL("имяфайла",B1),1)+1,99) -> Авком Трейд | B1: заказное | D1: простое
A2: Число месяца | B2: заказные отправления (116, 161) | D2: простые отправления (117, 165) | F2: посылки (151, 156) | H2: мелкие пакеты, ценные письма (121) | J2: EMS внутренние (181 ,182) | L2: EMS международные (321, 322) | N2: доп.услуги (241, 311) | P2: товары почты (641) | R2: маркиров. прод. (111) | S2: переводы (138,139,144,145,146,149) | U2: Итого доходы
B3: кол-во | C3: доходы | D3: кол-во | E3: доходы | F3: кол-во | G3: доходы | H3: кол-во | I3: доходы | J3: кол-во | K3: доходы | L3: кол-во | M3: доходы | N3: доходы | P3: доходы | R3: доходы | S3: кол-во | T3: доходы
A4: 2014-03-01 | B4: =SUMIFS(ежемесячный!$G:$G,ежемесячный!$D:$D,$A4,ежемесячный!$E:$E,$A$1,ежемесячный!$F:$F,B$1) -> 123 | C4: =SUMIFS(ежемесячный!$H:$H,ежемесячный!$D:$D,$A4,ежемесячный!$E:$E,$A$1,ежемесячный!$F:$F,B$1) -> 125000 | D4: =SUMIFS(ежемесячный!$G:$G,ежемесячный!$D:$D,$A4,ежемесячный!$E:$E,$A$1,ежемесячный!$F:$F,D$1) -> 1 | E4: =SUMIFS(ежемесячный!$H:$H,ежемесячный!$D:$D,$A4,ежемесячный!$E:$E,$A$1,ежемесячный!$F:$F,D$1) -> 30000 | F4: 0 | G4: 0 | H4: 0 | I4: 0 | J4: 0 | K4: 0 | L4: 0 | M4: 0 | N4: 0 | P4: 0 | R4: 0 | S4: 0 | T4: 0 | U4: =T4+R4+P4+N4+M4+K4+I4+G4+E4+C4 -> 155000
A5: 2014-03-02 | B5: =SUMIFS(ежемесячный!$G:$G,ежемесячный!$D:$D,$A5,ежемесячный!$E:$E,$A$1,ежемесячный!$F:$F,B$1) -> 80 | C5: =SUMIFS(ежемесячный!$H:$H,ежемесячный!$D:$D,$A5,ежемесячный!$E:$E,$A$1,ежемесячный!$F:$F,B$1) -> 326000 | D5: =SUMIFS(ежемесячный!$G:$G,ежемесячный!$D:$D,$A5,ежемесячный!$E:$E,$A$1,ежемесячный!$F:$F,D$1) -> 0 | E5: =SUMIFS(ежемесячный!$H:$H,ежемесячный!$D:$D,$A5,ежемесячный!$E:$E,$A$1,ежемесячный!$F:$F,D$1) -> 0 | F5: 0 | G5: 0 | H5: 0 | I5: 0 | J5: 0 | K5: 0 | L5: 0 | M5: 0 | N5: 0 | P5: 0 | R5: 0 | S5: 0 | T5: 0 | U5: 326000
A6: 2014-03-03 | B6: =SUMIFS(ежемесячный!$G:$G,ежемесячный!$D:$D,$A6,ежемесячный!$E:$E,$A$1,ежемесячный!$F:$F,B$1) -> 0 | C6: =SUMIFS(ежемесячный!$H:$H,ежемесячный!$D:$D,$A6,ежемесячный!$E:$E,$A$1,ежемесячный!$F:$F,B$1) -> 0 | D6: =SUMIFS(ежемесячный!$G:$G,ежемесячный!$D:$D,$A6,ежемесячный!$E:$E,$A$1,ежемесячный!$F:$F,D$1) -> 0 | E6: =SUMIFS(ежемесячный!$H:$H,ежемесячный!$D:$D,$A6,ежемесячный!$E:$E,$A$1,ежемесячный!$F:$F,D$1) -> 0 | F6: 0 | G6: 0 | H6: 0 | I6: 0 | J6: 0 | K6: 0 | L6: 0 | M6: 0 | N6: 0 | P6: 0 | R6: 0 | S6: 0 | T6: 0 | U6: 0
A7: 2014-03-04 | B7: =SUMIFS(ежемесячный!$G:$G,ежемесячный!$D:$D,$A7,ежемесячный!$E:$E,$A$1,ежемесячный!$F:$F,B$1) -> 0 | C7: =SUMIFS(ежемесячный!$H:$H,ежемесячный!$D:$D,$A7,ежемесячный!$E:$E,$A$1,ежемесячный!$F:$F,B$1) -> 0 | D7: =SUMIFS(ежемесячный!$G:$G,ежемесячный!$D:$D,$A7,ежемесячный!$E:$E,$A$1,ежемесячный!$F:$F,D$1) -> 0 | E7: =SUMIFS(ежемесячный!$H:$H,ежемесячный!$D:$D,$A7,ежемесячный!$E:$E,$A$1,ежемесячный!$F:$F,D$1) -> 0 | F7: 0 | G7: 0 | H7: 0 | I7: 0 | J7: 0 | K7: 0 | L7: 0 | M7: 0 | N7: 0 | P7: 0 | R7: 0 | S7: 0 | T7: 0 | U7: 0
A8: 2014-03-05 | B8: =SUMIFS(ежемесячный!$G:$G,ежемесячный!$D:$D,$A8,ежемесячный!$E:$E,$A$1,ежемесячный!$F:$F,B$1) -> 0 | C8: =SUMIFS(ежемесячный!$H:$H,ежемесячный!$D:$D,$A8,ежемесячный!$E:$E,$A$1,ежемесячный!$F:$F,B$1) -> 0 | D8: =SUMIFS(ежемесячный!$G:$G,ежемесячный!$D:$D,$A8,ежемесячный!$E:$E,$A$1,ежемесячный!$F:$F,D$1) -> 0 | E8: =SUMIFS(ежемесячный!$H:$H,ежемесячный!$D:$D,$A8,ежемесячный!$E:$E,$A$1,ежемесячный!$F:$F,D$1) -> 0 | F8: 0 | G8: 0 | H8: 0 | I8: 0 | J8: 0 | K8: 0 | L8: 0 | M8: 0 | N8: 0 | P8: 0 | R8: 0 | S8: 0 | T8: 0 | U8: 0
A9: 2014-03-06 | B9: =SUMIFS(ежемесячный!$G:$G,ежемесячный!$D:$D,$A9,ежемесячный!$E:$E,$A$1,ежемесячный!$F:$F,B$1) -> 0 | C9: =SUMIFS(ежемесячный!$H:$H,ежемесячный!$D:$D,$A9,ежемесячный!$E:$E,$A$1,ежемесячный!$F:$F,B$1) -> 0 | D9: =SUMIFS(ежемесячный!$G:$G,ежемесячный!$D:$D,$A9,ежемесячный!$E:$E,$A$1,ежемесячный!$F:$F,D$1) -> 0 | E9: =SUMIFS(ежемесячный!$H:$H,ежемесячный!$D:$D,$A9,ежемесячный!$E:$E,$A$1,ежемесячный!$F:$F,D$1) -> 0 | F9: 0 | G9: 0 | H9: 0 | I9: 0 | J9: 0 | K9: 0 | L9: 0 | M9: 0 | N9: 0 | P9: 0 | R9: 0 | S9: 0 | T9: 0 | U9: 0
A10: 2014-03-07 | B10: =SUMIFS(ежемесячный!$G:$G,ежемесячный!$D:$D,$A10,ежемесячный!$E:$E,$A$1,ежемесячный!$F:$F,B$1) -> 0 | C10: =SUMIFS(ежемесячный!$H:$H,ежемесячный!$D:$D,$A10,ежемесячный!$E:$E,$A$1,ежемесячный!$F:$F,B$1) -> 0 | D10: =SUMIFS(ежемесячный!$G:$G,ежемесячный!$D:$D,$A10,ежемесячный!$E:$E,$A$1,ежемесячный!$F:$F,D$1) -> 0 | E10: =SUMIFS(ежемесячный!$H:$H,ежемесячный!$D:$D,$A10,ежемесячный!$E:$E,$A$1,ежемесячный!$F:$F,D$1) -> 0 | F10: 0 | G10: 0 | H10: 0 | I10: 0 | J10: 0 | K10: 0 | L10: 0 | M10: 0 | N10: 0 | P10: 0 | R10: 0 | S10: 0 | T10: 0 | U10: 0
A11: 2014-03-08 | B11: =SUMIFS(ежемесячный!$G:$G,ежемесячный!$D:$D,$A11,ежемесячный!$E:$E,$A$1,ежемесячный!$F:$F,B$1) -> 0 | C11: =SUMIFS(ежемесячный!$H:$H,ежемесячный!$D:$D,$A11,ежемесячный!$E:$E,$A$1,ежемесячный!$F:$F,B$1) -> 0 | D11: =SUMIFS(ежемесячный!$G:$G,ежемесячный!$D:$D,$A11,ежемесячный!$E:$E,$A$1,ежемесячный!$F:$F,D$1) -> 0 | E11: =SUMIFS(ежемесячный!$H:$H,ежемесячный!$D:$D,$A11,ежемесячный!$E:$E,$A$1,ежемесячный!$F:$F,D$1) -> 0 | F11: 0 | G11: 0 | H11: 0 | I11: 0 | J11: 0 | K11: 0 | L11: 0 | M11: 0 | N11: 0 | P11: 0 | R11: 0 | S11: 0 | T11: 0 | U11: 0
A12: 2014-03-09 | B12: =SUMIFS(ежемесячный!$G:$G,ежемесячный!$D:$D,$A12,ежемесячный!$E:$E,$A$1,ежемесячный!$F:$F,B$1) -> 0 | C12: =SUMIFS(ежемесячный!$H:$H,ежемесячный!$D:$D,$A12,ежемесячный!$E:$E,$A$1,ежемесячный!$F:$F,B$1) -> 0 | D12: =SUMIFS(ежемесячный!$G:$G,ежемесячный!$D:$D,$A12,ежемесячный!$E:$E,$A$1,ежемесячный!$F:$F,D$1) -> 0 | E12: =SUMIFS(ежемесячный!$H:$H,ежемесячный!$D:$D,$A12,ежемесячный!$E:$E,$A$1,ежемесячный!$F:$F,D$1) -> 0 | F12: 0 | G12: 0 | H12: 0 | I12: 0 | J12: 0 | K12: 0 | L12: 0 | M12: 0 | N12: 0 | P12: 0 | R12: 0 | S12: 0 | T12: 0 | U12: 0
A13: 2014-03-10 | B13: =SUMIFS(ежемесячный!$G:$G,ежемесячный!$D:$D,$A13,ежемесячный!$E:$E,$A$1,ежемесячный!$F:$F,B$1) -> 0 | C13: =SUMIFS(ежемесячный!$H:$H,ежемесячный!$D:$D,$A13,ежемесячный!$E:$E,$A$1,ежемесячный!$F:$F,B$1) -> 0 | D13: =SUMIFS(ежемесячный!$G:$G,ежемесячный!$D:$D,$A13,ежемесячный!$E:$E,$A$1,ежемесячный!$F:$F,D$1) -> 0 | E13: =SUMIFS(ежемесячный!$H:$H,ежемесячный!$D:$D,$A13,ежемесячный!$E:$E,$A$1,ежемесячный!$F:$F,D$1) -> 0 | F13: 0 | G13: 0 | H13: 0 | I13: 0 | J13: 0 | K13: 0 | L13: 0 | M13: 0 | N13: 0 | P13: 0 | R13: 0 | S13: 0 | T13: 0 | U13: 0
A14: 2014-03-11 | B14: =SUMIFS(ежемесячный!$G:$G,ежемесячный!$D:$D,$A14,ежемесячный!$E:$E,$A$1,ежемесячный!$F:$F,B$1) -> 0 | C14: =SUMIFS(ежемесячный!$H:$H,ежемесячный!$D:$D,$A14,ежемесячный!$E:$E,$A$1,ежемесячный!$F:$F,B$1) -> 0 | D14: =SUMIFS(ежемесячный!$G:$G,ежемесячный!$D:$D,$A14,ежемесячный!$E:$E,$A$1,ежемесячный!$F:$F,D$1) -> 0 | E14: =SUMIFS(ежемесячный!$H:$H,ежемесячный!$D:$D,$A14,ежемесячный!$E:$E,$A$1,ежемесячный!$F:$F,D$1) -> 0 | F14: 0 | G14: 0 | H14: 0 | I14: 0 | J14: 0 | K14: 0 | L14: 0 | M14: 0 | N14: 0 | P14: 0 | R14: 0 | S14: 0 | T14: 0 | U14: 0
A15: 2014-03-12 | B15: =SUMIFS(ежемесячный!$G:$G,ежемесячный!$D:$D,$A15,ежемесячный!$E:$E,$A$1,ежемесячный!$F:$F,B$1) -> 12 | C15: =SUMIFS(ежемесячный!$H:$H,ежемесячный!$D:$D,$A15,ежемесячный!$E:$E,$A$1,ежемесячный!$F:$F,B$1) -> 5444444 | D15: =SUMIFS(ежемесячный!$G:$G,ежемесячный!$D:$D,$A15,ежемесячный!$E:$E,$A$1,ежемесячный!$F:$F,D$1) -> 0 | E15: =SUMIFS(ежемесячный!$H:$H,ежемесячный!$D:$D,$A15,ежемесячный!$E:$E,$A$1,ежемесячный!$F:$F,D$1) -> 0 | F15: 0 | G15: 0 | H15: 0 | I15: 0 | J15: 0 | K15: 0 | L15: 0 | M15: 0 | N15: 0 | P15: 0 | R15: 0 | S15: 0 | T15: 0 | U15: 5444444
A16: 2014-03-13 | B16: =SUMIFS(ежемесячный!$G:$G,ежемесячный!$D:$D,$A16,ежемесячный!$E:$E,$A$1,ежемесячный!$F:$F,B$1) -> 0 | C16: =SUMIFS(ежемесячный!$H:$H,ежемесячный!$D:$D,$A16,ежемесячный!$E:$E,$A$1,ежемесячный!$F:$F,B$1) -> 0 | D16: =SUMIFS(ежемесячный!$G:$G,ежемесячный!$D:$D,$A16,ежемесячный!$E:$E,$A$1,ежемесячный!$F:$F,D$1) -> 0 | E16: =SUMIFS(ежемесячный!$H:$H,ежемесячный!$D:$D,$A16,ежемесячный!$E:$E,$A$1,ежемесячный!$F:$F,D$1) -> 0 | F16: 0 | G16: 0 | H16: 0 | I16: 0 | J16: 0 | K16: 0 | L16: 0 | M16: 0 | N16: 0 | P16: 0 | R16: 0 | S16: 0 | T16: 0 | U16: 0
A17: 2014-03-14 | B17: =SUMIFS(ежемесячный!$G:$G,ежемесячный!$D:$D,$A17,ежемесячный!$E:$E,$A$1,ежемесячный!$F:$F,B$1) -> 0 | C17: =SUMIFS(ежемесячный!$H:$H,ежемесячный!$D:$D,$A17,ежемесячный!$E:$E,$A$1,ежемесячный!$F:$F,B$1) -> 0 | D17: =SUMIFS(ежемесячный!$G:$G,ежемесячный!$D:$D,$A17,ежемесячный!$E:$E,$A$1,ежемесячный!$F:$F,D$1) -> 0 | E17: =SUMIFS(ежемесячный!$H:$H,ежемесячный!$D:$D,$A17,ежемесячный!$E:$E,$A$1,ежемесячный!$F:$F,D$1) -> 0 | F17: 0 | G17: 0 | H17: 0 | I17: 0 | J17: 0 | K17: 0 | L17: 0 | M17: 0 | N17: 0 | P17: 0 | R17: 0 | S17: 0 | T17: 0 | U17: 0
A18: 2014-03-15 | B18: =SUMIFS(ежемесячный!$G:$G,ежемесячный!$D:$D,$A18,ежемесячный!$E:$E,$A$1,ежемесячный!$F:$F,B$1) -> 0 | C18: =SUMIFS(ежемесячный!$H:$H,ежемесячный!$D:$D,$A18,ежемесячный!$E:$E,$A$1,ежемесячный!$F:$F,B$1) -> 0 | D18: =SUMIFS(ежемесячный!$G:$G,ежемесячный!$D:$D,$A18,ежемесячный!$E:$E,$A$1,ежемесячный!$F:$F,D$1) -> 0 | E18: =SUMIFS(ежемесячный!$H:$H,ежемесячный!$D:$D,$A18,ежемесячный!$E:$E,$A$1,ежемесячный!$F:$F,D$1) -> 0 | F18: 0 | G18: 0 | H18: 0 | I18: 0 | J18: 0 | K18: 0 | L18: 0 | M18: 0 | N18: 0 | P18: 0 | R18: 0 | S18: 0 | T18: 0 | U18: 0
A19: 2014-03-16 | B19: =SUMIFS(ежемесячный!$G:$G,ежемесячный!$D:$D,$A19,ежемесячный!$E:$E,$A$1,ежемесячный!$F:$F,B$1) -> 0 | C19: =SUMIFS(ежемесячный!$H:$H,ежемесячный!$D:$D,$A19,ежемесячный!$E:$E,$A$1,ежемесячный!$F:$F,B$1) -> 0 | D19: =SUMIFS(ежемесячный!$G:$G,ежемесячный!$D:$D,$A19,ежемесячный!$E:$E,$A$1,ежемесячный!$F:$F,D$1) -> 0 | E19: =SUMIFS(ежемесячный!$H:$H,ежемесячный!$D:$D,$A19,ежемесячный!$E:$E,$A$1,ежемесячный!$F:$F,D$1) -> 0 | F19: 0 | G19: 0 | H19: 0 | I19: 0 | J19: 0 | K19: 0 | L19: 0 | M19: 0 | N19: 0 | P19: 0 | R19: 0 | S19: 0 | T19: 0 | U19: 0
A20: 2014-03-17 | B20: =SUMIFS(ежемесячный!$G:$G,ежемесячный!$D:$D,$A20,ежемесячный!$E:$E,$A$1,ежемесячный!$F:$F,B$1) -> 0 | C20: =SUMIFS(ежемесячный!$H:$H,ежемесячный!$D:$D,$A20,ежемесячный!$E:$E,$A$1,ежемесячный!$F:$F,B$1) -> 0 | D20: =SUMIFS(ежемесячный!$G:$G,ежемесячный!$D:$D,$A20,ежемесячный!$E:$E,$A$1,ежемесячный!$F:$F,D$1) -> 0 | E20: =SUMIFS(ежемесячный!$H:$H,ежемесячный!$D:$D,$A20,ежемесячный!$E:$E,$A$1,ежемесячный!$F:$F,D$1) -> 0 | F20: 0 | G20: 0 | H20: 0 | I20: 0 | J20: 0 | K20: 0 | L20: 0 | M20: 0 | N20: 0 | P20: 0 | R20: 0 | S20: 0 | T20: 0 | U20: 0
A21: 2014-03-18 | B21: =SUMIFS(ежемесячный!$G:$G,ежемесячный!$D:$D,$A21,ежемесячный!$E:$E,$A$1,ежемесячный!$F:$F,B$1) -> 0 | C21: =SUMIFS(ежемесячный!$H:$H,ежемесячный!$D:$D,$A21,ежемесячный!$E:$E,$A$1,ежемесячный!$F:$F,B$1) -> 0 | D21: =SUMIFS(ежемесячный!$G:$G,ежемесячный!$D:$D,$A21,ежемесячный!$E:$E,$A$1,ежемесячный!$F:$F,D$1) -> 0 | E21: =SUMIFS(ежемесячный!$H:$H,ежемесячный!$D:$D,$A21,ежемесячный!$E:$E,$A$1,ежемесячный!$F:$F,D$1) -> 0 | F21: 0 | G21: 0 | H21: 0 | I21: 0 | J21: 0 | K21: 0 | L21: 0 | M21: 0 | N21: 0 | P21: 0 | R21: 0 | S21: 0 | T21: 0 | U21: 0
A22: 2014-03-19 | B22: =SUMIFS(ежемесячный!$G:$G,ежемесячный!$D:$D,$A22,ежемесячный!$E:$E,$A$1,ежемесячный!$F:$F,B$1) -> 0 | C22: =SUMIFS(ежемесячный!$H:$H,ежемесячный!$D:$D,$A22,ежемесячный!$E:$E,$A$1,ежемесячный!$F:$F,B$1) -> 0 | D22: =SUMIFS(ежемесячный!$G:$G,ежемесячный!$D:$D,$A22,ежемесячный!$E:$E,$A$1,ежемесячный!$F:$F,D$1) -> 0 | E22: =SUMIFS(ежемесячный!$H:$H,ежемесячный!$D:$D,$A22,ежемесячный!$E:$E,$A$1,ежемесячный!$F:$F,D$1) -> 0 | F22: 0 | G22: 0 | H22: 0 | I22: 0 | J22: 0 | K22: 0 | L22: 0 | M22: 0 | N22: 0 | P22: 0 | R22: 0 | S22: 0 | T22: 0 | U22: 0
A23: 2014-03-20 | B23: =SUMIFS(ежемесячный!$G:$G,ежемесячный!$D:$D,$A23,ежемесячный!$E:$E,$A$1,ежемесячный!$F:$F,B$1) -> 0 | C23: =SUMIFS(ежемесячный!$H:$H,ежемесячный!$D:$D,$A23,ежемесячный!$E:$E,$A$1,ежемесячный!$F:$F,B$1) -> 0 | D23: =SUMIFS(ежемесячный!$G:$G,ежемесячный!$D:$D,$A23,ежемесячный!$E:$E,$A$1,ежемесячный!$F:$F,D$1) -> 0 | E23: =SUMIFS(ежемесячный!$H:$H,ежемесячный!$D:$D,$A23,ежемесячный!$E:$E,$A$1,ежемесячный!$F:$F,D$1) -> 0 | F23: 0 | G23: 0 | H23: 0 | I23: 0 | J23: 0 | K23: 0 | L23: 0 | M23: 0 | N23: 0 | P23: 0 | R23: 0 | S23: 0 | T23: 0 | U23: 0
A24: 2014-03-21 | B24: =SUMIFS(ежемесячный!$G:$G,ежемесячный!$D:$D,$A24,ежемесячный!$E:$E,$A$1,ежемесячный!$F:$F,B$1) -> 0 | C24: =SUMIFS(ежемесячный!$H:$H,ежемесячный!$D:$D,$A24,ежемесячный!$E:$E,$A$1,ежемесячный!$F:$F,B$1) -> 0 | D24: =SUMIFS(ежемесячный!$G:$G,ежемесячный!$D:$D,$A24,ежемесячный!$E:$E,$A$1,ежемесячный!$F:$F,D$1) -> 0 | E24: =SUMIFS(ежемесячный!$H:$H,ежемесячный!$D:$D,$A24,ежемесячный!$E:$E,$A$1,ежемесячный!$F:$F,D$1) -> 0 | F24: 0 | G24: 0 | H24: 0 | I24: 0 | J24: 0 | K24: 0 | L24: 0 | M24: 0 | N24: 0 | P24: 0 | R24: 0 | S24: 0 | T24: 0 | U24: 0
A25: 2014-03-22 | B25: =SUMIFS(ежемесячный!$G:$G,ежемесячный!$D:$D,$A25,ежемесячный!$E:$E,$A$1,ежемесячный!$F:$F,B$1) -> 0 | C25: =SUMIFS(ежемесячный!$H:$H,ежемесячный!$D:$D,$A25,ежемесячный!$E:$E,$A$1,ежемесячный!$F:$F,B$1) -> 0 | D25: =SUMIFS(ежемесячный!$G:$G,ежемесячный!$D:$D,$A25,ежемесячный!$E:$E,$A$1,ежемесячный!$F:$F,D$1) -> 0 | E25: =SUMIFS(ежемесячный!$H:$H,ежемесячный!$D:$D,$A25,ежемесячный!$E:$E,$A$1,ежемесячный!$F:$F,D$1) -> 0 | F25: 0 | G25: 0 | H25: 0 | I25: 0 | J25: 0 | K25: 0 | L25: 0 | M25: 0 | N25: 0 | P25: 0 | R25: 0 | S25: 0 | T25: 0 | U25: 0
A26: 2014-03-23 | B26: =SUMIFS(ежемесячный!$G:$G,ежемесячный!$D:$D,$A26,ежемесячный!$E:$E,$A$1,ежемесячный!$F:$F,B$1) -> 0 | C26: =SUMIFS(ежемесячный!$H:$H,ежемесячный!$D:$D,$A26,ежемесячный!$E:$E,$A$1,ежемесячный!$F:$F,B$1) -> 0 | D26: =SUMIFS(ежемесячный!$G:$G,ежемесячный!$D:$D,$A26,ежемесячный!$E:$E,$A$1,ежемесячный!$F:$F,D$1) -> 0 | E26: =SUMIFS(ежемесячный!$H:$H,ежемесячный!$D:$D,$A26,ежемесячный!$E:$E,$A$1,ежемесячный!$F:$F,D$1) -> 0 | F26: 0 | G26: 0 | H26: 0 | I26: 0 | J26: 0 | K26: 0 | L26: 0 | M26: 0 | N26: 0 | P26: 0 | R26: 0 | S26: 0 | T26: 0 | U26: 0
A27: 2014-03-24 | B27: =SUMIFS(ежемесячный!$G:$G,ежемесячный!$D:$D,$A27,ежемесячный!$E:$E,$A$1,ежемесячный!$F:$F,B$1) -> 0 | C27: =SUMIFS(ежемесячный!$H:$H,ежемесячный!$D:$D,$A27,ежемесячный!$E:$E,$A$1,ежемесячный!$F:$F,B$1) -> 0 | D27: =SUMIFS(ежемесячный!$G:$G,ежемесячный!$D:$D,$A27,ежемесячный!$E:$E,$A$1,ежемесячный!$F:$F,D$1) -> 0 | E27: =SUMIFS(ежемесячный!$H:$H,ежемесячный!$D:$D,$A27,ежемесячный!$E:$E,$A$1,ежемесячный!$F:$F,D$1) -> 0 | F27: 0 | G27: 0 | H27: 0 | I27: 0 | J27: 0 | K27: 0 | L27: 0 | M27: 0 | N27: 0 | P27: 0 | R27: 0 | S27: 0 | T27: 0 | U27: 0
A28: 2014-03-25 | B28: =SUMIFS(ежемесячный!$G:$G,ежемесячный!$D:$D,$A28,ежемесячный!$E:$E,$A$1,ежемесячный!$F:$F,B$1) -> 0 | C28: =SUMIFS(ежемесячный!$H:$H,ежемесячный!$D:$D,$A28,ежемесячный!$E:$E,$A$1,ежемесячный!$F:$F,B$1) -> 0 | D28: =SUMIFS(ежемесячный!$G:$G,ежемесячный!$D:$D,$A28,ежемесячный!$E:$E,$A$1,ежемесячный!$F:$F,D$1) -> 0 | E28: =SUMIFS(ежемесячный!$H:$H,ежемесячный!$D:$D,$A28,ежемесячный!$E:$E,$A$1,ежемесячный!$F:$F,D$1) -> 0 | F28: 0 | G28: 0 | H28: 0 | I28: 0 | J28: 0 | K28: 0 | L28: 0 | M28: 0 | N28: 0 | P28: 0 | R28: 0 | S28: 0 | T28: 0 | U28: 0
A29: 2014-03-26 | B29: =SUMIFS(ежемесячный!$G:$G,ежемесячный!$D:$D,$A29,ежемесячный!$E:$E,$A$1,ежемесячный!$F:$F,B$1) -> 0 | C29: =SUMIFS(ежемесячный!$H:$H,ежемесячный!$D:$D,$A29,ежемесячный!$E:$E,$A$1,ежемесячный!$F:$F,B$1) -> 0 | D29: =SUMIFS(ежемесячный!$G:$G,ежемесячный!$D:$D,$A29,ежемесячный!$E:$E,$A$1,ежемесячный!$F:$F,D$1) -> 0 | E29: =SUMIFS(ежемесячный!$H:$H,ежемесячный!$D:$D,$A29,ежемесячный!$E:$E,$A$1,ежемесячный!$F:$F,D$1) -> 0 | F29: 0 | G29: 0 | H29: 0 | I29: 0 | J29: 0 | K29: 0 | L29: 0 | M29: 0 | N29: 0 | P29: 0 | R29: 0 | S29: 0 | T29: 0 | U29: 0
A30: 2014-03-27 | B30: =SUMIFS(ежемесячный!$G:$G,ежемесячный!$D:$D,$A30,ежемесячный!$E:$E,$A$1,ежемесячный!$F:$F,B$1) -> 0 | C30: =SUMIFS(ежемесячный!$H:$H,ежемесячный!$D:$D,$A30,ежемесячный!$E:$E,$A$1,ежемесячный!$F:$F,B$1) -> 0 | D30: =SUMIFS(ежемесячный!$G:$G,ежемесячный!$D:$D,$A30,ежемесячный!$E:$E,$A$1,ежемесячный!$F:$F,D$1) -> 0 | E30: =SUMIFS(ежемесячный!$H:$H,ежемесячный!$D:$D,$A30,ежемесячный!$E:$E,$A$1,ежемесячный!$F:$F,D$1) -> 0 | F30: 0 | G30: 0 | H30: 0 | I30: 0 | J30: 0 | K30: 0 | L30: 0 | M30: 0 | N30: 0 | P30: 0 | R30: 0 | S30: 0 | T30: 0 | U30: 0
A31: 2014-03-28 | B31: =SUMIFS(ежемесячный!$G:$G,ежемесячный!$D:$D,$A31,ежемесячный!$E:$E,$A$1,ежемесячный!$F:$F,B$1) -> 0 | C31: =SUMIFS(ежемесячный!$H:$H,ежемесячный!$D:$D,$A31,ежемесячный!$E:$E,$A$1,ежемесячный!$F:$F,B$1) -> 0 | D31: =SUMIFS(ежемесячный!$G:$G,ежемесячный!$D:$D,$A31,ежемесячный!$E:$E,$A$1,ежемесячный!$F:$F,D$1) -> 0 | E31: =SUMIFS(ежемесячный!$H:$H,ежемесячный!$D:$D,$A31,ежемесячный!$E:$E,$A$1,ежемесячный!$F:$F,D$1) -> 0 | F31: 0 | G31: 0 | H31: 0 | I31: 0 | J31: 0 | K31: 0 | L31: 0 | M31: 0 | N31: 0 | P31: 0 | R31: 0 | S31: 0 | T31: 0 | U31: 0
A32: 2014-03-29 | B32: =SUMIFS(ежемесячный!$G:$G,ежемесячный!$D:$D,$A32,ежемесячный!$E:$E,$A$1,ежемесячный!$F:$F,B$1) -> 0 | C32: =SUMIFS(ежемесячный!$H:$H,ежемесячный!$D:$D,$A32,ежемесячный!$E:$E,$A$1,ежемесячный!$F:$F,B$1) -> 0 | D32: =SUMIFS(ежемесячный!$G:$G,ежемесячный!$D:$D,$A32,ежемесячный!$E:$E,$A$1,ежемесячный!$F:$F,D$1) -> 0 | E32: =SUMIFS(ежемесячный!$H:$H,ежемесячный!$D:$D,$A32,ежемесячный!$E:$E,$A$1,ежемесячный!$F:$F,D$1) -> 0 | F32: 0 | G32: 0 | H32: 0 | I32: 0 | J32: 0 | K32: 0 | L32: 0 | M32: 0 | N32: 0 | P32: 0 | R32: 0 | S32: 0 | T32: 0 | U32: 0
A33: 2014-03-30 | B33: =SUMIFS(ежемесячный!$G:$G,ежемесячный!$D:$D,$A33,ежемесячный!$E:$E,$A$1,ежемесячный!$F:$F,B$1) -> 0 | C33: =SUMIFS(ежемесячный!$H:$H,ежемесячный!$D:$D,$A33,ежемесячный!$E:$E,$A$1,ежемесячный!$F:$F,B$1) -> 0 | D33: =SUMIFS(ежемесячный!$G:$G,ежемесячный!$D:$D,$A33,ежемесячный!$E:$E,$A$1,ежемесячный!$F:$F,D$1) -> 0 | E33: =SUMIFS(ежемесячный!$H:$H,ежемесячный!$D:$D,$A33,ежемесячный!$E:$E,$A$1,ежемесячный!$F:$F,D$1) -> 0 | F33: 0 | G33: 0 | H33: 0 | I33: 0 | J33: 0 | K33: 0 | L33: 0 | M33: 0 | N33: 0 | P33: 0 | R33: 0 | S33: 0 | T33: 0 | U33: 0
A34: 2014-03-31 | B34: =SUMIFS(ежемесячный!$G:$G,ежемесячный!$D:$D,$A34,ежемесячный!$E:$E,$A$1,ежемесячный!$F:$F,B$1) -> 0 | C34: =SUMIFS(ежемесячный!$H:$H,ежемесячный!$D:$D,$A34,ежемесячный!$E:$E,$A$1,ежемесячный!$F:$F,B$1) -> 0 | D34: =SUMIFS(ежемесячный!$G:$G,ежемесячный!$D:$D,$A34,ежемесячный!$E:$E,$A$1,ежемесячный!$F:$F,D$1) -> 0 | E34: =SUMIFS(ежемесячный!$H:$H,ежемесячный!$D:$D,$A34,ежемесячный!$E:$E,$A$1,ежемесячный!$F:$F,D$1) -> 0 | F34: 0 | G34: 0 | H34: 0 | I34: 0 | J34: 0 | K34: 0 | L34: 0 | M34: 0 | N34: 0 | P34: 0 | R34: 0 | S34: 0 | T34: 0 | U34: 0
B35: =SUM(B4:B34) -> 215 | C35: =SUM(C4:C34) -> 5895444 | D35: =SUM(D4:D34) -> 1 | E35: 30000 | F35: 0 | G35: 0 | H35: 0 | I35: 0 | J35: 0 | K35: 0 | L35: 0 | M35: 0 | N35: 0 | P35: 0 | R35: 0 | S35: 0 | T35: 0 | U35: 5925444
B37: кол-во прин.ПО | D37: =B35+D35+F35+H35+J35+L35+S35 -> 216
B38: сумма доходов | D38: =U35 -> 5925444

Sheet Аванбек
A1: =MID(CELL("имяфайла",B1),SEARCH("]",CELL("имяфайла",B1),1)+1,99) -> Аванбек | B1: заказное | D1: простое
A2: Число месяца | B2: заказные отправления (116, 161) | D2: простые отправления (117, 165) | F2: посылки (151, 156) | H2: мелкие пакеты, ценные письма (121) | J2: EMS внутренние (181 ,182) | L2: EMS международные (321, 322) | N2: доп.услуги (241, 311) | P2: товары почты (641) | R2: маркиров. прод. (111) | S2: переводы (138,139,144,145,146,149) | U2: Итого доходы
B3: кол-во | C3: доходы | D3: кол-во | E3: доходы | F3: кол-во | G3: доходы | H3: кол-во | I3: доходы | J3: кол-во | K3: доходы | L3: кол-во | M3: доходы | N3: доходы | P3: доходы | R3: доходы | S3: кол-во | T3: доходы
A4: 2014-03-01 | B4: =SUMIFS(ежемесячный!$G:$G,ежемесячный!$D:$D,$A4,ежемесячный!$E:$E,$A$1,ежемесячный!$F:$F,B$1) -> 8 | C4: =SUMIFS(ежемесячный!$H:$H,ежемесячный!$D:$D,$A4,ежемесячный!$E:$E,$A$1,ежемесячный!$F:$F,B$1) -> 25300 | D4: =SUMIFS(ежемесячный!$G:$G,ежемесячный!$D:$D,$A4,ежемесячный!$E:$E,$A$1,ежемесячный!$F:$F,D$1) -> 0 | E4: =SUMIFS(ежемесячный!$H:$H,ежемесячный!$D:$D,$A4,ежемесячный!$E:$E,$A$1,ежемесячный!$F:$F,D$1) -> 0 | F4: 0 | G4: 0 | H4: 0 | I4: 0 | J4: 0 | K4: 0 | L4: 0 | M4: 0 | N4: 0 | P4: 0 | R4: 0 | S4: 0 | T4: 0 | U4: =T4+R4+P4+N4+M4+K4+I4+G4+E4+C4 -> 25300
A5: 2014-03-02 | B5: =SUMIFS(ежемесячный!$G:$G,ежемесячный!$D:$D,$A5,ежемесячный!$E:$E,$A$1,ежемесячный!$F:$F,B$1) -> 0 | C5: =SUMIFS(ежемесячный!$H:$H,ежемесячный!$D:$D,$A5,ежемесячный!$E:$E,$A$1,ежемесячный!$F:$F,B$1) -> 0 | D5: =SUMIFS(ежемесячный!$G:$G,ежемесячный!$D:$D,$A5,ежемесячный!$E:$E,$A$1,ежемесячный!$F:$F,D$1) -> 0 | E5: =SUMIFS(ежемесячный!$H:$H,ежемесячный!$D:$D,$A5,ежемесячный!$E:$E,$A$1,ежемесячный!$F:$F,D$1) -> 0 | F5: 0 | G5: 0 | H5: 0 | I5: 0 | J5: 0 | K5: 0 | L5: 0 | M5: 0 | N5: 0 | P5: 0 | R5: 0 | S5: 0 | T5: 0 | U5: 0
A6: 2014-03-03 | B6: =SUMIFS(ежемесячный!$G:$G,ежемесячный!$D:$D,$A6,ежемесячный!$E:$E,$A$1,ежемесячный!$F:$F,B$1) -> 36 | C6: =SUMIFS(ежемесячный!$H:$H,ежемесячный!$D:$D,$A6,ежемесячный!$E:$E,$A$1,ежемесячный!$F:$F,B$1) -> 283000 | D6: =SUMIFS(ежемесячный!$G:$G,ежемесячный!$D:$D,$A6,ежемесячный!$E:$E,$A$1,ежемесячный!$F:$F,D$1) -> 0 | E6: =SUMIFS(ежемесячный!$H:$H,ежемесячный!$D:$D,$A6,ежемесячный!$E:$E,$A$1,ежемесячный!$F:$F,D$1) -> 0 | F6: 0 | G6: 0 | H6: 0 | I6: 0 | J6: 0 | K6: 0 | L6: 0 | M6: 0 | N6: 0 | P6: 0 | R6: 0 | S6: 0 | T6: 0 | U6: 283000
A7: 2014-03-04 | B7: =SUMIFS(ежемесячный!$G:$G,ежемесячный!$D:$D,$A7,ежемесячный!$E:$E,$A$1,ежемесячный!$F:$F,B$1) -> 0 | C7: =SUMIFS(ежемесячный!$H:$H,ежемесячный!$D:$D,$A7,ежемесячный!$E:$E,$A$1,ежемесячный!$F:$F,B$1) -> 0 | D7: =SUMIFS(ежемесячный!$G:$G,ежемесячный!$D:$D,$A7,ежемесячный!$E:$E,$A$1,ежемесячный!$F:$F,D$1) -> 0 | E7: =SUMIFS(ежемесячный!$H:$H,ежемесячный!$D:$D,$A7,ежемесячный!$E:$E,$A$1,ежемесячный!$F:$F,D$1) -> 0 | F7: 0 | G7: 0 | H7: 0 | I7: 0 | J7: 0 | K7: 0 | L7: 0 | M7: 0 | N7: 0 | P7: 0 | R7: 0 | S7: 0 | T7: 0 | U7: 0
A8: 2014-03-05 | B8: =SUMIFS(ежемесячный!$G:$G,ежемесячный!$D:$D,$A8,ежемесячный!$E:$E,$A$1,ежемесячный!$F:$F,B$1) -> 0 | C8: =SUMIFS(ежемесячный!$H:$H,ежемесячный!$D:$D,$A8,ежемесячный!$E:$E,$A$1,ежемесячный!$F:$F,B$1) -> 0 | D8: =SUMIFS(ежемесячный!$G:$G,ежемесячный!$D:$D,$A8,ежемесячный!$E:$E,$A$1,ежемесячный!$F:$F,D$1) -> 0 | E8: =SUMIFS(ежемесячный!$H:$H,ежемесячный!$D:$D,$A8,ежемесячный!$E:$E,$A$1,ежемесячный!$F:$F,D$1) -> 0 | F8: 0 | G8: 0 | H8: 0 | I8: 0 | J8: 0 | K8: 0 | L8: 0 | M8: 0 | N8: 0 | P8: 0 | R8: 0 | S8: 0 | T8: 0 | U8: 0
A9: 2014-03-06 | B9: =SUMIFS(ежемесячный!$G:$G,ежемесячный!$D:$D,$A9,ежемесячный!$E:$E,$A$1,ежемесячный!$F:$F,B$1) -> 0 | C9: =SUMIFS(ежемесячный!$H:$H,ежемесячный!$D:$D,$A9,ежемесячный!$E:$E,$A$1,ежемесячный!$F:$F,B$1) -> 0 | D9: =SUMIFS(ежемесячный!$G:$G,ежемесячный!$D:$D,$A9,ежемесячный!$E:$E,$A$1,ежемесячный!$F:$F,D$1) -> 0 | E9: =SUMIFS(ежемесячный!$H:$H,ежемесячный!$D:$D,$A9,ежемесячный!$E:$E,$A$1,ежемесячный!$F:$F,D$1) -> 0 | F9: 0 | G9: 0 | H9: 0 | I9: 0 | J9: 0 | K9: 0 | L9: 0 | M9: 0 | N9: 0 | P9: 0 | R9: 0 | S9: 0 | T9: 0 | U9: 0
A10: 2014-03-07 | B10: =SUMIFS(ежемесячный!$G:$G,ежемесячный!$D:$D,$A10,ежемесячный!$E:$E,$A$1,ежемесячный!$F:$F,B$1) -> 0 | C10: =SUMIFS(ежемесячный!$H:$H,ежемесячный!$D:$D,$A10,ежемесячный!$E:$E,$A$1,ежемесячный!$F:$F,B$1) -> 0 | D10: =SUMIFS(ежемесячный!$G:$G,ежемесячный!$D:$D,$A10,ежемесячный!$E:$E,$A$1,ежемесячный!$F:$F,D$1) -> 0 | E10: =SUMIFS(ежемесячный!$H:$H,ежемесячный!$D:$D,$A10,ежемесячный!$E:$E,$A$1,ежемесячный!$F:$F,D$1) -> 0 | F10: 0 | G10: 0 | H10: 0 | I10: 0 | J10: 0 | K10: 0 | L10: 0 | M10: 0 | N10: 0 | P10: 0 | R10: 0 | S10: 0 | T10: 0 | U10: 0
A11: 2014-03-08 | B11: =SUMIFS(ежемесячный!$G:$G,ежемесячный!$D:$D,$A11,ежемесячный!$E:$E,$A$1,ежемесячный!$F:$F,B$1) -> 0 | C11: =SUMIFS(ежемесячный!$H:$H,ежемесячный!$D:$D,$A11,ежемесячный!$E:$E,$A$1,ежемесячный!$F:$F,B$1) -> 0 | D11: =SUMIFS(ежемесячный!$G:$G,ежемесячный!$D:$D,$A11,ежемесячный!$E:$E,$A$1,ежемесячный!$F:$F,D$1) -> 0 | E11: =SUMIFS(ежемесячный!$H:$H,ежемесячный!$D:$D,$A11,ежемесячный!$E:$E,$A$1,ежемесячный!$F:$F,D$1) -> 0 | F11: 0 | G11: 0 | H11: 0 | I11: 0 | J11: 0 | K11: 0 | L11: 0 | M11: 0 | N11: 0 | P11: 0 | R11: 0 | S11: 0 | T11: 0 | U11: 0
A12: 2014-03-09 | B12: =SUMIFS(ежемесячный!$G:$G,ежемесячный!$D:$D,$A12,ежемесячный!$E:$E,$A$1,ежемесячный!$F:$F,B$1) -> 0 | C12: =SUMIFS(ежемесячный!$H:$H,ежемесячный!$D:$D,$A12,ежемесячный!$E:$E,$A$1,ежемесячный!$F:$F,B$1) -> 0 | D12: =SUMIFS(ежемесячный!$G:$G,ежемесячный!$D:$D,$A12,ежемесячный!$E:$E,$A$1,ежемесячный!$F:$F,D$1) -> 0 | E12: =SUMIFS(ежемесячный!$H:$H,ежемесячный!$D:$D,$A12,ежемесячный!$E:$E,$A$1,ежемесячный!$F:$F,D$1) -> 0 | F12: 0 | G12: 0 | H12: 0 | I12: 0 | J12: 0 | K12: 0 | L12: 0 | M12: 0 | N12: 0 | P12: 0 | R12: 0 | S12: 0 | T12: 0 | U12: 0
A13: 2014-03-10 | B13: =SUMIFS(ежемесячный!$G:$G,ежемесячный!$D:$D,$A13,ежемесячный!$E:$E,$A$1,ежемесячный!$F:$F,B$1) -> 0 | C13: =SUMIFS(ежемесячный!$H:$H,ежемесячный!$D:$D,$A13,ежемесячный!$E:$E,$A$1,ежемесячный!$F:$F,B$1) -> 0 | D13: =SUMIFS(ежемесячный!$G:$G,ежемесячный!$D:$D,$A13,ежемесячный!$E:$E,$A$1,ежемесячный!$F:$F,D$1) -> 0 | E13: =SUMIFS(ежемесячный!$H:$H,ежемесячный!$D:$D,$A13,ежемесячный!$E:$E,$A$1,ежемесячный!$F:$F,D$1) -> 0 | F13: 0 | G13: 0 | H13: 0 | I13: 0 | J13: 0 | K13: 0 | L13: 0 | M13: 0 | N13: 0 | P13: 0 | R13: 0 | S13: 0 | T13: 0 | U13: 0
A14: 2014-03-11 | B14: =SUMIFS(ежемесячный!$G:$G,ежемесячный!$D:$D,$A14,ежемесячный!$E:$E,$A$1,ежемесячный!$F:$F,B$1) -> 0 | C14: =SUMIFS(ежемесячный!$H:$H,ежемесячный!$D:$D,$A14,ежемесячный!$E:$E,$A$1,ежемесячный!$F:$F,B$1) -> 0 | D14: =SUMIFS(ежемесячный!$G:$G,ежемесячный!$D:$D,$A14,ежемесячный!$E:$E,$A$1,ежемесячный!$F:$F,D$1) -> 0 | E14: =SUMIFS(ежемесячный!$H:$H,ежемесячный!$D:$D,$A14,ежемесячный!$E:$E,$A$1,ежемесячный!$F:$F,D$1) -> 0 | F14: 0 | G14: 0 | H14: 0 | I14: 0 | J14: 0 | K14: 0 | L14: 0 | M14: 0 | N14: 0 | P14: 0 | R14: 0 | S14: 0 | T14: 0 | U14: 0
A15: 2014-03-12 | B15: =SUMIFS(ежемесячный!$G:$G,ежемесячный!$D:$D,$A15,ежемесячный!$E:$E,$A$1,ежемесячный!$F:$F,B$1) -> 0 | C15: =SUMIFS(ежемесячный!$H:$H,ежемесячный!$D:$D,$A15,ежемесячный!$E:$E,$A$1,ежемесячный!$F:$F,B$1) -> 0 | D15: =SUMIFS(ежемесячный!$G:$G,ежемесячный!$D:$D,$A15,ежемесячный!$E:$E,$A$1,ежемесячный!$F:$F,D$1) -> 0 | E15: =SUMIFS(ежемесячный!$H:$H,ежемесячный!$D:$D,$A15,ежемесячный!$E:$E,$A$1,ежемесячный!$F:$F,D$1) -> 0 | F15: 0 | G15: 0 | H15: 0 | I15: 0 | J15: 0 | K15: 0 | L15: 0 | M15: 0 | N15: 0 | P15: 0 | R15: 0 | S15: 0 | T15: 0 | U15: 0
A16: 2014-03-13 | B16: =SUMIFS(ежемесячный!$G:$G,ежемесячный!$D:$D,$A16,ежемесячный!$E:$E,$A$1,ежемесячный!$F:$F,B$1) -> 0 | C16: =SUMIFS(ежемесячный!$H:$H,ежемесячный!$D:$D,$A16,ежемесячный!$E:$E,$A$1,ежемесячный!$F:$F,B$1) -> 0 | D16: =SUMIFS(ежемесячный!$G:$G,ежемесячный!$D:$D,$A16,ежемесячный!$E:$E,$A$1,ежемесячный!$F:$F,D$1) -> 0 | E16: =SUMIFS(ежемесячный!$H:$H,ежемесячный!$D:$D,$A16,ежемесячный!$E:$E,$A$1,ежемесячный!$F:$F,D$1) -> 0 | F16: 0 | G16: 0 | H16: 0 | I16: 0 | J16: 0 | K16: 0 | L16: 0 | M16: 0 | N16: 0 | P16: 0 | R16: 0 | S16: 0 | T16: 0 | U16: 0
A17: 2014-03-14 | B17: =SUMIFS(ежемесячный!$G:$G,ежемесячный!$D:$D,$A17,ежемесячный!$E:$E,$A$1,ежемесячный!$F:$F,B$1) -> 0 | C17: =SUMIFS(ежемесячный!$H:$H,ежемесячный!$D:$D,$A17,ежемесячный!$E:$E,$A$1,ежемесячный!$F:$F,B$1) -> 0 | D17: =SUMIFS(ежемесячный!$G:$G,ежемесячный!$D:$D,$A17,ежемесячный!$E:$E,$A$1,ежемесячный!$F:$F,D$1) -> 0 | E17: =SUMIFS(ежемесячный!$H:$H,ежемесячный!$D:$D,$A17,ежемесячный!$E:$E,$A$1,ежемесячный!$F:$F,D$1) -> 0 | F17: 0 | G17: 0 | H17: 0 | I17: 0 | J17: 0 | K17: 0 | L17: 0 | M17: 0 | N17: 0 | P17: 0 | R17: 0 | S17: 0 | T17: 0 | U17: 0
A18: 2014-03-15 | B18: =SUMIFS(ежемесячный!$G:$G,ежемесячный!$D:$D,$A18,ежемесячный!$E:$E,$A$1,ежемесячный!$F:$F,B$1) -> 0 | C18: =SUMIFS(ежемесячный!$H:$H,ежемесячный!$D:$D,$A18,ежемесячный!$E:$E,$A$1,ежемесячный!$F:$F,B$1) -> 0 | D18: =SUMIFS(ежемесячный!$G:$G,ежемесячный!$D:$D,$A18,ежемесячный!$E:$E,$A$1,ежемесячный!$F:$F,D$1) -> 0 | E18: =SUMIFS(ежемесячный!$H:$H,ежемесячный!$D:$D,$A18,ежемесячный!$E:$E,$A$1,ежемесячный!$F:$F,D$1) -> 0 | F18: 0 | G18: 0 | H18: 0 | I18: 0 | J18: 0 | K18: 0 | L18: 0 | M18: 0 | N18: 0 | P18: 0 | R18: 0 | S18: 0 | T18: 0 | U18: 0
A19: 2014-03-16 | B19: =SUMIFS(ежемесячный!$G:$G,ежемесячный!$D:$D,$A19,ежемесячный!$E:$E,$A$1,ежемесячный!$F:$F,B$1) -> 0 | C19: =SUMIFS(ежемесячный!$H:$H,ежемесячный!$D:$D,$A19,ежемесячный!$E:$E,$A$1,ежемесячный!$F:$F,B$1) -> 0 | D19: =SUMIFS(ежемесячный!$G:$G,ежемесячный!$D:$D,$A19,ежемесячный!$E:$E,$A$1,ежемесячный!$F:$F,D$1) -> 0 | E19: =SUMIFS(ежемесячный!$H:$H,ежемесячный!$D:$D,$A19,ежемесячный!$E:$E,$A$1,ежемесячный!$F:$F,D$1) -> 0 | F19: 0 | G19: 0 | H19: 0 | I19: 0 | J19: 0 | K19: 0 | L19: 0 | M19: 0 | N19: 0 | P19: 0 | R19: 0 | S19: 0 | T19: 0 | U19: 0
A20: 2014-03-17 | B20: =SUMIFS(ежемесячный!$G:$G,ежемесячный!$D:$D,$A20,ежемесячный!$E:$E,$A$1,ежемесячный!$F:$F,B$1) -> 0 | C20: =SUMIFS(ежемесячный!$H:$H,ежемесячный!$D:$D,$A20,ежемесячный!$E:$E,$A$1,ежемесячный!$F:$F,B$1) -> 0 | D20: =SUMIFS(ежемесячный!$G:$G,ежемесячный!$D:$D,$A20,ежемесячный!$E:$E,$A$1,ежемесячный!$F:$F,D$1) -> 0 | E20: =SUMIFS(ежемесячный!$H:$H,ежемесячный!$D:$D,$A20,ежемесячный!$E:$E,$A$1,ежемесячный!$F:$F,D$1) -> 0 | F20: 0 | G20: 0 | H20: 0 | I20: 0 | J20: 0 | K20: 0 | L20: 0 | M20: 0 | N20: 0 | P20: 0 | R20: 0 | S20: 0 | T20: 0 | U20: 0
A21: 2014-03-18 | B21: =SUMIFS(ежемесячный!$G:$G,ежемесячный!$D:$D,$A21,ежемесячный!$E:$E,$A$1,ежемесячный!$F:$F,B$1) -> 0 | C21: =SUMIFS(ежемесячный!$H:$H,ежемесячный!$D:$D,$A21,ежемесячный!$E:$E,$A$1,ежемесячный!$F:$F,B$1) -> 0 | D21: =SUMIFS(ежемесячный!$G:$G,ежемесячный!$D:$D,$A21,ежемесячный!$E:$E,$A$1,ежемесячный!$F:$F,D$1) -> 0 | E21: =SUMIFS(ежемесячный!$H:$H,ежемесячный!$D:$D,$A21,ежемесячный!$E:$E,$A$1,ежемесячный!$F:$F,D$1) -> 0 | F21: 0 | G21: 0 | H21: 0 | I21: 0 | J21: 0 | K21: 0 | L21: 0 | M21: 0 | N21: 0 | P21: 0 | R21: 0 | S21: 0 | T21: 0 | U21: 0
A22: 2014-03-19 | B22: =SUMIFS(ежемесячный!$G:$G,ежемесячный!$D:$D,$A22,ежемесячный!$E:$E,$A$1,ежемесячный!$F:$F,B$1) -> 0 | C22: =SUMIFS(ежемесячный!$H:$H,ежемесячный!$D:$D,$A22,ежемесячный!$E:$E,$A$1,ежемесячный!$F:$F,B$1) -> 0 | D22: =SUMIFS(ежемесячный!$G:$G,ежемесячный!$D:$D,$A22,ежемесячный!$E:$E,$A$1,ежемесячный!$F:$F,D$1) -> 0 | E22: =SUMIFS(ежемесячный!$H:$H,ежемесячный!$D:$D,$A22,ежемесячный!$E:$E,$A$1,ежемесячный!$F:$F,D$1) -> 0 | F22: 0 | G22: 0 | H22: 0 | I22: 0 | J22: 0 | K22: 0 | L22: 0 | M22: 0 | N22: 0 | P22: 0 | R22: 0 | S22: 0 | T22: 0 | U22: 0
A23: 2014-03-20 | B23: =SUMIFS(ежемесячный!$G:$G,ежемесячный!$D:$D,$A23,ежемесячный!$E:$E,$A$1,ежемесячный!$F:$F,B$1) -> 0 | C23: =SUMIFS(ежемесячный!$H:$H,ежемесячный!$D:$D,$A23,ежемесячный!$E:$E,$A$1,ежемесячный!$F:$F,B$1) -> 0 | D23: =SUMIFS(ежемесячный!$G:$G,ежемесячный!$D:$D,$A23,ежемесячный!$E:$E,$A$1,ежемесячный!$F:$F,D$1) -> 0 | E23: =SUMIFS(ежемесячный!$H:$H,ежемесячный!$D:$D,$A23,ежемесячный!$E:$E,$A$1,ежемесячный!$F:$F,D$1) -> 0 | F23: 0 | G23: 0 | H23: 0 | I23: 0 | J23: 0 | K23: 0 | L23: 0 | M23: 0 | N23: 0 | P23: 0 | R23: 0 | S23: 0 | T23: 0 | U23: 0
A24: 2014-03-21 | B24: =SUMIFS(ежемесячный!$G:$G,ежемесячный!$D:$D,$A24,ежемесячный!$E:$E,$A$1,ежемесячный!$F:$F,B$1) -> 0 | C24: =SUMIFS(ежемесячный!$H:$H,ежемесячный!$D:$D,$A24,ежемесячный!$E:$E,$A$1,ежемесячный!$F:$F,B$1) -> 0 | D24: =SUMIFS(ежемесячный!$G:$G,ежемесячный!$D:$D,$A24,ежемесячный!$E:$E,$A$1,ежемесячный!$F:$F,D$1) -> 0 | E24: =SUMIFS(ежемесячный!$H:$H,ежемесячный!$D:$D,$A24,ежемесячный!$E:$E,$A$1,ежемесячный!$F:$F,D$1) -> 0 | F24: 0 | G24: 0 | H24: 0 | I24: 0 | J24: 0 | K24: 0 | L24: 0 | M24: 0 | N24: 0 | P24: 0 | R24: 0 | S24: 0 | T24: 0 | U24: 0
A25: 2014-03-22 | B25: =SUMIFS(ежемесячный!$G:$G,ежемесячный!$D:$D,$A25,ежемесячный!$E:$E,$A$1,ежемесячный!$F:$F,B$1) -> 0 | C25: =SUMIFS(ежемесячный!$H:$H,ежемесячный!$D:$D,$A25,ежемесячный!$E:$E,$A$1,ежемесячный!$F:$F,B$1) -> 0 | D25: =SUMIFS(ежемесячный!$G:$G,ежемесячный!$D:$D,$A25,ежемесячный!$E:$E,$A$1,ежемесячный!$F:$F,D$1) -> 0 | E25: =SUMIFS(ежемесячный!$H:$H,ежемесячный!$D:$D,$A25,ежемесячный!$E:$E,$A$1,ежемесячный!$F:$F,D$1) -> 0 | F25: 0 | G25: 0 | H25: 0 | I25: 0 | J25: 0 | K25: 0 | L25: 0 | M25: 0 | N25: 0 | P25: 0 | R25: 0 | S25: 0 | T25: 0 | U25: 0
A26: 2014-03-23 | B26: =SUMIFS(ежемесячный!$G:$G,ежемесячный!$D:$D,$A26,ежемесячный!$E:$E,$A$1,ежемесячный!$F:$F,B$1) -> 0 | C26: =SUMIFS(ежемесячный!$H:$H,ежемесячный!$D:$D,$A26,ежемесячный!$E:$E,$A$1,ежемесячный!$F:$F,B$1) -> 0 | D26: =SUMIFS(ежемесячный!$G:$G,ежемесячный!$D:$D,$A26,ежемесячный!$E:$E,$A$1,ежемесячный!$F:$F,D$1) -> 0 | E26: =SUMIFS(ежемесячный!$H:$H,ежемесячный!$D:$D,$A26,ежемесячный!$E:$E,$A$1,ежемесячный!$F:$F,D$1) -> 0 | F26: 0 | G26: 0 | H26: 0 | I26: 0 | J26: 0 | K26: 0 | L26: 0 | M26: 0 | N26: 0 | P26: 0 | R26: 0 | S26: 0 | T26: 0 | U26: 0
A27: 2014-03-24 | B27: =SUMIFS(ежемесячный!$G:$G,ежемесячный!$D:$D,$A27,ежемесячный!$E:$E,$A$1,ежемесячный!$F:$F,B$1) -> 0 | C27: =SUMIFS(ежемесячный!$H:$H,ежемесячный!$D:$D,$A27,ежемесячный!$E:$E,$A$1,ежемесячный!$F:$F,B$1) -> 0 | D27: =SUMIFS(ежемесячный!$G:$G,ежемесячный!$D:$D,$A27,ежемесячный!$E:$E,$A$1,ежемесячный!$F:$F,D$1) -> 0 | E27: =SUMIFS(ежемесячный!$H:$H,ежемесячный!$D:$D,$A27,ежемесячный!$E:$E,$A$1,ежемесячный!$F:$F,D$1) -> 0 | F27: 0 | G27: 0 | H27: 0 | I27: 0 | J27: 0 | K27: 0 | L27: 0 | M27: 0 | N27: 0 | P27: 0 | R27: 0 | S27: 0 | T27: 0 | U27: 0
A28: 2014-03-25 | B28: =SUMIFS(ежемесячный!$G:$G,ежемесячный!$D:$D,$A28,ежемесячный!$E:$E,$A$1,ежемесячный!$F:$F,B$1) -> 0 | C28: =SUMIFS(ежемесячный!$H:$H,ежемесячный!$D:$D,$A28,ежемесячный!$E:$E,$A$1,ежемесячный!$F:$F,B$1) -> 0 | D28: =SUMIFS(ежемесячный!$G:$G,ежемесячный!$D:$D,$A28,ежемесячный!$E:$E,$A$1,ежемесячный!$F:$F,D$1) -> 0 | E28: =SUMIFS(ежемесячный!$H:$H,ежемесячный!$D:$D,$A28,ежемесячный!$E:$E,$A$1,ежемесячный!$F:$F,D$1) -> 0 | F28: 0 | G28: 0 | H28: 0 | I28: 0 | J28: 0 | K28: 0 | L28: 0 | M28: 0 | N28: 0 | P28: 0 | R28: 0 | S28: 0 | T28: 0 | U28: 0
A29: 2014-03-26 | B29: =SUMIFS(ежемесячный!$G:$G,ежемесячный!$D:$D,$A29,ежемесячный!$E:$E,$A$1,ежемесячный!$F:$F,B$1) -> 0 | C29: =SUMIFS(ежемесячный!$H:$H,ежемесячный!$D:$D,$A29,ежемесячный!$E:$E,$A$1,ежемесячный!$F:$F,B$1) -> 0 | D29: =SUMIFS(ежемесячный!$G:$G,ежемесячный!$D:$D,$A29,ежемесячный!$E:$E,$A$1,ежемесячный!$F:$F,D$1) -> 0 | E29: =SUMIFS(ежемесячный!$H:$H,ежемесячный!$D:$D,$A29,ежемесячный!$E:$E,$A$1,ежемесячный!$F:$F,D$1) -> 0 | F29: 0 | G29: 0 | H29: 0 | I29: 0 | J29: 0 | K29: 0 | L29: 0 | M29: 0 | N29: 0 | P29: 0 | R29: 0 | S29: 0 | T29: 0 | U29: 0
A30: 2014-03-27 | B30: =SUMIFS(ежемесячный!$G:$G,ежемесячный!$D:$D,$A30,ежемесячный!$E:$E,$A$1,ежемесячный!$F:$F,B$1) -> 0 | C30: =SUMIFS(ежемесячный!$H:$H,ежемесячный!$D:$D,$A30,ежемесячный!$E:$E,$A$1,ежемесячный!$F:$F,B$1) -> 0 | D30: =SUMIFS(ежемесячный!$G:$G,ежемесячный!$D:$D,$A30,ежемесячный!$E:$E,$A$1,ежемесячный!$F:$F,D$1) -> 0 | E30: =SUMIFS(ежемесячный!$H:$H,ежемесячный!$D:$D,$A30,ежемесячный!$E:$E,$A$1,ежемесячный!$F:$F,D$1) -> 0 | F30: 0 | G30: 0 | H30: 0 | I30: 0 | J30: 0 | K30: 0 | L30: 0 | M30: 0 | N30: 0 | P30: 0 | R30: 0 | S30: 0 | T30: 0 | U30: 0
A31: 2014-03-28 | B31: =SUMIFS(ежемесячный!$G:$G,ежемесячный!$D:$D,$A31,ежемесячный!$E:$E,$A$1,ежемесячный!$F:$F,B$1) -> 0 | C31: =SUMIFS(ежемесячный!$H:$H,ежемесячный!$D:$D,$A31,ежемесячный!$E:$E,$A$1,ежемесячный!$F:$F,B$1) -> 0 | D31: =SUMIFS(ежемесячный!$G:$G,ежемесячный!$D:$D,$A31,ежемесячный!$E:$E,$A$1,ежемесячный!$F:$F,D$1) -> 0 | E31: =SUMIFS(ежемесячный!$H:$H,ежемесячный!$D:$D,$A31,ежемесячный!$E:$E,$A$1,ежемесячный!$F:$F,D$1) -> 0 | F31: 0 | G31: 0 | H31: 0 | I31: 0 | J31: 0 | K31: 0 | L31: 0 | M31: 0 | N31: 0 | P31: 0 | R31: 0 | S31: 0 | T31: 0 | U31: 0
A32: 2014-03-29 | B32: =SUMIFS(ежемесячный!$G:$G,ежемесячный!$D:$D,$A32,ежемесячный!$E:$E,$A$1,ежемесячный!$F:$F,B$1) -> 0 | C32: =SUMIFS(ежемесячный!$H:$H,ежемесячный!$D:$D,$A32,ежемесячный!$E:$E,$A$1,ежемесячный!$F:$F,B$1) -> 0 | D32: =SUMIFS(ежемесячный!$G:$G,ежемесячный!$D:$D,$A32,ежемесячный!$E:$E,$A$1,ежемесячный!$F:$F,D$1) -> 0 | E32: =SUMIFS(ежемесячный!$H:$H,ежемесячный!$D:$D,$A32,ежемесячный!$E:$E,$A$1,ежемесячный!$F:$F,D$1) -> 0 | F32: 0 | G32: 0 | H32: 0 | I32: 0 | J32: 0 | K32: 0 | L32: 0 | M32: 0 | N32: 0 | P32: 0 | R32: 0 | S32: 0 | T32: 0 | U32: 0
A33: 2014-03-30 | B33: =SUMIFS(ежемесячный!$G:$G,ежемесячный!$D:$D,$A33,ежемесячный!$E:$E,$A$1,ежемесячный!$F:$F,B$1) -> 0 | C33: =SUMIFS(ежемесячный!$H:$H,ежемесячный!$D:$D,$A33,ежемесячный!$E:$E,$A$1,ежемесячный!$F:$F,B$1) -> 0 | D33: =SUMIFS(ежемесячный!$G:$G,ежемесячный!$D:$D,$A33,ежемесячный!$E:$E,$A$1,ежемесячный!$F:$F,D$1) -> 0 | E33: =SUMIFS(ежемесячный!$H:$H,ежемесячный!$D:$D,$A33,ежемесячный!$E:$E,$A$1,ежемесячный!$F:$F,D$1) -> 0 | F33: 0 | G33: 0 | H33: 0 | I33: 0 | J33: 0 | K33: 0 | L33: 0 | M33: 0 | N33: 0 | P33: 0 | R33: 0 | S33: 0 | T33: 0 | U33: 0
A34: 2014-03-31 | B34: =SUMIFS(ежемесячный!$G:$G,ежемесячный!$D:$D,$A34,ежемесячный!$E:$E,$A$1,ежемесячный!$F:$F,B$1) -> 0 | C34: =SUMIFS(ежемесячный!$H:$H,ежемесячный!$D:$D,$A34,ежемесячный!$E:$E,$A$1,ежемесячный!$F:$F,B$1) -> 0 | D34: =SUMIFS(ежемесячный!$G:$G,ежемесячный!$D:$D,$A34,ежемесячный!$E:$E,$A$1,ежемесячный!$F:$F,D$1) -> 0 | E34: =SUMIFS(ежемесячный!$H:$H,ежемесячный!$D:$D,$A34,ежемесячный!$E:$E,$A$1,ежемесячный!$F:$F,D$1) -> 0 | F34: 0 | G34: 0 | H34: 0 | I34: 0 | J34: 0 | K34: 0 | L34: 0 | M34: 0 | N34: 0 | P34: 0 | R34: 0 | S34: 0 | T34: 0 | U34: 0
B35: =SUM(B4:B34) -> 44 | C35: =SUM(C4:C34) -> 308300 | D35: =SUM(D4:D34) -> 0 | E35: 0 | F35: 0 | G35: 0 | H35: 0 | I35: 0 | J35: 0 | K35: 0 | L35: 0 | M35: 0 | N35: 0 | P35: 0 | R35: 0 | S35: 0 | T35: 0 | U35: 308300
B37: кол-во прин.ПО | D37: =B35+D35+F35+H35+J35+L35+S35 -> 44
B38: сумма доходов | D38: =U35 -> 308300

Sheet IT-Эксперт
A1: =MID(CELL("имяфайла",B1),SEARCH("]",CELL("имяфайла",B1),1)+1,99) -> IT-Эксперт
A2: Число месяца | B2: заказные отправления (116, 161) | D2: простые отправления (117, 165) | F2: посылки (151, 156) | H2: мелкие пакеты, ценные письма (121) | J2: EMS внутренние (181 ,182) | L2: EMS международные (321, 322) | N2: доп.услуги (241, 311) | O2: товары почты (641) | P2: маркиров. прод. (111) | Q2: переводы (138,139,144,145,146,149) | S2: Итого доходы
B3: кол-во | C3: доходы | D3: кол-во | E3: доходы | F3: кол-во | G3: доходы | H3: кол-во | I3: доходы | J3: кол-во | K3: доходы | L3: кол-во | M3: доходы | N3: доходы | O3: доходы | P3: доходы | Q3: кол-во | R3: доходы
A4: 1 | B4: 0 | C4: 0 | D4: 0 | E4: 0 | F4: 0 | G4: 0 | H4: 0 | I4: 0 | J4: 0 | K4: 0 | L4: 0 | M4: 0 | N4: 0 | O4: 0 | P4: 0 | Q4: 0 | R4: 0 | S4: =R4+P4+O4+N4+M4+K4+I4+G4+E4+C4 -> 0
A5: =A4+1 -> 2 | B5: 0 | C5: 0 | D5: 0 | E5: 0 | F5: 0 | G5: 0 | H5: 0 | I5: 0 | J5: 0 | K5: 0 | L5: 0 | M5: 0 | N5: 0 | O5: 0 | P5: 0 | Q5: 0 | R5: 0 | S5: =R5+P5+O5+N5+M5+K5+I5+G5+E5+C5 -> 0
A6: =A5+1 -> 3 | B6: 0 | C6: 0 | D6: 0 | E6: 0 | F6: 0 | G6: 0 | H6: 0 | I6: 0 | J6: 0 | K6: 0 | L6: 0 | M6: 0 | N6: 0 | O6: 0 | P6: 0 | Q6: 0 | R6: 0 | S6: 0
A7: 4 | B7: 0 | C7: 0 | D7: 0 | E7: 0 | F7: 0 | G7: 0 | H7: 0 | I7: 0 | J7: 0 | K7: 0 | L7: 0 | M7: 0 | N7: 0 | O7: 0 | P7: 0 | Q7: 0 | R7: 0 | S7: 0
A8: 5 | B8: 0 | C8: 0 | D8: 0 | E8: 0 | F8: 0 | G8: 0 | H8: 0 | I8: 0 | J8: 0 | K8: 0 | L8: 0 | M8: 0 | N8: 0 | O8: 0 | P8: 0 | Q8: 0 | R8: 0 | S8: 0
A9: 6 | B9: 0 | C9: 0 | D9: 0 | E9: 0 | F9: 0 | G9: 0 | H9: 0 | I9: 0 | J9: 0 | K9: 0 | L9: 0 | M9: 0 | N9: 0 | O9: 0 | P9: 0 | Q9: 0 | R9: 0 | S9: 0
A10: 7 | B10: 0 | C10: 0 | D10: 0 | E10: 0 | F10: 0 | G10: 0 | H10: 0 | I10: 0 | J10: 0 | K10: 0 | L10: 0 | M10: 0 | N10: 0 | O10: 0 | P10: 0 | Q10: 0 | R10: 0 | S10: 0
A11: 8 | B11: 0 | C11: 0 | D11: 0 | E11: 0 | F11: 0 | G11: 0 | H11: 0 | I11: 0 | J11: 0 | K11: 0 | L11: 0 | M11: 0 | N11: 0 | O11: 0 | P11: 0 | Q11: 0 | R11: 0 | S11: 0
A12: 9 | B12: 0 | C12: 0 | D12: 0 | E12: 0 | F12: 0 | G12: 0 | H12: 0 | I12: 0 | J12: 0 | K12: 0 | L12: 0 | M12: 0 | N12: 0 | O12: 0 | P12: 0 | Q12: 0 | R12: 0 | S12: 0
A13: 10 | B13: 0 | C13: 0 | D13: 0 | E13: 0 | F13: 0 | G13: 0 | H13: 0 | I13: 0 | J13: 0 | K13: 0 | L13: 0 | M13: 0 | N13: 0 | O13: 0 | P13: 0 | Q13: 0 | R13: 0 | S13: 0
A14: 11 | B14: 0 | C14: 0 | D14: 0 | E14: 0 | F14: 0 | G14: 0 | H14: 0 | I14: 0 | J14: 0 | K14: 0 | L14: 0 | M14: 0 | N14: 0 | O14: 0 | P14: 0 | Q14: 0 | R14: 0 | S14: 0
A15: 12 | B15: 0 | C15: 0 | D15: 0 | E15: 0 | F15: 0 | G15: 0 | H15: 0 | I15: 0 | J15: 0 | K15: 0 | L15: 0 | M15: 0 | N15: 0 | O15: 0 | P15: 0 | Q15: 0 | R15: 0 | S15: 0
A16: 13 | B16: 0 | C16: 0 | D16: 0 | E16: 0 | F16: 0 | G16: 0 | H16: 0 | I16: 0 | J16: 0 | K16: 0 | L16: 0 | M16: 0 | N16: 0 | O16: 0 | P16: 0 | Q16: 0 | R16: 0 | S16: 0
A17: 14 | B17: 0 | C17: 0 | D17: 0 | E17: 0 | F17: 0 | G17: 0 | H17: 0 | I17: 0 | J17: 0 | K17: 0 | L17: 0 | M17: 0 | N17: 0 | O17: 0 | P17: 0 | Q17: 0 | R17: 0 | S17: 0
A18: 15 | B18: 0 | C18: 0 | D18: 0 | E18: 0 | F18: 0 | G18: 0 | H18: 0 | I18: 0 | J18: 0 | K18: 0 | L18: 0 | M18: 0 | N18: 0 | O18: 0 | P18: 0 | Q18: 0 | R18: 0 | S18: 0
A19: 16 | B19: 0 | C19: 0 | D19: 0 | E19: 0 | F19: 0 | G19: 0 | H19: 0 | I19: 0 | J19: 0 | K19: 0 | L19: 0 | M19: 0 | N19: 0 | O19: 0 | P19: 0 | Q19: 0 | R19: 0 | S19: 0
A20: 17 | B20: 0 | C20: 0 | D20: 0 | E20: 0 | F20: 0 | G20: 0 | H20: 0 | I20: 0 | J20: 0 | K20: 0 | L20: 0 | M20: 0 | N20: 0 | O20: 0 | P20: 0 | Q20: 0 | R20: 0 | S20: 0
A21: 18 | B21: 0 | C21: 0 | D21: 0 | E21: 0 | F21: 0 | G21: 0 | H21: 0 | I21: 0 | J21: 0 | K21: 0 | L21: 0 | M21: 0 | N21: 0 | O21: 0 | P21: 0 | Q21: 0 | R21: 0 | S21: 0
A22: 19 | B22: 0 | C22: 0 | D22: 0 | E22: 0 | F22: 0 | G22: 0 | H22: 0 | I22: 0 | J22: 0 | K22: 0 | L22: 0 | M22: 0 | N22: 0 | O22: 0 | P22: 0 | Q22: 0 | R22: 0 | S22: 0
A23: 20 | B23: 0 | C23: 0 | D23: 0 | E23: 0 | F23: 0 | G23: 0 | H23: 0 | I23: 0 | J23: 0 | K23: 0 | L23: 0 | M23: 0 | N23: 0 | O23: 0 | P23: 0 | Q23: 0 | R23: 0 | S23: 0
A24: 21 | B24: 0 | C24: 0 | D24: 0 | E24: 0 | F24: 0 | G24: 0 | H24: 0 | I24: 0 | J24: 0 | K24: 0 | L24: 0 | M24: 0 | N24: 0 | O24: 0 | P24: 0 | Q24: 0 | R24: 0 | S24: 0
A25: 22 | B25: 0 | C25: 0 | D25: 0 | E25: 0 | F25: 0 | G25: 0 | H25: 0 | I25: 0 | J25: 0 | K25: 0 | L25: 0 | M25: 0 | N25: 0 | O25: 0 | P25: 0 | Q25: 0 | R25: 0 | S25: 0
A26: 23 | B26: 0 | C26: 0 | D26: 0 | E26: 0 | F26: 0 | G26: 0 | H26: 0 | I26: 0 | J26: 0 | K26: 0 | L26: 0 | M26: 0 | N26: 0 | O26: 0 | P26: 0 | Q26: 0 | R26: 0 | S26: 0
A27: 24 | B27: 0 | C27: 0 | D27: 0 | E27: 0 | F27: 0 | G27: 0 | H27: 0 | I27: 0 | J27: 0 | K27: 0 | L27: 0 | M27: 0 | N27: 0 | O27: 0 | P27: 0 | Q27: 0 | R27: 0 | S27: 0
A28: 25 | B28: 0 | C28: 0 | D28: 0 | E28: 0 | F28: 0 | G28: 0 | H28: 0 | I28: 0 | J28: 0 | K28: 0 | L28: 0 | M28: 0 | N28: 0 | O28: 0 | P28: 0 | Q28: 0 | R28: 0 | S28: 0
A29: 26 | B29: 0 | C29: 0 | D29: 0 | E29: 0 | F29: 0 | G29: 0 | H29: 0 | I29: 0 | J29: 0 | K29: 0 | L29: 0 | M29: 0 | N29: 0 | O29: 0 | P29: 0 | Q29: 0 | R29: 0 | S29: 0
A30: 27 | B30: 0 | C30: 0 | D30: 0 | E30: 0 | F30: 0 | G30: 0 | H30: 0 | I30: 0 | J30: 0 | K30: 0 | L30: 0 | M30: 0 | N30: 0 | O30: 0 | P30: 0 | Q30: 0 | R30: 0 | S30: 0
A31: 28 | B31: 0 | C31: 0 | D31: 0 | E31: 0 | F31: 0 | G31: 0 | H31: 0 | I31: 0 | J31: 0 | K31: 0 | L31: 0 | M31: 0 | N31: 0 | O31: 0 | P31: 0 | Q31: 0 | R31: 0 | S31: 0
A32: 29 | B32: 0 | C32: 0 | D32: 0 | E32: 0 | F32: 0 | G32: 0 | H32: 0 | I32: 0 | J32: 0 | K32: 0 | L32: 0 | M32: 0 | N32: 0 | O32: 0 | P32: 0 | Q32: 0 | R32: 0 | S32: 0
A33: 30 | B33: 0 | C33: 0 | D33: 0 | E33: 0 | F33: 0 | G33: 0 | H33: 0 | I33: 0 | J33: 0 | K33: 0 | L33: 0 | M33: 0 | N33: 0 | O33: 0 | P33: 0 | Q33: 0 | R33: 0 | S33: 0
A34: 31 | B34: 0 | C34: 0 | D34: 0 | E34: 0 | F34: 0 | G34: 0 | H34: 0 | I34: 0 | J34: 0 | K34: 0 | L34: 0 | M34: 0 | N34: 0 | O34: 0 | P34: 0 | Q34: 0 | R34: 0 | S34: 0
B35: =SUM(B4:B34) -> 0 | C35: =SUM(C4:C34) -> 0 | D35: =SUM(D4:D34) -> 0 | E35: 0 | F35: 0 | G35: 0 | H35: 0 | I35: 0 | J35: 0 | K35: 0 | L35: 0 | M35: 0 | N35: 0 | O35: 0 | P35: 0 | Q35: 0 | R35: 0 | S35: 0
B37: кол-во прин.ПО | D37: =B35+D35+F35+H35+J35+L35+Q35 -> 0
B38: сумма доходов | D38: =S35 -> 0
